Reference No,Department Family,Entity,Date of Payment,Expense Type,Expense Area,Supplier,Voluntary & Community Sector,SME Class,Sole Trader,D-U-N-S Number,Transaction number,PSPES Level 2,Narrative,Postal Code,Amount in Sterling,Grant?
2,Communities & Local Government,DCLG,01/08/2014,Cap Grants to Local Authorities (DEL),Neighbourhoods,LEEDS CITY COUNCIL,,Large,,211170311,2100245067,,Enterprise Zone Building Foundations for Growth,LS1 1UR,"4,143,325.00",Yes
3,Communities & Local Government,DCLG,01/08/2014,Current (non AEF) Grants to Local Authorities,Finance & Corporate Services,DURHAM & DARLINGTON FIRE RESCUE SER,,Public Bodies,,424872851,2100242012,,Regional Centre Centre Grant,DH1 1TW,"150,320.92",Yes
4,Communities & Local Government,DCLG,01/08/2014,Current (non AEF) Grants to Local Authorities,Finance & Corporate Services,GREATER LONDON AUTHORITY,,Large,,225353416,2100241998,,Regional Centre Centre Grant,SE10 1AP,"142,073.92",Yes
5,Communities & Local Government,DCLG,01/08/2014,Current (non AEF) Grants to Local Authorities,Finance & Corporate Services,GREATER MANCHESTER FIRE & RESCUE,,Public Bodies,,424873172,2100241986,,Regional Centre Centre Grant,M27 8US,"105,122.25",Yes
6,Communities & Local Government,DCLG,01/08/2014,Electronic Data Storage,Finance & Corporate Services,TNT UK LIMITED,,Large,,,5106205663,Warehousing and Storage,Visions electronic storage,BL10 9GR,"4,049.69",
7,Communities & Local Government,DCLG,01/08/2014,IT - Service Contracts,Finance & Corporate Services,FUJITSU SERVICES LTD,,Large,,423375062,5106205622,Managed / Outsourced Services,"FY 13/14 New Requirements ""NR"" Charges",WA3 9BD,"1,961.00",
8,Communities & Local Government,DCLG,01/08/2014,IT - Service Contracts,Finance & Corporate Services,FUJITSU SERVICES LTD,,Large,,423375062,5106205623,Managed / Outsourced Services,NRF0139 Migration Team for PINS Roll out,WA3 9BD,"50,375.00",
9,Communities & Local Government,DCLG,01/08/2014,IT - Service Contracts,Finance & Corporate Services,FUJITSU SERVICES LTD,,Large,,423375062,5106205664,Managed / Outsourced Services,"FY 13/14 New Requirements ""NR"" Charges",WA3 9BD,"7,540.50",
10,Communities & Local Government,DCLG,01/08/2014,IT - Service Contracts,Finance & Corporate Services,FUJITSU SERVICES LTD,,Large,,423375062,5106205665,Managed / Outsourced Services,"FY 13/14 New Requirements ""NR"" Charges",WA3 9BD,"2,500.00",
11,Communities & Local Government,DCLG,01/08/2014,IT - Service Contracts,Finance & Corporate Services,FUJITSU SERVICES LTD,,Large,,423375062,5106205666,Managed / Outsourced Services,"FY 13/14 New Requirements ""NR"" Charges",WA3 9BD,"2,500.00",
12,Communities & Local Government,DCLG,01/08/2014,Medals,Localism,ROYAL MINT,,Public Bodies,,227777463,5106205641,Learning and Development Materials,FireFighter Medals for LS  Good Conduct,CF72 8YT,267.30,
13,Communities & Local Government,DCLG,01/08/2014,Medals,Localism,ROYAL MINT,,Public Bodies,,227777463,5106205642,Learning and Development Materials,FireFighter Medals for LS  Good Conduct,CF72 8YT,267.30,
14,Communities & Local Government,DCLG,01/08/2014,Medals,Localism,ROYAL MINT,,Public Bodies,,227777463,5106205644,Learning and Development Materials,FireFighter Medals for LS  Good Conduct,CF72 8YT,"1,009.80",
15,Communities & Local Government,DCLG,01/08/2014,Medals,Localism,ROYAL MINT,,Public Bodies,,227777463,5106205647,Learning and Development Materials,FireFighter Medals for LS  Good Conduct,CF72 8YT,742.50,
16,Communities & Local Government,DCLG,01/08/2014,Medals,Localism,ROYAL MINT,,Public Bodies,,227777463,5106205649,Learning and Development Materials,FireFighter Medals for LS  Good Conduct,CF72 8YT,579.60,
17,Communities & Local Government,DCLG,01/08/2014,Medals,Localism,ROYAL MINT,,Public Bodies,,227777463,5106205653,Learning and Development Materials,FireFighter Medals for LS  Good Conduct,CF72 8YT,"1,336.50",
18,Communities & Local Government,DCLG,01/08/2014,Medals,Localism,ROYAL MINT,,Public Bodies,,227777463,5106205654,Learning and Development Materials,FireFighter Medals for LS  Good Conduct,CF72 8YT,478.80,
19,Communities & Local Government,DCLG,01/08/2014,Medals,Localism,ROYAL MINT,,Public Bodies,,227777463,5106205655,Learning and Development Materials,FireFighter Medals for LS  Good Conduct,CF72 8YT,252.00,
20,Communities & Local Government,DCLG,01/08/2014,Medals,Localism,ROYAL MINT,,Public Bodies,,227777463,5106205656,Learning and Development Materials,FireFighter Medals for LS  Good Conduct,CF72 8YT,475.20,
21,Communities & Local Government,DCLG,01/08/2014,Medals,Localism,ROYAL MINT,,Public Bodies,,227777463,5106205658,Learning and Development Materials,FireFighter Medals for LS  Good Conduct,CF72 8YT,378.00,
22,Communities & Local Government,DCLG,01/08/2014,Medals,Localism,ROYAL MINT,,Public Bodies,,227777463,5106205659,Learning and Development Materials,FireFighter Medals for LS  Good Conduct,CF72 8YT,781.20,
23,Communities & Local Government,DCLG,01/08/2014,Mobile phone costs,Finance & Corporate Services,PLANNING INSPECTORATE,,Public Bodies,,213918365,5106205667,Accommodation Services,TQH Residual Vodafone Charges 2014-15,BS1 6PN,46.58,
24,Communities & Local Government,DCLG,01/08/2014,Professional services,Finance & Corporate Services,E C HARRIS LLP,,Large,,,5106205621,Construction Service Providers,PAMU Com 115 PM Lead 1 Jun-30 Sep CS,N1 9AB,"14,820.00",
25,Communities & Local Government,DCLG,01/08/2014,Professional services,Finance & Corporate Services,E C HARRIS LLP,,Large,,,5106205635,Construction Service Providers,PAMU Com 100 - Projects Support,N1 9AB,"2,280.00",
30,Communities & Local Government,DCLG,01/08/2014,Research,Finance & Corporate Services,TNS UK LTD,Yes,Large,,230399040,5106205639,Operational Services,Research - Continous Recording of Lettings 2014-15,W5 1UA,"177,049.20",
31,Communities & Local Government,DCLG,01/08/2014,Security,Finance & Corporate Services,PLANNING INSPECTORATE,,Public Bodies,,213918365,5106205667,Accommodation Services,TQH Residual ADT Fire & Sec 2014-15,BS1 6PN,600.35,
32,Communities & Local Government,DCLG,01/08/2014,Steady State Service Provision,Finance & Corporate Services,ALLPAY LIMITED,,Medium,,738359918,5106205662,Business Process Outsourcing Services,DC/DC Transaction Charges,HR1 3SE,489.25,
33,Communities & Local Government,DCLG,01/08/2014,Telephone call costs,Finance & Corporate Services,PLANNING INSPECTORATE,,Public Bodies,,213918365,5106205667,Accommodation Services,TQH Residual BT line charges 2014-15,BS1 6PN,661.83,
34,Communities & Local Government,DCLG,01/08/2014,Variable Maintenance < 15k,Finance & Corporate Services,INTERSERVE (FACILITIES MANAGEMENT),,Large,,364834825,5106205618,Construction Service Providers,Eland House Pass Through Costs,BS32 4NH,"8,320.42",
35,Communities & Local Government,DCLG,01/08/2014,Variable Maintenance < 15k,Finance & Corporate Services,INTERSERVE (FACILITIES MANAGEMENT),,Large,,364834825,5106205618,Construction Service Providers,Temple Quay Pass Through Costs,BS32 4NH,159.79,
36,Communities & Local Government,DCLG,01/08/2014,Variable Maintenance < 15k,Finance & Corporate Services,INTERSERVE (FACILITIES MANAGEMENT),,Large,,364834825,5106205618,Construction Service Providers,Rivergate Pass Through Costs,BS32 4NH,976.43,
37,Communities & Local Government,DCLG,01/08/2014,Variable Maintenance < 15k,Finance & Corporate Services,INTERSERVE (FACILITIES MANAGEMENT),,Large,,364834825,5106205618,Construction Service Providers,Bridge House Pass Through Costs,BS32 4NH,752.50,
38,Communities & Local Government,DCLG,01/08/2014,Variable Maintenance < 15k,Finance & Corporate Services,INTERSERVE (FACILITIES MANAGEMENT),,Large,,364834825,5106205618,Construction Service Providers,5 SPP  Pass Through Costs,BS32 4NH,105.00,
39,Communities & Local Government,DCLG,01/08/2014,Vehicle hire,"Strategy, Communications and Private Office",GOVERNMENT CAR & DESPATCH AGENCY,,Public Bodies,,,5106205572,Vehicle Hire and Lease,Duty Car,SW8 5AX,895.25,
40,Communities & Local Government,DCLG,01/08/2014,Work In Progress Pre-Cert 40373 Spend,Neighbourhoods,EAST DURHAM BUSINESS SERVICE LTD,,Small,,,7600009273,,Revenue Grant To Be Paid,SR8 2QJ,"3,935.99",Yes
41,Communities & Local Government,DCLG,01/08/2014,Work In Progress Pre-Cert 40373 Spend,Neighbourhoods,GENERATOR,,Micro,,,7600009274,,Revenue Grant To Be Paid,NE1 2PQ,"17,622.04",Yes
42,Communities & Local Government,DCLG,01/08/2014,Work In Progress Pre-Cert 40373 Spend,Neighbourhoods,NEWCASTLEGATESHEAD INITIATIVE LTD,,Small,,,7600009275,,Revenue Grant To Be Paid,NE8 3AE,"44,887.43",Yes
43,Communities & Local Government,DCLG,01/08/2014,Work In Progress Pre-Cert 40373 Spend,Neighbourhoods,NEWCASTLEGATESHEAD INITIATIVE LTD,,Small,,,7600009277,,Revenue Grant To Be Paid,NE8 3AE,"35,649.36",Yes
44,Communities & Local Government,DCLG,01/08/2014,Work In Progress Pre-Cert 40373 Spend,Neighbourhoods,NORFOLK & WAVENEY ENTERPRISE SERV'S,,Medium,,,7600009272,,Revenue Grant To Be Paid,NR2 1JH,"55,127.16",Yes
45,Communities & Local Government,DCLG,01/08/2014,Work In Progress Pre-Cert 40373 Spend,Neighbourhoods,WAVENEY DISTRICT COUNCIL,,Public Bodies,,,7600009276,,Revenue Grant To Be Paid,NE32 1HS,"28,668.42",Yes
46,Communities & Local Government,DCLG,01/08/2014,Work In Progress Pre-Cert 40467 Spend,Neighbourhoods,EAST DURHAM BUSINESS SERVICE LTD,,Small,,,7600009273,,Capital Grant To Be Paid,SR8 2QJ,"2,150.70",Yes
47,Communities & Local Government,DCLG,04/08/2014,Advertising,"Strategy, Communications and Private Office",ENTER HERE LLP,,Medium,,672098311,5106205683,Advertising,Fire Kills extension 14/15,EC1R 0JH,"9,000.00",
48,Communities & Local Government,DCLG,04/08/2014,Agency Staff,Neighbourhoods,REED SPECIALIST RECRUITMENT LTD,,Large,,288656960,5106205677,Contingent Labour,Planning casework,SW20 OBA,373.46,
49,Communities & Local Government,DCLG,04/08/2014,Agency Staff,Neighbourhoods,REED SPECIALIST RECRUITMENT LTD,,Large,,288656960,5106205678,Contingent Labour,Planning casework AWR Extension1 Month,SW20 OBA,708.91,
50,Communities & Local Government,DCLG,04/08/2014,Current (non AEF) Grants to Local Authorities,Localism,WINCHESTER CITY CNCL,,,,228838280,2600061918,,Bellwin payments for Dec 2013 - Feb 14 floods,SO23 9LJ,"75,715.00",Yes
51,Communities & Local Government,DCLG,04/08/2014,Electricity,Finance & Corporate Services,BRITISH INDEPENDENT UTILITIES,,Medium,,,5106205520,Energy,Utilities Revenue for RCCs,FY8 2NA,636.48,
52,Communities & Local Government,DCLG,04/08/2014,Electricity,Finance & Corporate Services,BRITISH INDEPENDENT UTILITIES,,Medium,,,5106205522,Energy,Utilities Revenue for RCCs,FY8 2NA,"1,382.40",
53,Communities & Local Government,DCLG,04/08/2014,Electricity,Finance & Corporate Services,BRITISH INDEPENDENT UTILITIES,,Medium,,,5106205523,Energy,Utilities Revenue for RCCs,FY8 2NA,"1,449.36",
54,Communities & Local Government,DCLG,04/08/2014,Electricity,Finance & Corporate Services,BRITISH INDEPENDENT UTILITIES,,Medium,,,5106205673,Energy,Utilities Revenue for RCCs,FY8 2NA,655.20,
55,Communities & Local Government,DCLG,04/08/2014,Electricity,Finance & Corporate Services,BRITISH INDEPENDENT UTILITIES,,Medium,,,5106205674,Energy,Utilities Revenue for RCCs,FY8 2NA,"1,440.00",
56,Communities & Local Government,DCLG,04/08/2014,Electricity,Finance & Corporate Services,BRITISH INDEPENDENT UTILITIES,,Medium,,,5106205675,Energy,Utilities Revenue for RCCs,FY8 2NA,"1,437.48",
57,Communities & Local Government,DCLG,04/08/2014,Electricity,Finance & Corporate Services,BRITISH INDEPENDENT UTILITIES,,Medium,,,5106205702,Energy,Utilities Revenue for RCCs,FY8 2NA,341.29,
58,Communities & Local Government,DCLG,04/08/2014,Facilities Management (ISD use only),Finance & Corporate Services,INTERSERVE (FACILITIES MANAGEMENT),,Large,,364834825,5106205680,Building Management,2 MS iDEA fees 2013-14,BS32 4NH,"86,334.48",
59,Communities & Local Government,DCLG,04/08/2014,IT - Service Contracts,Finance & Corporate Services,FUJITSU SERVICES LTD,,Large,,423375062,5106205688,Managed / Outsourced Services,"FY 13/14 New Requirements ""NR"" Charges",WA3 9BD,"2,241.00",
60,Communities & Local Government,DCLG,04/08/2014,Publications,Neighbourhoods,SWETS INFORMATION SERVICES LTD,,Large,,216230292,5106205703,Learning and Development Materials,Encyclopedia of Compulsory Purchase & Co,OX14 1UQ,"1,191.00",
61,Communities & Local Government,DCLG,04/08/2014,Publicity,"Strategy, Communications and Private Office",JONES YARRELL LEADENHALL LTD,,Large,,211522354,5106205685,Advertising,Newspaper and Magazines 14/15,E3 3JH,743.22,
62,Communities & Local Government,DCLG,04/08/2014,Research,Finance & Corporate Services,GLENIGAN,,Large,,218633327,5106205637,Operational Services,Research - Data on stalled Development sites,BH8 8AQ,"12,500.00",
63,Communities & Local Government,DCLG,04/08/2014,Research,Finance & Corporate Services,OXFORD CONS SOCIAL INCLUSION LTD,,Micro,,291391860,5106205697,Operational Services,Research - Indices of Deprivation ,BN1 4GQ,"36,125.00",
64,Communities & Local Government,DCLG,04/08/2014,Software Licences,Finance & Corporate Services,BRAVO SOLUTION UK LTD,,Large,,345297134,5106205296,Software,Bravo licenses 2014-15,EC2V 5BB,"20,646.00",
65,Communities & Local Government,DCLG,04/08/2014,Steady State Service Provision,Finance & Corporate Services,CGI IT UK LIMITED,,Large,,239881618,5106205689,Business Process Outsourcing Services,Payroll Services & Licences   13/14,CF31 9AP,"7,120.28",
66,Communities & Local Government,DCLG,04/08/2014,Telecoms equipment (non-capitalised),Finance & Corporate Services,DAMOVO UK LTD,,Large,,221481042,5106205625,Telecoms,PINS 100 Teleworkers CCN030,RH12 4QP,"7,622.40",
67,Communities & Local Government,DCLG,04/08/2014,Work In Progress Pre-Cert 40373 Spend,Neighbourhoods,NORFOLK & WAVENEY ENTERPRISE SERV'S,,Medium,,,7600009280,,Revenue Grant To Be Paid,NR2 1JH,"36,690.07",Yes
68,Communities & Local Government,DCLG,04/08/2014,Work In Progress Pre-Cert 40373 Spend,Neighbourhoods,NORTH EAST FINANCE (HOLDCO),,,,,7600009284,,Revenue Grant To Be Paid,NE1 4AD,"149,857.31",Yes
69,Communities & Local Government,DCLG,04/08/2014,Work In Progress Pre-Cert 40373 Spend,Neighbourhoods,SERCO REGIONAL SERVICES LTD,,,,,7600009285,,Revenue Grant Clawback Offset,PL6 8LU,-2.25,Yes
70,Communities & Local Government,DCLG,04/08/2014,Work In Progress Pre-Cert 40373 Spend,Neighbourhoods,SERCO REGIONAL SERVICES LTD,,,,,7600009285,,Revenue Grant To Be Paid,PL6 8LU,"185,928.27",Yes
71,Communities & Local Government,DCLG,04/08/2014,Work In Progress Pre-Cert 40373 Spend,Neighbourhoods,STOCKTON BOROUGH COUNCIL,,,,,7600009278,,Revenue Grant Clawback Offset,TS18 1LD,-597.10,Yes
72,Communities & Local Government,DCLG,04/08/2014,Work In Progress Pre-Cert 40373 Spend,Neighbourhoods,STOCKTON BOROUGH COUNCIL,,,,,7600009278,,Revenue Grant To Be Paid,TS18 1LD,"22,118.74",Yes
73,Communities & Local Government,DCLG,04/08/2014,Work In Progress Pre-Cert 40373 Spend,Neighbourhoods,UNIVERSITY COLLEGE FALMOUTH,,,,,7600009279,,Revenue Grant To Be Paid,TR11 4RH,"53,964.36",Yes
74,Communities & Local Government,DCLG,04/08/2014,Work In Progress Pre-Cert 40373 Spend,Neighbourhoods,WEST MIDS MANUFACTURING CONSORTIUM,,Small,,,2300002093,,Contact: Lorraine Holmes.,WV10 9TG,"-8,531.96",Yes
75,Communities & Local Government,DCLG,04/08/2014,Work In Progress Pre-Cert 40467 Spend,Neighbourhoods,APPLE AVIATION LTD,,,,,7600009281,,Capital Grant To Be Paid,WA7 3EH,"33,779.30",Yes
76,Communities & Local Government,DCLG,04/08/2014,Work In Progress Pre-Cert 40467 Spend,Neighbourhoods,CORNWALL COLLEGE,,,,,7600009282,,Capital Grant To Be Paid,TR15 3RD,"191,960.96",Yes
77,Communities & Local Government,DCLG,04/08/2014,Work In Progress Pre-Cert 40467 Spend,Neighbourhoods,JARRANG LTD,,,,,7600009286,,Capital Grant To Be Paid,TR11 4SZ,"10,845.04",Yes
78,Communities & Local Government,DCLG,04/08/2014,Work In Progress Pre-Cert 40467 Spend,Neighbourhoods,STOCKTON BOROUGH COUNCIL,,,,,7600009283,,Capital Grant To Be Paid,TS18 1LD,"116,203.95",Yes
79,Communities & Local Government,DCLG,05/08/2014,Agency Staff,Finance & Corporate Services,CAPITA BUS. SERV. LTD (CON LAB),,Large,,,5106205719,Contingent Labour,Interim and Specialist Contractor,DL1 9HB,"6,005.28",
80,Communities & Local Government,DCLG,05/08/2014,Agency Staff,Finance & Corporate Services,CAPITA BUS. SERV. LTD (CON LAB),,Large,,,5106205723,Contingent Labour,Interim Manager,DL1 9HB,"4,443.78",
81,Communities & Local Government,DCLG,05/08/2014,Agency Staff,Finance & Corporate Services,CAPITA BUS. SERV. LTD (CON LAB),,Large,,,5106205739,Contingent Labour,Interim and Specialist Contractor,DL1 9HB,"4,636.66",
82,Communities & Local Government,DCLG,05/08/2014,Agency Staff,Finance & Corporate Services,CAPITA BUS. SERV. LTD (CSL),,Large,,215580993,5106205729,Contingent Labour,Interim and Specialist Contractor,DL1 9HB,"3,958.92",
83,Communities & Local Government,DCLG,05/08/2014,Agency Staff,Finance & Corporate Services,INTERQUEST GROUP UK LIMITED,,Large,,423935241,5106205728,Contingent Labour,SAP Support until closedown,EC1N 8TS,"6,382.80",
84,Communities & Local Government,DCLG,05/08/2014,Agency Staff,Finance & Corporate Services,INTERQUEST GROUP UK LIMITED,,Large,,423935241,5106205728,Contingent Labour,SAP Technical Suport Sept to Mar2012,EC1N 8TS,709.20,
85,Communities & Local Government,DCLG,05/08/2014,Agency Staff,Neighbourhoods,CAPITA BUS. SERV. LTD (CON LAB),,Large,,,5106205717,Contingent Labour,Interim Manager,DL1 9HB,"1,639.92",
86,Communities & Local Government,DCLG,05/08/2014,Agency Staff,Neighbourhoods,CAPITA BUS. SERV. LTD (CON LAB),,Large,,,5106205718,Contingent Labour,Interim assessor,DL1 9HB,"2,028.42",
87,Communities & Local Government,DCLG,05/08/2014,Agency Staff,Neighbourhoods,CAPITA BUS. SERV. LTD (CON LAB),,Large,,,5106205720,Contingent Labour,Interim and Specialist Contractor,DL1 9HB,"1,833.60",
88,Communities & Local Government,DCLG,05/08/2014,Agency Staff,Neighbourhoods,CAPITA BUS. SERV. LTD (CON LAB),,Large,,,5106205722,Contingent Labour,Interim and Specialist Contractor,DL1 9HB,"9,817.20",
89,Communities & Local Government,DCLG,05/08/2014,Agency Staff,Neighbourhoods,CAPITA BUS. SERV. LTD (CON LAB),,Large,,,5106205726,Contingent Labour,Interim and Specialist Contractor,DL1 9HB,"1,963.44",
90,Communities & Local Government,DCLG,05/08/2014,Agency Staff,Neighbourhoods,CAPITA BUS. SERV. LTD (CON LAB),,Large,,,5106205730,Contingent Labour,Interim regional assessor,DL1 9HB,"1,951.92",
91,Communities & Local Government,DCLG,05/08/2014,Agency Staff,Neighbourhoods,CAPITA BUS. SERV. LTD (CSL),,Large,,215580993,5106205709,Contingent Labour,Interim and Specialist Contractor,DL1 9HB,"7,302.31",
92,Communities & Local Government,DCLG,05/08/2014,Agency Staff,Neighbourhoods,CAPITA BUS. SERV. LTD (CSL),,Large,,215580993,5106205712,Contingent Labour,Interim Manager,DL1 9HB,"1,622.74",
93,Communities & Local Government,DCLG,05/08/2014,Agency Staff,Neighbourhoods,CAPITA BUS. SERV. LTD (CSL),,Large,,215580993,5106205721,Contingent Labour,Interim Manager,DL1 9HB,"6,134.18",
94,Communities & Local Government,DCLG,05/08/2014,Agency Staff,Neighbourhoods,CAPITA BUS. SERV. LTD (CSL),,Large,,215580993,5106205727,Contingent Labour,Interim and Specialist Contractor,DL1 9HB,"4,936.08",
95,Communities & Local Government,DCLG,05/08/2014,Agency Staff,Neighbourhoods,CAPITA BUS. SERV. LTD (CSL),,Large,,215580993,5106205740,Contingent Labour,Interim and Specialist Contractor,DL1 9HB,"6,654.84",
96,Communities & Local Government,DCLG,05/08/2014,Current (non AEF) Grants to Local Authorities,Localism,BOSTON BC,,,,236417713,2600061922,,Payment to Boston BC Dec to Feb flooding 13-14,PE21 8QR,"123,230.00",Yes
97,Communities & Local Government,DCLG,05/08/2014,Current (non AEF) Grants to Local Authorities,Localism,COPELAND BC,,,,236414827,2600061921,,Payment to Copeland BC Dec to Feb flooding 13-14,CA28 7NY,"130,350.00",Yes
98,Communities & Local Government,DCLG,05/08/2014,Current (non AEF) Grants to Local Authorities,Localism,COUNTY DURHAM & DARLINGTON,,,,424872851,5000255254,,Overpayment of Grant recovered by Exchequer,DH1 5UE,"-98,031.00",Yes
99,Communities & Local Government,DCLG,05/08/2014,Current (non AEF) Grants to Local Authorities,Localism,TANDRIDGE DC,,,,225481076,2600061920,,Payment to Tandridge Dec to Feb flooding 13-14,RH8 0BT,"82,294.00",Yes
100,Communities & Local Government,DCLG,05/08/2014,Current Grants to Non Profit Bodies,Neighbourhoods,SHELTER NAT CAMPAIGN HOMELESS PEOPL,,Large,,,5000259208,,Preventing Homelessness Grant (VOL),EC1V 9HU,"618,885.00",Yes
103,Communities & Local Government,DCLG,05/08/2014,Misc Receipts,Localism,EISCA LTD,,Micro,,,2300002163,,Recovery of funding for media work,C2M 1NH,"-38,009.11",
104,Communities & Local Government,DCLG,05/08/2014,Professional services,Finance & Corporate Services,GVA GRIMLEY LTD,,Large,,210158990,5106205631,Accommodation Services,Quadrennial Report - Burl Hse - Com 131,B1 2JB,"10,230.00",
105,Communities & Local Government,DCLG,05/08/2014,Services provided by other Govt Orgs,Neighbourhoods,WEST OF ENGLAND UNIVERSITY,,Large,,217032499,2300002170,Business and Commercial Services,Refund of overpayment - 5106152733,BS16 1QY,"-12,000.00",Yes
106,Communities & Local Government,DCLG,05/08/2014,Steady State Service Provision,Neighbourhoods,TRIBAL EDUCATION-MANAGEMENT FEES,,Large,,221445146,5106205724,Business Process Outsourcing Services,Payment to Tribal re Empty Homes Community Fund for DCLG,BS2 8RR,"6,788.16",
107,Communities & Local Government,DCLG,05/08/2014,Telecoms equipment (non-capitalised),Finance & Corporate Services,DAMOVO UK LTD,,Large,,221481042,5106205731,Telecoms,Regional Hubs Mont5hly recurring and Lin,RH12 4QP,"1,074.29",
108,Communities & Local Government,DCLG,05/08/2014,Telecoms equipment (non-capitalised),Finance & Corporate Services,DAMOVO UK LTD,,Large,,221481042,5106205732,Telecoms,Telephone Support Services,RH12 4QP,"7,783.07",
109,Communities & Local Government,DCLG,05/08/2014,Vehicle hire,"Strategy, Communications and Private Office",GOVERNMENT CAR & DESPATCH AGENCY,,Public Bodies,,,5106205736,Vehicle Hire and Lease,Duty Car,SW8 5AX,"3,230.23",
110,Communities & Local Government,DCLG,05/08/2014,Vehicle hire,"Strategy, Communications and Private Office",GOVERNMENT CAR & DESPATCH AGENCY,,Public Bodies,,,5106205736,Vehicle Hire and Lease,Duty Car,SW8 5AX,"4,074.94",
111,Communities & Local Government,DCLG,05/08/2014,Work In Progress Pre-Cert 40373 Spend,Neighbourhoods,IFM EDUCATION & CONSULTANCY SERVICE,,Small,,,7600009287,,Revenue Grant Clawback Offset,CB3 0FS,-22.77,Yes
112,Communities & Local Government,DCLG,05/08/2014,Work In Progress Pre-Cert 40373 Spend,Neighbourhoods,IFM EDUCATION & CONSULTANCY SERVICE,,Small,,,7600009287,,Revenue Grant To Be Paid,CB3 0FS,"77,058.31",Yes
113,Communities & Local Government,DCLG,05/08/2014,Work In Progress Pre-Cert 40373 Spend,Neighbourhoods,IN COMMUNITIES GROUP LTD,,Large,,,7600009288,,Revenue Grant To Be Paid,BD18 3NT,"41,081.49",Yes
114,Communities & Local Government,DCLG,05/08/2014,Work In Progress Pre-Cert 40373 Spend,Neighbourhoods,IN COMMUNITIES GROUP LTD,,Large,,,7600009295,,Revenue Grant To Be Paid,BD18 3NT,"12,294.93",Yes
115,Communities & Local Government,DCLG,05/08/2014,Work In Progress Pre-Cert 40373 Spend,Neighbourhoods,KEY FUND INVESTMENTS LTD,,Small,,,7600009290,,Revenue Grant To Be Paid,S9 3TY,"3,057.92",Yes
116,Communities & Local Government,DCLG,05/08/2014,Work In Progress Pre-Cert 40373 Spend,Neighbourhoods,KEY FUND INVESTMENTS LTD,,Small,,,7600009294,,Revenue Grant To Be Paid,S9 3TY,"2,771.25",Yes
117,Communities & Local Government,DCLG,05/08/2014,Work In Progress Pre-Cert 40373 Spend,Neighbourhoods,LEEDS CITY COUNCIL,,,,,7600009289,,Revenue Grant To Be Paid,LS1 1UR,"41,570.60",Yes
118,Communities & Local Government,DCLG,05/08/2014,Work In Progress Pre-Cert 40373 Spend,Neighbourhoods,OXFORD INNOVATION SERVICES LTD,,Medium,,,7600009296,,Revenue Grant To Be Paid,OX1 1BY,"436,406.63",Yes
119,Communities & Local Government,DCLG,05/08/2014,Work In Progress Pre-Cert 40467 Spend,Neighbourhoods,KEY FUND INVESTMENTS LTD,,Small,,,7600009290,,Capital Grant To Be Paid,S9 3TY,"116,600.00",Yes
120,Communities & Local Government,DCLG,05/08/2014,Work In Progress Pre-Cert 40467 Spend,Neighbourhoods,KEY FUND INVESTMENTS LTD,,Small,,,7600009291,,Capital Grant To Be Paid,S9 3TY,"117,869.50",Yes
121,Communities & Local Government,DCLG,05/08/2014,Work In Progress Pre-Cert 40467 Spend,Neighbourhoods,KEY FUND INVESTMENTS LTD,,Small,,,7600009293,,Capital Grant To Be Paid,S9 3TY,"238,638.15",Yes
122,Communities & Local Government,DCLG,05/08/2014,Work In Progress Pre-Cert 40467 Spend,Neighbourhoods,KEY FUND INVESTMENTS LTD,,Small,,,7600009294,,Capital Grant To Be Paid,S9 3TY,"157,410.00",Yes
123,Communities & Local Government,DCLG,05/08/2014,Work In Progress Pre-Cert 40467 Spend,Neighbourhoods,UNITY HOUSE (WAKEFIELD) LTD,,Micro,,,7600009292,,Capital Grant To Be Paid,LS8 5HS,"165,841.45",Yes
124,Communities & Local Government,DCLG,06/08/2014,Accommodation - actuals,Finance & Corporate Services,REDFERN TRAVEL LIMITED,,Small,,213089972,2100245303,Business Travel Accommodation,Consolidated Monthly Travel July Hotels,BD1 3AZ,"2,546.99",
125,Communities & Local Government,DCLG,06/08/2014,Accommodation - actuals,Finance & Corporate Services,REDFERN TRAVEL LIMITED,,Small,,213089972,2100245303,Business Travel Accommodation,Consolidated Monthly Travel July Hotels,BD1 3AZ,478.65,
126,Communities & Local Government,DCLG,06/08/2014,Accommodation - actuals,Finance & Corporate Services,REDFERN TRAVEL LIMITED,,Small,,213089972,2100245303,Business Travel Accommodation,Consolidated Monthly Travel July Hotels,BD1 3AZ,255.00,
127,Communities & Local Government,DCLG,06/08/2014,Accommodation - actuals,Localism,REDFERN TRAVEL LIMITED,,Small,,213089972,2100245303,Business Travel Accommodation,Consolidated Monthly Travel July Hotels,BD1 3AZ,802.50,
128,Communities & Local Government,DCLG,06/08/2014,Accommodation - actuals,Localism,REDFERN TRAVEL LIMITED,,Small,,213089972,2100245303,Business Travel Accommodation,Consolidated Monthly Travel July Hotels,BD1 3AZ,"2,190.80",
129,Communities & Local Government,DCLG,06/08/2014,Accommodation - actuals,Localism,REDFERN TRAVEL LIMITED,,Small,,213089972,2100245303,Business Travel Accommodation,Consolidated Monthly Travel July Hotels,BD1 3AZ,"1,708.50",
130,Communities & Local Government,DCLG,06/08/2014,Accommodation - actuals,Localism,REDFERN TRAVEL LIMITED,,Small,,213089972,2100245303,Business Travel Accommodation,Consolidated Monthly Travel July Hotels,BD1 3AZ,387.13,
131,Communities & Local Government,DCLG,06/08/2014,Accommodation - actuals,Localism,REDFERN TRAVEL LIMITED,,Small,,213089972,2100245303,Business Travel Accommodation,Consolidated Monthly Travel July Hotels,BD1 3AZ,"1,919.04",
132,Communities & Local Government,DCLG,06/08/2014,Accommodation - actuals,Neighbourhoods,REDFERN TRAVEL LIMITED,,Small,,213089972,2100245303,Business Travel Accommodation,Consolidated Monthly Travel July Hotels,BD1 3AZ,659.23,
133,Communities & Local Government,DCLG,06/08/2014,Accommodation - actuals,Neighbourhoods,REDFERN TRAVEL LIMITED,,Small,,213089972,2100245303,Business Travel Accommodation,Consolidated Monthly Travel July Hotels,BD1 3AZ,824.97,
134,Communities & Local Government,DCLG,06/08/2014,Accommodation - actuals,Neighbourhoods,REDFERN TRAVEL LIMITED,,Small,,213089972,2100245303,Business Travel Accommodation,Consolidated Monthly Travel July Hotels,BD1 3AZ,276.14,
135,Communities & Local Government,DCLG,06/08/2014,Accommodation - actuals,Neighbourhoods,REDFERN TRAVEL LIMITED,,Small,,213089972,2100245303,Business Travel Accommodation,Consolidated Monthly Travel July Hotels,BD1 3AZ,"1,471.50",
136,Communities & Local Government,DCLG,06/08/2014,Accommodation - actuals,Neighbourhoods,REDFERN TRAVEL LIMITED,,Small,,213089972,2100245303,Business Travel Accommodation,Consolidated Monthly Travel July Hotels,BD1 3AZ,987.04,
137,Communities & Local Government,DCLG,06/08/2014,Accommodation - actuals,Neighbourhoods,REDFERN TRAVEL LIMITED,,Small,,213089972,2100245303,Business Travel Accommodation,Consolidated Monthly Travel July Hotels,BD1 3AZ,699.77,
138,Communities & Local Government,DCLG,06/08/2014,Accommodation - actuals,Neighbourhoods,REDFERN TRAVEL LIMITED,,Small,,213089972,2100245303,Business Travel Accommodation,Consolidated Monthly Travel July Hotels,BD1 3AZ,446.83,
139,Communities & Local Government,DCLG,06/08/2014,Accommodation - actuals,Neighbourhoods,REDFERN TRAVEL LIMITED,,Small,,213089972,2100245303,Business Travel Accommodation,Consolidated Monthly Travel July Hotels,BD1 3AZ,443.00,
140,Communities & Local Government,DCLG,06/08/2014,Accommodation - actuals,"Strategy, Communications and Private Office",REDFERN TRAVEL LIMITED,,Small,,213089972,2100245303,Business Travel Accommodation,Consolidated Monthly Travel July Hotels,BD1 3AZ,293.40,
141,Communities & Local Government,DCLG,06/08/2014,Accommodation - actuals,Troubled Families,REDFERN TRAVEL LIMITED,,Small,,213089972,2100245303,Business Travel Accommodation,Consolidated Monthly Travel July Hotels,BD1 3AZ,"1,364.90",
142,Communities & Local Government,DCLG,06/08/2014,Agency Staff,Neighbourhoods,CAPITA RESOURCING LTD,,Large,,215581006,5106205743,Contingent Labour,Interim Manager,SL6 1DP,"2,616.00",
143,Communities & Local Government,DCLG,06/08/2014,Air Travel,Finance & Corporate Services,REDFERN TRAVEL LIMITED,,Small,,213089972,2100245303,Air,Consolidated Monthly Travel July Air Tickets,BD1 3AZ,802.87,
144,Communities & Local Government,DCLG,06/08/2014,Air Travel,Neighbourhoods,REDFERN TRAVEL LIMITED,,Small,,213089972,2100245303,Air,Consolidated Monthly Travel July Air Tickets,BD1 3AZ,"1,637.77",
145,Communities & Local Government,DCLG,06/08/2014,Air Travel,"Strategy, Communications and Private Office",REDFERN TRAVEL LIMITED,,Small,,213089972,2100245303,Air,Consolidated Monthly Travel July Air Tickets,BD1 3AZ,400.00,
146,Communities & Local Government,DCLG,06/08/2014,Current (non AEF) Grants to Local Authorities,Troubled Families,SOUTHWARK LB,,,,,5000258756,,Overpayment of Grant recovered by Exchequer,SE1 2QH,"-39,900.00",Yes
147,Communities & Local Government,DCLG,06/08/2014,Grant in Aid to NDPBs (non budget),Neighbourhoods,HOMES & COMMUNITIES AGENCY,,Public Bodies,,215576860,2100245298,,HCAST - Monthly HCA Grant in Aid Claim,NE11 0NA,"212,810,602.00",Yes
148,Communities & Local Government,DCLG,06/08/2014,"IT - PC, Network & Hardware",Finance & Corporate Services,COMPUTACENTER (UK) LTD,,Large,,226023463,5106205715,ICT Hardware,Aten CS22U KVM Switches part No. 2045608,AL10 9TW,645.12,
149,Communities & Local Government,DCLG,06/08/2014,IT - Service Contracts,Localism,AIRWAVE SOLUTIONS LTD,,Large,,211461729,5106205532,Managed / Outsourced Services,Phase A England 2014/15,SL1 2EJ,"-28,369.05",
150,Communities & Local Government,DCLG,06/08/2014,IT - Service Contracts,Localism,AIRWAVE SOLUTIONS LTD,,Large,,211461729,5106205532,Managed / Outsourced Services,Phase A Wales 2014/15,SL1 2EJ,"-3,067.29",
151,Communities & Local Government,DCLG,06/08/2014,IT - Service Contracts,Localism,AIRWAVE SOLUTIONS LTD,,Large,,211461729,5106205532,Managed / Outsourced Services,Phase A Scotland 2014/15,SL1 2EJ,"-9,215.42",
152,Communities & Local Government,DCLG,06/08/2014,IT - Service Contracts,Localism,AIRWAVE SOLUTIONS LTD,,Large,,211461729,5106205752,Managed / Outsourced Services,Phase B Wales 2014/15,SL1 2EJ,"32,219.77",
153,Communities & Local Government,DCLG,06/08/2014,IT - Service Contracts,Localism,AIRWAVE SOLUTIONS LTD,,Large,,211461729,5106205775,Managed / Outsourced Services,RPI ENGLAND,SL1 2EJ,"1,815,783.71",
154,Communities & Local Government,DCLG,06/08/2014,IT - Service Contracts,Localism,AIRWAVE SOLUTIONS LTD,,Large,,211461729,5106205775,Managed / Outsourced Services,RPI WALES,SL1 2EJ,"232,905.37",
155,Communities & Local Government,DCLG,06/08/2014,IT - Service Contracts,Localism,AIRWAVE SOLUTIONS LTD,,Large,,211461729,5106205775,Managed / Outsourced Services,RPI SCOTLAND,SL1 2EJ,"386,791.16",
156,Communities & Local Government,DCLG,06/08/2014,IT - Service Contracts,Localism,AIRWAVE SOLUTIONS LTD,,Large,,211461729,5106205777,Managed / Outsourced Services,Phase C England (MDT1A) 2014/15,SL1 2EJ,"108,987.17",
157,Communities & Local Government,DCLG,06/08/2014,IT - Service Contracts,Localism,AIRWAVE SOLUTIONS LTD,,Large,,211461729,5106205778,Managed / Outsourced Services,Phase A Wales 2014/15,SL1 2EJ,"140,950.56",
158,Communities & Local Government,DCLG,06/08/2014,IT - Service Contracts,Localism,AIRWAVE SOLUTIONS LTD,,Large,,211461729,5106205779,Managed / Outsourced Services,Phase A England 2014/15,SL1 2EJ,"1,028,572.88",
159,Communities & Local Government,DCLG,06/08/2014,IT - Service Contracts,Localism,AIRWAVE SOLUTIONS LTD,,Large,,211461729,5106205784,Managed / Outsourced Services,Phase A England 2014/15,SL1 2EJ,"297,594.17",
160,Communities & Local Government,DCLG,06/08/2014,IT - Service Contracts,Localism,AIRWAVE SOLUTIONS LTD,,Large,,211461729,5106205784,Managed / Outsourced Services,Phase B England 2014/15,SL1 2EJ,"57,108.34",
161,Communities & Local Government,DCLG,06/08/2014,IT - Service Contracts,Localism,AIRWAVE SOLUTIONS LTD,,Large,,211461729,5106205784,Managed / Outsourced Services,Phase C England (MDT1A) 2014/15,SL1 2EJ,"29,160.50",
162,Communities & Local Government,DCLG,06/08/2014,IT - Service Contracts,Localism,AIRWAVE SOLUTIONS LTD,,Large,,211461729,5106205784,Managed / Outsourced Services,Phase A Wales 2014/15,SL1 2EJ,"40,118.06",
163,Communities & Local Government,DCLG,06/08/2014,IT - Service Contracts,Localism,AIRWAVE SOLUTIONS LTD,,Large,,211461729,5106205784,Managed / Outsourced Services,Phase B Wales 2014/15,SL1 2EJ,"8,395.14",
164,Communities & Local Government,DCLG,06/08/2014,IT - Service Contracts,Localism,AIRWAVE SOLUTIONS LTD,,Large,,211461729,5106205784,Managed / Outsourced Services,Phase A Scotland 2014/15,SL1 2EJ,"80,831.26",
165,Communities & Local Government,DCLG,06/08/2014,IT - Service Contracts,Localism,AIRWAVE SOLUTIONS LTD,,Large,,211461729,5106205784,Managed / Outsourced Services,Phase B Scotland 2014/15,SL1 2EJ,405.46,
166,Communities & Local Government,DCLG,06/08/2014,Publications,Finance & Corporate Services,JONES YARRELL LEADENHALL LTD,,Large,,211522354,5106205742,Learning and Development Materials,Journal and Newspaper supply 2014-15,E3 3JH,340.70,
167,Communities & Local Government,DCLG,06/08/2014,Publicity,"Strategy, Communications and Private Office",GORKANA GROUP LTD,,Large,,210089876,5106205745,Advertising,Press cuttings,EC1Y 8QE,"2,776.63",
168,Communities & Local Government,DCLG,06/08/2014,"Rail, Underground and Eurostar",Finance & Corporate Services,REDFERN TRAVEL LIMITED,,Small,,213089972,2100245303,Rail,Consolidated Monthly Travel July Rail,BD1 3AZ,"1,453.33",
169,Communities & Local Government,DCLG,06/08/2014,"Rail, Underground and Eurostar",Finance & Corporate Services,REDFERN TRAVEL LIMITED,,Small,,213089972,2100245303,Rail,Consolidated Monthly Travel July Rail,BD1 3AZ,"1,428.40",
170,Communities & Local Government,DCLG,06/08/2014,"Rail, Underground and Eurostar",Finance & Corporate Services,REDFERN TRAVEL LIMITED,,Small,,213089972,2100245303,Rail,Consolidated Monthly Travel July Rail,BD1 3AZ,851.93,
171,Communities & Local Government,DCLG,06/08/2014,"Rail, Underground and Eurostar",Finance & Corporate Services,REDFERN TRAVEL LIMITED,,Small,,213089972,2100245303,Rail,Consolidated Monthly Travel July Rail,BD1 3AZ,253.16,
172,Communities & Local Government,DCLG,06/08/2014,"Rail, Underground and Eurostar",Finance & Corporate Services,REDFERN TRAVEL LIMITED,,Small,,213089972,2100245303,Rail,Consolidated Monthly Travel July Rail,BD1 3AZ,"2,679.07",
173,Communities & Local Government,DCLG,06/08/2014,"Rail, Underground and Eurostar",Finance & Corporate Services,REDFERN TRAVEL LIMITED,,Small,,213089972,2100245303,Rail,Consolidated Monthly Travel July Rail,BD1 3AZ,"4,189.72",
174,Communities & Local Government,DCLG,06/08/2014,"Rail, Underground and Eurostar",Finance & Corporate Services,REDFERN TRAVEL LIMITED,,Small,,213089972,2100245303,Rail,Consolidated Monthly Travel July Rail,BD1 3AZ,498.99,
175,Communities & Local Government,DCLG,06/08/2014,"Rail, Underground and Eurostar",Finance & Corporate Services,REDFERN TRAVEL LIMITED,,Small,,213089972,2100245303,Rail,Consolidated Monthly Travel July Rail,BD1 3AZ,809.55,
176,Communities & Local Government,DCLG,06/08/2014,"Rail, Underground and Eurostar",Finance & Corporate Services,REDFERN TRAVEL LIMITED,,Small,,213089972,2100245303,Rail,Consolidated Monthly Travel July Rail,BD1 3AZ,355.40,
177,Communities & Local Government,DCLG,06/08/2014,"Rail, Underground and Eurostar",Finance & Corporate Services,REDFERN TRAVEL LIMITED,,Small,,213089972,2100245303,Rail,Consolidated Monthly Travel July Rail,BD1 3AZ,426.95,
178,Communities & Local Government,DCLG,06/08/2014,"Rail, Underground and Eurostar",Finance & Corporate Services,REDFERN TRAVEL LIMITED,,Small,,213089972,2100245303,Rail,Consolidated Monthly Travel July Rail,BD1 3AZ,"1,752.82",
179,Communities & Local Government,DCLG,06/08/2014,"Rail, Underground and Eurostar",Finance & Corporate Services,REDFERN TRAVEL LIMITED,,Small,,213089972,2100245303,Rail,Consolidated Monthly Travel July Rail,BD1 3AZ,"1,200.43",
180,Communities & Local Government,DCLG,06/08/2014,"Rail, Underground and Eurostar",Localism,REDFERN TRAVEL LIMITED,,Small,,213089972,2100245303,Rail,Consolidated Monthly Travel July Rail,BD1 3AZ,262.49,
181,Communities & Local Government,DCLG,06/08/2014,"Rail, Underground and Eurostar",Localism,REDFERN TRAVEL LIMITED,,Small,,213089972,2100245303,Rail,Consolidated Monthly Travel July Rail,BD1 3AZ,585.75,
182,Communities & Local Government,DCLG,06/08/2014,"Rail, Underground and Eurostar",Localism,REDFERN TRAVEL LIMITED,,Small,,213089972,2100245303,Rail,Consolidated Monthly Travel July Rail,BD1 3AZ,402.42,
183,Communities & Local Government,DCLG,06/08/2014,"Rail, Underground and Eurostar",Localism,REDFERN TRAVEL LIMITED,,Small,,213089972,2100245303,Rail,Consolidated Monthly Travel July Rail,BD1 3AZ,"1,880.64",
184,Communities & Local Government,DCLG,06/08/2014,"Rail, Underground and Eurostar",Localism,REDFERN TRAVEL LIMITED,,Small,,213089972,2100245303,Rail,Consolidated Monthly Travel July Rail,BD1 3AZ,259.84,
185,Communities & Local Government,DCLG,06/08/2014,"Rail, Underground and Eurostar",Localism,REDFERN TRAVEL LIMITED,,Small,,213089972,2100245303,Rail,Consolidated Monthly Travel July Rail,BD1 3AZ,"1,247.05",
186,Communities & Local Government,DCLG,06/08/2014,"Rail, Underground and Eurostar",Localism,REDFERN TRAVEL LIMITED,,Small,,213089972,2100245303,Rail,Consolidated Monthly Travel July Rail,BD1 3AZ,597.49,
187,Communities & Local Government,DCLG,06/08/2014,"Rail, Underground and Eurostar",Localism,REDFERN TRAVEL LIMITED,,Small,,213089972,2100245303,Rail,Consolidated Monthly Travel July Rail,BD1 3AZ,"2,367.41",
188,Communities & Local Government,DCLG,06/08/2014,"Rail, Underground and Eurostar",Localism,REDFERN TRAVEL LIMITED,,Small,,213089972,2100245303,Rail,Consolidated Monthly Travel July Rail,BD1 3AZ,936.51,
189,Communities & Local Government,DCLG,06/08/2014,"Rail, Underground and Eurostar",Localism,REDFERN TRAVEL LIMITED,,Small,,213089972,2100245303,Rail,Consolidated Monthly Travel July Rail,BD1 3AZ,"2,473.68",
190,Communities & Local Government,DCLG,06/08/2014,"Rail, Underground and Eurostar",Localism,REDFERN TRAVEL LIMITED,,Small,,213089972,2100245303,Rail,Consolidated Monthly Travel July Rail,BD1 3AZ,"3,606.86",
191,Communities & Local Government,DCLG,06/08/2014,"Rail, Underground and Eurostar",Localism,REDFERN TRAVEL LIMITED,,Small,,213089972,2100245303,Rail,Consolidated Monthly Travel July Rail,BD1 3AZ,"1,947.26",
192,Communities & Local Government,DCLG,06/08/2014,"Rail, Underground and Eurostar",Localism,REDFERN TRAVEL LIMITED,,Small,,213089972,2100245303,Rail,Consolidated Monthly Travel July Rail,BD1 3AZ,"1,024.09",
193,Communities & Local Government,DCLG,06/08/2014,"Rail, Underground and Eurostar",Localism,REDFERN TRAVEL LIMITED,,Small,,213089972,2100245303,Rail,Consolidated Monthly Travel July Rail,BD1 3AZ,"1,169.72",
194,Communities & Local Government,DCLG,06/08/2014,"Rail, Underground and Eurostar",Localism,REDFERN TRAVEL LIMITED,,Small,,213089972,2100245303,Rail,Consolidated Monthly Travel July Rail,BD1 3AZ,939.39,
195,Communities & Local Government,DCLG,06/08/2014,"Rail, Underground and Eurostar",Localism,REDFERN TRAVEL LIMITED,,Small,,213089972,2100245303,Rail,Consolidated Monthly Travel July Rail,BD1 3AZ,"6,848.85",
196,Communities & Local Government,DCLG,06/08/2014,"Rail, Underground and Eurostar",Neighbourhoods,REDFERN TRAVEL LIMITED,,Small,,213089972,2100245303,Rail,Consolidated Monthly Travel July Rail,BD1 3AZ,446.67,
197,Communities & Local Government,DCLG,06/08/2014,"Rail, Underground and Eurostar",Neighbourhoods,REDFERN TRAVEL LIMITED,,Small,,213089972,2100245303,Rail,Consolidated Monthly Travel July Rail,BD1 3AZ,733.07,
198,Communities & Local Government,DCLG,06/08/2014,"Rail, Underground and Eurostar",Neighbourhoods,REDFERN TRAVEL LIMITED,,Small,,213089972,2100245303,Rail,Consolidated Monthly Travel July Rail,BD1 3AZ,"1,776.81",
199,Communities & Local Government,DCLG,06/08/2014,"Rail, Underground and Eurostar",Neighbourhoods,REDFERN TRAVEL LIMITED,,Small,,213089972,2100245303,Rail,Consolidated Monthly Travel July Rail,BD1 3AZ,"3,177.74",
200,Communities & Local Government,DCLG,06/08/2014,"Rail, Underground and Eurostar",Neighbourhoods,REDFERN TRAVEL LIMITED,,Small,,213089972,2100245303,Rail,Consolidated Monthly Travel July Rail,BD1 3AZ,"3,799.59",
201,Communities & Local Government,DCLG,06/08/2014,"Rail, Underground and Eurostar",Neighbourhoods,REDFERN TRAVEL LIMITED,,Small,,213089972,2100245303,Rail,Consolidated Monthly Travel July Rail,BD1 3AZ,293.85,
202,Communities & Local Government,DCLG,06/08/2014,"Rail, Underground and Eurostar",Neighbourhoods,REDFERN TRAVEL LIMITED,,Small,,213089972,2100245303,Rail,Consolidated Monthly Travel July Rail,BD1 3AZ,562.91,
203,Communities & Local Government,DCLG,06/08/2014,"Rail, Underground and Eurostar",Neighbourhoods,REDFERN TRAVEL LIMITED,,Small,,213089972,2100245303,Rail,Consolidated Monthly Travel July Rail,BD1 3AZ,"2,962.81",
204,Communities & Local Government,DCLG,06/08/2014,"Rail, Underground and Eurostar",Neighbourhoods,REDFERN TRAVEL LIMITED,,Small,,213089972,2100245303,Rail,Consolidated Monthly Travel July Rail,BD1 3AZ,427.64,
205,Communities & Local Government,DCLG,06/08/2014,"Rail, Underground and Eurostar",Neighbourhoods,REDFERN TRAVEL LIMITED,,Small,,213089972,2100245303,Rail,Consolidated Monthly Travel July Rail,BD1 3AZ,"1,788.47",
206,Communities & Local Government,DCLG,06/08/2014,"Rail, Underground and Eurostar",Neighbourhoods,REDFERN TRAVEL LIMITED,,Small,,213089972,2100245303,Rail,Consolidated Monthly Travel July Rail,BD1 3AZ,"1,887.36",
207,Communities & Local Government,DCLG,06/08/2014,"Rail, Underground and Eurostar",Neighbourhoods,REDFERN TRAVEL LIMITED,,Small,,213089972,2100245303,Rail,Consolidated Monthly Travel July Rail,BD1 3AZ,"3,645.45",
208,Communities & Local Government,DCLG,06/08/2014,"Rail, Underground and Eurostar",Neighbourhoods,REDFERN TRAVEL LIMITED,,Small,,213089972,2100245303,Rail,Consolidated Monthly Travel July Rail,BD1 3AZ,"4,875.91",
209,Communities & Local Government,DCLG,06/08/2014,"Rail, Underground and Eurostar",Neighbourhoods,REDFERN TRAVEL LIMITED,,Small,,213089972,2100245303,Rail,Consolidated Monthly Travel July Rail,BD1 3AZ,"1,021.86",
210,Communities & Local Government,DCLG,06/08/2014,"Rail, Underground and Eurostar",Neighbourhoods,REDFERN TRAVEL LIMITED,,Small,,213089972,2100245303,Rail,Consolidated Monthly Travel July Rail,BD1 3AZ,461.54,
211,Communities & Local Government,DCLG,06/08/2014,"Rail, Underground and Eurostar",Neighbourhoods,REDFERN TRAVEL LIMITED,,Small,,213089972,2100245303,Rail,Consolidated Monthly Travel July Rail,BD1 3AZ,"1,551.38",
212,Communities & Local Government,DCLG,06/08/2014,"Rail, Underground and Eurostar",Neighbourhoods,REDFERN TRAVEL LIMITED,,Small,,213089972,2100245303,Rail,Consolidated Monthly Travel July Rail,BD1 3AZ,566.52,
213,Communities & Local Government,DCLG,06/08/2014,"Rail, Underground and Eurostar",Neighbourhoods,REDFERN TRAVEL LIMITED,,Small,,213089972,2100245303,Rail,Consolidated Monthly Travel July Rail,BD1 3AZ,"2,237.59",
214,Communities & Local Government,DCLG,06/08/2014,"Rail, Underground and Eurostar",Neighbourhoods,REDFERN TRAVEL LIMITED,,Small,,213089972,2100245303,Rail,Consolidated Monthly Travel July Rail,BD1 3AZ,"2,179.72",
215,Communities & Local Government,DCLG,06/08/2014,"Rail, Underground and Eurostar",Neighbourhoods,REDFERN TRAVEL LIMITED,,Small,,213089972,2100245303,Rail,Consolidated Monthly Travel July Rail,BD1 3AZ,"1,955.71",
216,Communities & Local Government,DCLG,06/08/2014,"Rail, Underground and Eurostar",Neighbourhoods,REDFERN TRAVEL LIMITED,,Small,,213089972,2100245303,Rail,Consolidated Monthly Travel July Rail,BD1 3AZ,"5,509.29",
217,Communities & Local Government,DCLG,06/08/2014,"Rail, Underground and Eurostar",Neighbourhoods,REDFERN TRAVEL LIMITED,,Small,,213089972,2100245303,Rail,Consolidated Monthly Travel July Rail,BD1 3AZ,"2,576.07",
218,Communities & Local Government,DCLG,06/08/2014,"Rail, Underground and Eurostar","Strategy, Communications and Private Office",REDFERN TRAVEL LIMITED,,Small,,213089972,2100245303,Rail,Consolidated Monthly Travel July Rail,BD1 3AZ,"1,078.29",
219,Communities & Local Government,DCLG,06/08/2014,"Rail, Underground and Eurostar","Strategy, Communications and Private Office",REDFERN TRAVEL LIMITED,,Small,,213089972,2100245303,Rail,Consolidated Monthly Travel July Rail,BD1 3AZ,476.60,
220,Communities & Local Government,DCLG,06/08/2014,"Rail, Underground and Eurostar","Strategy, Communications and Private Office",REDFERN TRAVEL LIMITED,,Small,,213089972,2100245303,Rail,Consolidated Monthly Travel July Rail,BD1 3AZ,986.72,
221,Communities & Local Government,DCLG,06/08/2014,"Rail, Underground and Eurostar","Strategy, Communications and Private Office",REDFERN TRAVEL LIMITED,,Small,,213089972,2100245303,Rail,Consolidated Monthly Travel July Rail,BD1 3AZ,295.77,
222,Communities & Local Government,DCLG,06/08/2014,"Rail, Underground and Eurostar","Strategy, Communications and Private Office",REDFERN TRAVEL LIMITED,,Small,,213089972,2100245303,Rail,Consolidated Monthly Travel July Rail,BD1 3AZ,"1,025.57",
223,Communities & Local Government,DCLG,06/08/2014,"Rail, Underground and Eurostar",Troubled Families,REDFERN TRAVEL LIMITED,,Small,,213089972,2100245303,Rail,Consolidated Monthly Travel July Rail,BD1 3AZ,"5,192.91",
224,Communities & Local Government,DCLG,06/08/2014,Recruitment,Finance & Corporate Services,H M TREASURY,,Public Bodies,,233590996,5106205760,Business Process Outsourcing Services,GES Fast Stream Recuitment ,NR7 0HS,"36,960.00",
225,Communities & Local Government,DCLG,06/08/2014,Research,Finance & Corporate Services,NATIONAL CENTRE FOR SOCIAL RESEARCH,,Large,,210363932,5106205749,Operational Services,Research - English Housing Survey ,EC1V 0AX,"13,500.00",
226,Communities & Local Government,DCLG,06/08/2014,Steady State Service Provision,Finance & Corporate Services,ALLPAY LIMITED,,Medium,,738359918,5106205753,Business Process Outsourcing Services,DC/DC Transaction Charges,HR1 3SE,487.35,
227,Communities & Local Government,DCLG,06/08/2014,Steady State Service Provision,Finance & Corporate Services,ALLPAY LIMITED,,Medium,,738359918,5106205753,Business Process Outsourcing Services,Monthly Management Fee Payments,HR1 3SE,500.00,
228,Communities & Local Government,DCLG,06/08/2014,Steady State Service Provision,Neighbourhoods,CEL GROUP,,Medium,,394794614,5106205746,Business Process Outsourcing Services,Housing Care & Support Foundation Contract-Ext to 30/09/14,WA2 0YL,"48,829.33",
229,Communities & Local Government,DCLG,06/08/2014,Telecoms equipment (non-capitalised),Finance & Corporate Services,DAMOVO UK LTD,,Large,,221481042,5106205770,Telecoms,MPLS Circuit Charges 9 sites,RH12 4QP,"12,503.58",
230,Communities & Local Government,DCLG,06/08/2014,Telecoms equipment (non-capitalised),Finance & Corporate Services,DAMOVO UK LTD,,Large,,221481042,5106205770,Telecoms,Regional Hubs Mont5hly recurring and Lin,RH12 4QP,"1,156.50",
231,Communities & Local Government,DCLG,06/08/2014,Telecoms equipment (non-capitalised),Finance & Corporate Services,DAMOVO UK LTD,,Large,,221481042,5106205770,Telecoms,Telephone Calls,RH12 4QP,"7,072.31",
232,Communities & Local Government,DCLG,06/08/2014,Telecoms equipment (non-capitalised),Finance & Corporate Services,DAMOVO UK LTD,,Large,,221481042,5106205770,Telecoms,Telephone Support Services,RH12 4QP,"93,225.20",
233,Communities & Local Government,DCLG,06/08/2014,Vehicle Maintenance,Localism,BABCOCK CRITICAL SERVICES LTD,,Large,,641006945,5106205789,Fleet Management,Consumables (Mobile Billing for Fleet),NG15 0DR,752.52,
234,Communities & Local Government,DCLG,06/08/2014,Work In Progress Pre-Cert 40373 Spend,Neighbourhoods,CASE-DA,,Micro,,,7600009309,,Revenue Grant To Be Paid,LE1 7EA,"38,776.82",Yes
235,Communities & Local Government,DCLG,06/08/2014,Work In Progress Pre-Cert 40373 Spend,Neighbourhoods,CHESHIRE EAST BOROUGH COUNCIL,,Large,,,7600009308,,Revenue Grant To Be Paid,CW1 2BJ,"48,812.27",Yes
236,Communities & Local Government,DCLG,06/08/2014,Work In Progress Pre-Cert 40373 Spend,Neighbourhoods,CHESHIRE WEST & CHESTER COUNCIL,,,,,7600009297,,Revenue Grant To Be Paid,CH1 2NP,"1,825.61",Yes
237,Communities & Local Government,DCLG,06/08/2014,Work In Progress Pre-Cert 40373 Spend,Neighbourhoods,CHESHIRE WEST & CHESTER COUNCIL,,,,,7600009318,,Revenue Grant Clawback Offset,CH1 2NP,"-1,170.50",Yes
238,Communities & Local Government,DCLG,06/08/2014,Work In Progress Pre-Cert 40373 Spend,Neighbourhoods,CHESHIRE WEST & CHESTER COUNCIL,,,,,7600009318,,Revenue Grant To Be Paid,CH1 2NP,"6,352.12",Yes
239,Communities & Local Government,DCLG,06/08/2014,Work In Progress Pre-Cert 40373 Spend,Neighbourhoods,ECONOMIC SOLUTIONS LIMITED,,Large,,,7600009302,,Revenue Grant To Be Paid,M1 5JW,"9,286.97",Yes
240,Communities & Local Government,DCLG,06/08/2014,Work In Progress Pre-Cert 40373 Spend,Neighbourhoods,ECONOMIC SOLUTIONS LIMITED,,Large,,,7600009303,,Revenue Grant To Be Paid,M1 5JW,"74,505.11",Yes
241,Communities & Local Government,DCLG,06/08/2014,Work In Progress Pre-Cert 40373 Spend,Neighbourhoods,ECONOMIC SOLUTIONS LIMITED,,Large,,,7600009304,,Revenue Grant To Be Paid,M1 5JW,"5,941.13",Yes
242,Communities & Local Government,DCLG,06/08/2014,Work In Progress Pre-Cert 40373 Spend,Neighbourhoods,ECONOMIC SOLUTIONS LIMITED,,Large,,,7600009305,,Revenue Grant To Be Paid,M1 5JW,"51,418.55",Yes
243,Communities & Local Government,DCLG,06/08/2014,Work In Progress Pre-Cert 40373 Spend,Neighbourhoods,KNOWSLEY METROPOLITAN BOROUGH COUN,,,,,7600009299,,Revenue Grant Clawback Offset,L36 9YZ,"-22,605.72",Yes
244,Communities & Local Government,DCLG,06/08/2014,Work In Progress Pre-Cert 40373 Spend,Neighbourhoods,KNOWSLEY METROPOLITAN BOROUGH COUN,,,,,7600009299,,Revenue Grant To Be Paid,L36 9YZ,"81,404.67",Yes
245,Communities & Local Government,DCLG,06/08/2014,Work In Progress Pre-Cert 40373 Spend,Neighbourhoods,MANCHESTER UNIVERSITY,,Large,,,7600009310,,Revenue Grant To Be Paid,M13 9PL,"12,394.64",Yes
246,Communities & Local Government,DCLG,06/08/2014,Work In Progress Pre-Cert 40373 Spend,Neighbourhoods,MANCHESTER UNIVERSITY,,Large,,,7600009311,,Revenue Grant To Be Paid,M13 9PL,"23,777.97",Yes
247,Communities & Local Government,DCLG,06/08/2014,Work In Progress Pre-Cert 40373 Spend,Neighbourhoods,MERSEYSIDE NETWORK FOR EUROPE,,,,,7600009313,,Revenue Grant To Be Paid,L2 2AH,"8,185.38",Yes
248,Communities & Local Government,DCLG,06/08/2014,Work In Progress Pre-Cert 40373 Spend,Neighbourhoods,NOTTINGHAM UNIVERSITY,,Large,,,7600009312,,Revenue Grant To Be Paid,NG7 2RD,"22,629.37",Yes
249,Communities & Local Government,DCLG,06/08/2014,Work In Progress Pre-Cert 40373 Spend,Neighbourhoods,PERA CONSULTING UK LTD,,Medium,,,7600009316,,Revenue Grant To Be Paid,LE13 0PB,"50,683.44",Yes
250,Communities & Local Government,DCLG,06/08/2014,Work In Progress Pre-Cert 40373 Spend,Neighbourhoods,SEFTON MBC,,Large,,,7600009317,,Revenue Grant To Be Paid,L20 3EF,"32,210.71",Yes
251,Communities & Local Government,DCLG,06/08/2014,Work In Progress Pre-Cert 40373 Spend,Neighbourhoods,UNIVERSITY OF EXETER,,,,,7600009320,,Revenue Grant To Be Paid,EX4 4QJ,"358,330.29",Yes
252,Communities & Local Government,DCLG,06/08/2014,Work In Progress Pre-Cert 40467 Spend,Neighbourhoods,BLACKPOOL COUNCIL,,,,,7600009298,,Capital Grant Clawback Offset,FY1 1AD,"-273,999.75",Yes
253,Communities & Local Government,DCLG,06/08/2014,Work In Progress Pre-Cert 40467 Spend,Neighbourhoods,BLACKPOOL COUNCIL,,,,,7600009298,,Capital Grant To Be Paid,FY1 1AD,"766,849.65",Yes
254,Communities & Local Government,DCLG,06/08/2014,Work In Progress Pre-Cert 40467 Spend,Neighbourhoods,CHESHIRE WEST & CHESTER COUNCIL,,,,,7600009318,,Capital Grant Clawback Offset,CH1 2NP,"-83,049.80",Yes
255,Communities & Local Government,DCLG,06/08/2014,Work In Progress Pre-Cert 40467 Spend,Neighbourhoods,CHESHIRE WEST & CHESTER COUNCIL,,,,,7600009318,,Capital Grant To Be Paid,CH1 2NP,"338,378.43",Yes
256,Communities & Local Government,DCLG,06/08/2014,Work In Progress Pre-Cert 40467 Spend,Neighbourhoods,CHESTERFIELD COLLEGE,,Large,,,7600009301,,Capital Grant To Be Paid,S41 7NG,"26,174.33",Yes
257,Communities & Local Government,DCLG,06/08/2014,Work In Progress Pre-Cert 40467 Spend,Neighbourhoods,LINCONSHIRE COUNTY COUNCIL,,Large,,,7600009319,,Capital Grant To Be Paid,LN1 1YT,"291,842.76",Yes
258,Communities & Local Government,DCLG,06/08/2014,Work In Progress Pre-Cert 40467 Spend,Neighbourhoods,MANCHESTER UNIVERSITY,,Large,,,7600009310,,Capital Grant To Be Paid,M13 9PL,386.82,Yes
259,Communities & Local Government,DCLG,06/08/2014,Work In Progress Pre-Cert 40467 Spend,Neighbourhoods,MANCHESTER UNIVERSITY,,Large,,,7600009311,,Capital Grant To Be Paid,M13 9PL,742.08,Yes
260,Communities & Local Government,DCLG,06/08/2014,Work In Progress Pre-Cert 40467 Spend,Neighbourhoods,MANCHESTER UNIVERSITY,,Large,,,7600009314,,Capital Grant To Be Paid,M13 9PL,"2,949,100.00",Yes
261,Communities & Local Government,DCLG,06/08/2014,Work In Progress Pre-Cert 40467 Spend,Neighbourhoods,MILLFIELDS COMMUNITY ECONOMIC DEV T,Yes,,,,7600009315,,Capital Grant To Be Paid,PL1 3HQ,"184,843.35",Yes
262,Communities & Local Government,DCLG,06/08/2014,Work In Progress Pre-Cert 40467 Spend,Neighbourhoods,NOTTINGHAM CITY COUNCIL,,Large,,,7600009300,,Capital Grant To Be Paid,NG2 3NG,"75,457.51",Yes
263,Communities & Local Government,DCLG,06/08/2014,Work In Progress Pre-Cert 40467 Spend,Neighbourhoods,SALFORD CITY COUNCIL,,,,,7600009306,,Capital Grant To Be Paid,M27 5FJ,"16,745.32",Yes
264,Communities & Local Government,DCLG,06/08/2014,Work In Progress Pre-Cert 40467 Spend,Neighbourhoods,SEFTON MBC,,Large,,,7600009317,,Capital Grant To Be Paid,L20 3EF,"152,534.09",Yes
265,Communities & Local Government,DCLG,06/08/2014,Work In Progress Pre-Cert 40467 Spend,Neighbourhoods,UNIVERSITY OF EXETER,,,,,7600009320,,Capital Grant To Be Paid,EX4 4QJ,"632,715.30",Yes
266,Communities & Local Government,DCLG,06/08/2014,Work In Progress Pre-Cert 40467 Spend,Neighbourhoods,WYRE BOROUGH COUNCIL,,,,,7600009307,,Capital Grant To Be Paid,FY6 7PU,"35,801.89",Yes
267,Communities & Local Government,DCLG,07/08/2014,Current Grants to Non Profit Bodies,Localism,ACTA COMMUNITY THEATRE LTD,,Small,,,2100245346,,Arts for Communities - Integration Projects,BS3 3AY,"40,000.00",Yes
268,Communities & Local Government,DCLG,07/08/2014,Electricity,Finance & Corporate Services,EDF ENERGY 1 LIMITED,,Large,,230840469,5106205687,Energy,Bridge House Electricity 2014 - 2015,PL3 5XQ,"-4,765.63",
269,Communities & Local Government,DCLG,07/08/2014,Electricity,Finance & Corporate Services,EDF ENERGY 1 LIMITED,,Large,,230840469,5106205792,Energy,EoE Waterbeach Electricity 2014-15,PL3 5XQ,"3,900.56",
270,Communities & Local Government,DCLG,07/08/2014,Electricity,Finance & Corporate Services,EDF ENERGY 1 LIMITED,,Large,,230840469,5106205795,Energy,SW Taunton Electricity 2014-15,PL3 5XQ,"2,503.21",
271,Communities & Local Government,DCLG,07/08/2014,Electricity,Finance & Corporate Services,EDF ENERGY 1 LIMITED,,Large,,230840469,5106205796,Energy,Y&H Wakefield Electricity 2014-15,PL3 5XQ,"2,862.68",
272,Communities & Local Government,DCLG,07/08/2014,Grant in Aid to NDPBs (non budget),Finance & Corporate Services,COMMISSION LOCAL ADMINISTRATION,,,,215271508,2100245265,,DCLG Budget Contribution for CLAE - August 2014,SW1P 4QP,"799,000.00",Yes
273,Communities & Local Government,DCLG,07/08/2014,Grant in Aid to NDPBs (non budget),Finance & Corporate Services,VALUATION TRIBUNAL SERVICE,,,,211218366,2100245347,,DCLG DEL Grant in Aid to VTS for running cost Aug,E1 1DU,"690,131.00",Yes
274,Communities & Local Government,DCLG,07/08/2014,IT - Service Contracts,Localism,AIRWAVE SOLUTIONS LTD,,Large,,211461729,5106205790,Managed / Outsourced Services,Phase B England 2014/15,SL1 2EJ,"260,446.84",
275,Communities & Local Government,DCLG,07/08/2014,IT - Service Contracts,Localism,AIRWAVE SOLUTIONS LTD,,Large,,211461729,5106205794,Managed / Outsourced Services,RPI ENGLAND,SL1 2EJ,"-46,996.92",
276,Communities & Local Government,DCLG,07/08/2014,IT - Service Contracts,Localism,AIRWAVE SOLUTIONS LTD,,Large,,211461729,5106205803,Managed / Outsourced Services,Phase A Scotland 2014/15,SL1 2EJ,"279,472.69",
277,Communities & Local Government,DCLG,07/08/2014,IT - Service Contracts,Localism,AIRWAVE SOLUTIONS LTD,,Large,,211461729,5106205804,Managed / Outsourced Services,Phase A England 2014/15,SL1 2EJ,"204,899.64",
278,Communities & Local Government,DCLG,07/08/2014,IT - Service Contracts,Localism,AIRWAVE SOLUTIONS LTD,,Large,,211461729,5106205804,Managed / Outsourced Services,Phase A Wales 2014/15,SL1 2EJ,"23,392.94",
279,Communities & Local Government,DCLG,07/08/2014,IT - Service Contracts,Localism,AIRWAVE SOLUTIONS LTD,,Large,,211461729,5106205804,Managed / Outsourced Services,Phase A Scotland 2014/15,SL1 2EJ,"53,550.12",
280,Communities & Local Government,DCLG,07/08/2014,IT - Service Contracts,Localism,AIRWAVE SOLUTIONS LTD,,Large,,211461729,5106205806,Managed / Outsourced Services,Phase B Scotland 2014/15,SL1 2EJ,"24,861.82",
281,Communities & Local Government,DCLG,07/08/2014,IT - Service Contracts,Localism,AIRWAVE SOLUTIONS LTD,,Large,,211461729,5106205810,Managed / Outsourced Services,Phase A England 2014/15,SL1 2EJ,"-28,339.85",
282,Communities & Local Government,DCLG,07/08/2014,IT - Service Contracts,Localism,AIRWAVE SOLUTIONS LTD,,Large,,211461729,5106205810,Managed / Outsourced Services,Phase A Wales 2014/15,SL1 2EJ,"-3,067.29",
283,Communities & Local Government,DCLG,07/08/2014,IT - Service Contracts,Localism,AIRWAVE SOLUTIONS LTD,,Large,,211461729,5106205810,Managed / Outsourced Services,Phase A Scotland 2014/15,SL1 2EJ,"-9,215.42",
284,Communities & Local Government,DCLG,07/08/2014,IT - Service Contracts,Localism,LOCALITY,,Medium,,347998312,5106205799,Managed / Outsourced Services,Direct Support - Our Place,N1 6DR,"11,014.00",
285,Communities & Local Government,DCLG,07/08/2014,IT - Service Contracts,Localism,LOCALITY,,Medium,,347998312,5106205799,Managed / Outsourced Services,management fee - Our Place,N1 6DR,"14,458.00",
286,Communities & Local Government,DCLG,07/08/2014,Legal Fees,Finance & Corporate Services,SIMMONS & SIMMONS,,Large,,216616279,5106205750,Legal,Legal Advice,EC2Y 9SS,3.00,
287,Communities & Local Government,DCLG,07/08/2014,Legal Fees,Finance & Corporate Services,SIMMONS & SIMMONS,,Large,,216616279,5106205750,Legal,Legal Advice,EC2Y 9SS,603.00,
288,Communities & Local Government,DCLG,07/08/2014,Legal Fees,Finance & Corporate Services,TREASURY SOLICITOR,,Public Bodies,,215580680,2100245336,Legal,Legal Advice,WC2B 4TS,"40,000.00",
289,Communities & Local Government,DCLG,07/08/2014,Professional services,Finance & Corporate Services,DAWES & FRASER CONSULTING LTD,,Small,,,5106205670,Business and Commercial Services,Contract and Technical support for IPC C,SE20 7BS,"5,688.00",
290,Communities & Local Government,DCLG,07/08/2014,Professional services,Finance & Corporate Services,DAWES & FRASER CONSULTING LTD,,Small,,,5106205670,Business and Commercial Services,Expenses,SE20 7BS,334.20,
291,Communities & Local Government,DCLG,07/08/2014,Steady State Service Provision,Localism,LOCALITY,,Medium,,347998312,5106205799,Business Process Outsourcing Services,Grant Admin - Our Place,N1 6DR,"10,708.00",
292,Communities & Local Government,DCLG,07/08/2014,Steady State Service Provision,Neighbourhoods,LOCALITY,,Medium,,347998312,5106205808,Business Process Outsourcing Services,Direct Support,N1 6DR,"139,966.54",
293,Communities & Local Government,DCLG,07/08/2014,Steady State Service Provision,Neighbourhoods,LOCALITY,,Medium,,347998312,5106205808,Business Process Outsourcing Services,Grant Administration,N1 6DR,"13,609.70",
294,Communities & Local Government,DCLG,07/08/2014,Steady State Service Provision,Neighbourhoods,LOCALITY,,Medium,,347998312,5106205809,Business Process Outsourcing Services,Programme Delivery,N1 6DR,"34,911.50",
295,Communities & Local Government,DCLG,07/08/2014,Steady State Service Provision,Neighbourhoods,LOCALITY,,Medium,,347998312,5106205809,Business Process Outsourcing Services,Sharing And Learning,N1 6DR,"6,379.14",
296,Communities & Local Government,DCLG,07/08/2014,Training,Finance & Corporate Services,CABINET OFFICE,,Public Bodies,,,5106205759,Development and Training,HR Leaders Council (HRLC) Away Event,CF14 3UW,236.56,
297,Communities & Local Government,DCLG,07/08/2014,Training,Finance & Corporate Services,HM REVENUE & CUSTOMS,,Public Bodies,,365117972,5106205801,Development and Training,Civil Service South West Academy 2013 Event,BN12 4XH,785.89,
298,Communities & Local Government,DCLG,07/08/2014,Training,Finance & Corporate Services,PRIVACY & DATA PROTECTION LTD,,Micro,,219697385,5106205747,Development and Training,J Pierce Data Protection exam 12/12/14,SW4 0JY,290.00,
299,Communities & Local Government,DCLG,07/08/2014,Work In Progress Pre-Cert 40373 Spend,Neighbourhoods,COVENTRY & WARKS CO-OP DEVEL AGENCY,,Small,,,7600009324,,Revenue Grant To Be Paid,CV1 5EA,"16,816.37",Yes
300,Communities & Local Government,DCLG,07/08/2014,Work In Progress Pre-Cert 40373 Spend,Neighbourhoods,COVENTRY & WARKS CO-OP DEVEL AGENCY,,Small,,,7600009331,,Revenue Grant To Be Paid,CV1 5EA,"17,605.77",Yes
301,Communities & Local Government,DCLG,07/08/2014,Work In Progress Pre-Cert 40373 Spend,Neighbourhoods,COVENTRY CITY COUNCIL,,Large,,,7600009336,,Revenue Grant To Be Paid,CV1 5RR,"2,070.15",Yes
302,Communities & Local Government,DCLG,07/08/2014,Work In Progress Pre-Cert 40373 Spend,Neighbourhoods,COVENTRY UNIVERSITY ENTERPRISES LTD,,Medium,,,7600009329,,Revenue Grant To Be Paid,CV1 2TT,"100,200.49",Yes
303,Communities & Local Government,DCLG,07/08/2014,Work In Progress Pre-Cert 40373 Spend,Neighbourhoods,COVENTRY UNIVERSITY ENTERPRISES LTD,,Medium,,,7600009330,,Revenue Grant To Be Paid,CV1 2TT,"81,124.63",Yes
304,Communities & Local Government,DCLG,07/08/2014,Work In Progress Pre-Cert 40373 Spend,Neighbourhoods,DERBY CITY COUNCIL,,Large,,,7600009322,,Revenue Grant To Be Paid,DE1 2FE,"41,715.62",Yes
305,Communities & Local Government,DCLG,07/08/2014,Work In Progress Pre-Cert 40373 Spend,Neighbourhoods,KEY FUND INVESTMENTS LTD,,Small,,,7600009326,,Revenue Grant To Be Paid,S9 3TY,"3,091.16",Yes
306,Communities & Local Government,DCLG,07/08/2014,Work In Progress Pre-Cert 40373 Spend,Neighbourhoods,KEY FUND INVESTMENTS LTD,,Small,,,7600009337,,Revenue Grant To Be Paid,S9 3TY,"6,814.84",Yes
307,Communities & Local Government,DCLG,07/08/2014,Work In Progress Pre-Cert 40373 Spend,Neighbourhoods,LEICESTER UNIVERSITY,,Large,,,7600009323,,Revenue Grant To Be Paid,LE1 7RH,"15,251.53",Yes
308,Communities & Local Government,DCLG,07/08/2014,Work In Progress Pre-Cert 40373 Spend,Neighbourhoods,MARKETING DERBY,,Micro,,,7600009325,,Revenue Grant To Be Paid,DE24 8QR,"34,012.95",Yes
309,Communities & Local Government,DCLG,07/08/2014,Work In Progress Pre-Cert 40373 Spend,Neighbourhoods,NOTTINGHAM TRENT UNIVERSITY,,Large,,,7600009339,,Revenue Grant To Be Paid,NG1 4FZ,"47,400.99",Yes
310,Communities & Local Government,DCLG,07/08/2014,Work In Progress Pre-Cert 40373 Spend,Neighbourhoods,PERA CONSULTING UK LTD,,Medium,,,7600009332,,Revenue Grant To Be Paid,LE13 0PB,"44,266.34",Yes
311,Communities & Local Government,DCLG,07/08/2014,Work In Progress Pre-Cert 40373 Spend,Neighbourhoods,SANDWELL MBC,,Large,,,7600009321,,Revenue Grant To Be Paid,B69 3BS,"81,476.08",Yes
312,Communities & Local Government,DCLG,07/08/2014,Work In Progress Pre-Cert 40373 Spend,Neighbourhoods,SHROPSHIRE ENTERPRISE PARTNERSHIP,,Micro,,,7600009327,,Revenue Grant To Be Paid,TF1 6QJ,"6,244.64",Yes
313,Communities & Local Government,DCLG,07/08/2014,Work In Progress Pre-Cert 40373 Spend,Neighbourhoods,SHROPSHIRE ENTERPRISE PARTNERSHIP,,Micro,,,7600009328,,Revenue Grant To Be Paid,TF1 6QJ,"10,729.89",Yes
314,Communities & Local Government,DCLG,07/08/2014,Work In Progress Pre-Cert 40373 Spend,Neighbourhoods,STOKE-ON-TRENT CITY COUNCIL,,Large,,,7600009334,,Revenue Grant To Be Paid,ST4 1HP,"17,431.75",Yes
315,Communities & Local Government,DCLG,07/08/2014,Work In Progress Pre-Cert 40373 Spend,Neighbourhoods,STOKE-ON-TRENT CITY COUNCIL,,Large,,,7600009338,,Revenue Grant To Be Paid,ST4 1HP,"20,735.65",Yes
316,Communities & Local Government,DCLG,07/08/2014,Work In Progress Pre-Cert 40373 Spend,Neighbourhoods,UNIVERSITY OF BIRMINGHAM,,Large,,,7600009333,,Revenue Grant To Be Paid,B15 2TT,"54,760.30",Yes
317,Communities & Local Government,DCLG,07/08/2014,Work In Progress Pre-Cert 40373 Spend,Neighbourhoods,UNIVERSITY OF BIRMINGHAM,,Large,,,7600009335,,Revenue Grant To Be Paid,B15 2TT,"44,180.05",Yes
318,Communities & Local Government,DCLG,07/08/2014,Work In Progress Pre-Cert 40467 Spend,Neighbourhoods,COVENTRY CITY COUNCIL,,Large,,,7600009336,,Capital Grant To Be Paid,CV1 5RR,"252,768.01",Yes
319,Communities & Local Government,DCLG,07/08/2014,Work In Progress Pre-Cert 40467 Spend,Neighbourhoods,STOKE-ON-TRENT CITY COUNCIL,,Large,,,7600009338,,Capital Grant To Be Paid,ST4 1HP,"11,956.80",Yes
320,Communities & Local Government,DCLG,07/08/2014,Work In Progress Pre-Cert 40467 Spend,Neighbourhoods,UNIVERSITY OF BIRMINGHAM,,Large,,,7600009333,,Capital Grant To Be Paid,B15 2TT,"8,261.24",Yes
321,Communities & Local Government,DCLG,07/08/2014,Work In Progress Pre-Cert 40467 Spend,Neighbourhoods,WARMSDALE LTD,,,,,7600009340,,Capital Grant To Be Paid,HU14 3JP,"95,330.58",Yes
322,Communities & Local Government,DCLG,07/08/2014,Work In Progress Pre-Cert 40467 Spend,Neighbourhoods,WARMSDALE LTD,,,,,7600009341,,Capital Grant To Be Paid,HU14 3JP,"144,545.01",Yes
323,Communities & Local Government,DCLG,07/08/2014,Work In Progress Pre-Cert 40467 Spend,Neighbourhoods,WARMSDALE LTD,,,,,7600009342,,Capital Grant To Be Paid,HU14 3JP,"178,004.24",Yes
324,Communities & Local Government,DCLG,08/08/2014,Agency Staff,Finance & Corporate Services,CAPITA BUS. SERV. LTD (CON LAB),,Large,,,5106205823,Contingent Labour,Interim and Specialist Contractor,DL1 9HB,382.14,
325,Communities & Local Government,DCLG,08/08/2014,Agency Staff,Finance & Corporate Services,CAPITA BUS. SERV. LTD (CON LAB),,Large,,,5106205824,Contingent Labour,Interim and Specialist Contractor,DL1 9HB,"3,002.64",
326,Communities & Local Government,DCLG,08/08/2014,Agency Staff,Finance & Corporate Services,SQUARE ONE RESOURCES LTD,,Medium,,491410288,5106205815,Contingent Labour,SAP Support until closedown,EC2A 2AD,"2,858.82",
327,Communities & Local Government,DCLG,08/08/2014,Agency Staff,Localism,CAPITA BUS. SERV. LTD (CON LAB),,Large,,,5106205833,Contingent Labour,Interim and Specialist Contractor,DL1 9HB,"9,519.84",
328,Communities & Local Government,DCLG,08/08/2014,Agency Staff,Localism,CAPITA BUS. SERV. LTD (CON LAB),,Large,,,5106205836,Contingent Labour,Interim and Specialist Contractor  - Recoverable from Audit Commission,DL1 9HB,"12,644.20",
329,Communities & Local Government,DCLG,08/08/2014,Agency Staff,Neighbourhoods,CAPITA BUS. SERV. LTD (CON LAB),,Large,,,5106205822,Contingent Labour,Interim and Specialist Contractor,DL1 9HB,"2,028.42",
330,Communities & Local Government,DCLG,08/08/2014,Agency Staff,Neighbourhoods,CAPITA BUS. SERV. LTD (CON LAB),,Large,,,5106205825,Contingent Labour,Interim and Specialist Contractor,DL1 9HB,"1,518.82",
331,Communities & Local Government,DCLG,08/08/2014,Agency Staff,Neighbourhoods,CAPITA BUS. SERV. LTD (CON LAB),,Large,,,5106205826,Contingent Labour,Interim regional assessor,DL1 9HB,"1,951.92",
332,Communities & Local Government,DCLG,08/08/2014,Agency Staff,Neighbourhoods,CAPITA BUS. SERV. LTD (CON LAB),,Large,,,5106205827,Contingent Labour,Interim Manager (Expenses),DL1 9HB,110.40,
333,Communities & Local Government,DCLG,08/08/2014,Agency Staff,Neighbourhoods,CAPITA BUS. SERV. LTD (CON LAB),,Large,,,5106205827,Contingent Labour,Interim and Specialist Contractor,DL1 9HB,"1,963.44",
334,Communities & Local Government,DCLG,08/08/2014,Agency Staff,Neighbourhoods,CAPITA BUS. SERV. LTD (CON LAB),,Large,,,5106205830,Contingent Labour,Interim and Specialist Contractor,DL1 9HB,"3,327.42",
335,Communities & Local Government,DCLG,08/08/2014,Agency Staff,Neighbourhoods,CAPITA BUS. SERV. LTD (CON LAB),,Large,,,5106205832,Contingent Labour,Interim and Specialist Contractor,DL1 9HB,"1,833.60",
336,Communities & Local Government,DCLG,08/08/2014,Agency Staff,Neighbourhoods,CAPITA BUS. SERV. LTD (CON LAB),,Large,,,5106205834,Contingent Labour,Interim and Specialist Contractor,DL1 9HB,"4,527.84",
337,Communities & Local Government,DCLG,08/08/2014,Agency Staff,Neighbourhoods,CAPITA BUS. SERV. LTD (CON LAB),,Large,,,5106205835,Contingent Labour,Interim Manager,DL1 9HB,"1,639.92",
338,Communities & Local Government,DCLG,08/08/2014,Agency Staff,Neighbourhoods,CAPITA BUS. SERV. LTD (CON LAB),,Large,,,5106205837,Contingent Labour,Interim Manager,DL1 9HB,"2,028.42",
339,Communities & Local Government,DCLG,08/08/2014,Agency Staff,Neighbourhoods,CAPITA BUS. SERV. LTD (CON LAB),,Large,,,5106205837,Contingent Labour,Interim Manager (Expenses),DL1 9HB,81.30,
340,Communities & Local Government,DCLG,08/08/2014,Current Grants to Non Profit Bodies,Neighbourhoods,BUSHBURY HILL ESTATE MNGT BOARD LTD,,Small,,,5000259210,,Tenant Led Stock Options,WV10 9JG,"6,419.00",Yes
341,Communities & Local Government,DCLG,08/08/2014,Current Grants to Non Profit Bodies,Neighbourhoods,CLARENCE WAY MANAGEMENT ORG CIC,,Micro,,,5000259211,,Right to Manage,NW1 8PS,"11,000.00",Yes
342,Communities & Local Government,DCLG,08/08/2014,Current Grants to Non Profit Bodies,Neighbourhoods,OPEN COMMUNITIES LTD,,Micro,,,5000259209,,Right to Manage,L1 5BS,"4,571.00",Yes
343,Communities & Local Government,DCLG,08/08/2014,Electricity,Finance & Corporate Services,EDF ENERGY 1 LIMITED,,Large,,230840469,5106205844,Energy,EM Castle Don Electricity 2014-15,PL3 5XQ,"2,795.22",
344,Communities & Local Government,DCLG,08/08/2014,IT - Service Contracts,Finance & Corporate Services,FUJITSU SERVICES LTD,,Large,,423375062,5106205843,Managed / Outsourced Services,"FY 13/14 New Requirements ""NR"" Charges",WA3 9BD,"2,500.00",
345,Communities & Local Government,DCLG,08/08/2014,IT Maintenance,Finance & Corporate Services,VOCA LINK,,Large,,217397207,5106205812,ICT Services,0% BACS sort code ISCD for SAP,WD3 1FX,420.00,
346,Communities & Local Government,DCLG,08/08/2014,Legal Fees,Neighbourhoods,LEASE CONFERENCES LTD,,Small,,,5106205841,Legal,Legal Advice,EC4Y 8JX,"9,957.60",
347,Communities & Local Government,DCLG,08/08/2014,Physical Storage,Finance & Corporate Services,TNT UK LIMITED,,Large,,,5106205867,Warehousing and Storage,Offsite Records Storage FYR 13/14,BL10 9GR,-341.60,
348,Communities & Local Government,DCLG,08/08/2014,Physical Storage,Finance & Corporate Services,TNT UK LIMITED,,Large,,,5106205868,Warehousing and Storage,Offsite Records Storage FYR 14/15,BL10 9GR,341.60,
349,Communities & Local Government,DCLG,08/08/2014,Printing,"Strategy, Communications and Private Office",WILLIAMS LEA LIMITED,,Large,,393456413,5106205838,Printing Services,Rtb & Tenant Empowerment Print,NR3 1PD,"10,667.27",
350,Communities & Local Government,DCLG,08/08/2014,Professional services,Localism,VALUATION OFFICE AGENCY,,Public Bodies,,215253886,2100245377,Environmental Services,DCLG DEL - Payment for August NNDR/Council Tax,W1B 5BU,"12,083,333.00",
351,Communities & Local Government,DCLG,08/08/2014,Software Licences,Finance & Corporate Services,AUDITWARE SYSTEMS LTD,,Small,,397316647,5106205818,Software,IDEA V9 2 Licences annual renewal,TN3 9JR,"1,608.00",
352,Communities & Local Government,DCLG,08/08/2014,Training,Finance & Corporate Services,REVOLUTION EVENTS LTD,,Small,,237420406,5106205839,Development and Training,5 places for IRMS conference 2015,TN2 4AG,"2,995.00",
353,Communities & Local Government,DCLG,08/08/2014,Work In Progress Pre-Cert 40373 Spend,Neighbourhoods,BUSINESS IN THE COMMUNITY EAST MIDL,,Small,,,7600009347,,Revenue Grant To Be Paid,NG1 7AB,"9,662.42",Yes
354,Communities & Local Government,DCLG,08/08/2014,Work In Progress Pre-Cert 40373 Spend,Neighbourhoods,CHESTERFIELD BOROUGH COUNCIL,,Large,,,7600009343,,Revenue Grant To Be Paid,S40 1LP,"5,818.84",Yes
355,Communities & Local Government,DCLG,08/08/2014,Work In Progress Pre-Cert 40373 Spend,Neighbourhoods,LEICESTER CITY COUNCIL,,Large,,,7600009346,,Revenue Grant To Be Paid,LE1 6ZG,"10,486.34",Yes
356,Communities & Local Government,DCLG,08/08/2014,Work In Progress Pre-Cert 40373 Spend,Neighbourhoods,WORCESTERSHIRE COUNTY COUNCIL,,Public Bodies,,,7600009344,,Revenue Grant To Be Paid,WR5 2NP,"4,657.40",Yes
357,Communities & Local Government,DCLG,08/08/2014,Work In Progress Pre-Cert 40467 Spend,Neighbourhoods,CHESTERFIELD BOROUGH COUNCIL,,Large,,,7600009343,,Capital Grant To Be Paid,S40 1LP,"98,954.09",Yes
358,Communities & Local Government,DCLG,08/08/2014,Work In Progress Pre-Cert 40467 Spend,Neighbourhoods,CLICKETY BOOKS LIMITED,,,,,7600009349,,Capital Grant To Be Paid,TR10 9TA,"9,414.00",Yes
359,Communities & Local Government,DCLG,08/08/2014,Work In Progress Pre-Cert 40467 Spend,Neighbourhoods,ENGINEERED ARTS LTD,,,,,7600009348,,Capital Grant To Be Paid,TR10 9EW,"17,288.61",Yes
360,Communities & Local Government,DCLG,08/08/2014,Work In Progress Pre-Cert 40467 Spend,Neighbourhoods,MI-GENERATION LTD,,Micro,,,7600009345,,Capital Grant To Be Paid,PL26 8HD,"15,288.45",Yes
361,Communities & Local Government,DCLG,11/08/2014,Advertising,"Strategy, Communications and Private Office",M4C-DIVISION OF GROUPM UK LTD,,Large,,734728194,5106205847,Advertising,Fire Kills Media ASBOF,WC1X 8RX,6.22,
362,Communities & Local Government,DCLG,11/08/2014,Advertising,"Strategy, Communications and Private Office",M4C-DIVISION OF GROUPM UK LTD,,Large,,734728194,5106205847,Advertising,Fire Kills Media Buying 14,WC1X 8RX,"7,463.76",
363,Communities & Local Government,DCLG,11/08/2014,Advertising,"Strategy, Communications and Private Office",M4C-DIVISION OF GROUPM UK LTD,,Large,,734728194,5106205849,Advertising,Advertising Standards Board of Finance Fee,WC1X 8RX,5.02,
364,Communities & Local Government,DCLG,11/08/2014,Advertising,"Strategy, Communications and Private Office",M4C-DIVISION OF GROUPM UK LTD,,Large,,734728194,5106205849,Advertising,Digital Advertising Activity for 2014/15,WC1X 8RX,"6,237.54",
365,Communities & Local Government,DCLG,11/08/2014,Advertising,"Strategy, Communications and Private Office",M4C-DIVISION OF GROUPM UK LTD,,Large,,734728194,5106205869,Advertising,Fire Kills Media ASBOF,WC1X 8RX,29.92,
366,Communities & Local Government,DCLG,11/08/2014,Advertising,"Strategy, Communications and Private Office",M4C-DIVISION OF GROUPM UK LTD,,Large,,734728194,5106205869,Advertising,Fire Kills Media Buying 14,WC1X 8RX,"35,899.18",
367,Communities & Local Government,DCLG,11/08/2014,Advertising,"Strategy, Communications and Private Office",TULLO MARSHALL WARREN LTD,,Medium,,,5106205791,Advertising,Right to Buy Marketing Contract,W1F 9NB,"7,816.56",
368,Communities & Local Government,DCLG,11/08/2014,Advertising,"Strategy, Communications and Private Office",TULLO MARSHALL WARREN LTD,,Medium,,,5106205855,Advertising,Right to Buy Marketing Contract,W1F 9NB,"7,981.50",
369,Communities & Local Government,DCLG,11/08/2014,Agency Staff,Neighbourhoods,REED EMPLOYMENT SERVICES,,Large,,292193364,5106205860,Contingent Labour,Policy Advisor on Affordable Housing Guarantees Scheme,SW20 0BA,888.19,
370,Communities & Local Government,DCLG,11/08/2014,Agency Staff,Neighbourhoods,REED SPECIALIST RECRUITMENT LTD,,Large,,288656960,5106205852,Contingent Labour,Planning casework AWR Extension1 Month,SW20 OBA,288.82,
371,Communities & Local Government,DCLG,11/08/2014,Current Grants to Non Profit Bodies,Neighbourhoods,CITIZENS ADVICE,,,,,5000259212,,Preventing Homelessness Grant (VOL),NE1 8AF,"195,020.00",Yes
372,Communities & Local Government,DCLG,11/08/2014,Current Grants to Non Profit Bodies,Neighbourhoods,HOMELESS LINK,Yes,,,,5000259214,,Preventing Homelessness Grant (VOL),SE11 4AP,"75,250.00",Yes
373,Communities & Local Government,DCLG,11/08/2014,IT - Service Contracts,Finance & Corporate Services,VERIZON UK LTD,,Large,,346786171,5106205879,Managed / Outsourced Services,TESA dedicated hosting 2013-2014,RG2 6DA,"2,620.38",
374,Communities & Local Government,DCLG,11/08/2014,IT - Service Contracts,Localism,INFORMED SOLUTIONS LTD,,Small,,346179542,5106205846,Managed / Outsourced Services,Risk Assessment to support Data transfer,WA14 4PA,"6,000.00",
375,Communities & Local Government,DCLG,11/08/2014,IT - Service Contracts,Localism,INFORMED SOLUTIONS LTD,,Small,,346179542,5106205846,Managed / Outsourced Services,Service Management Support to 28 Oct 14,WA14 4PA,"9,505.70",
376,Communities & Local Government,DCLG,11/08/2014,IT - Service Contracts,Localism,LOCALITY,,Medium,,347998312,5106205819,Managed / Outsourced Services,Duplicate payment - to be recovered,N1 6DR,"11,014.00",
377,Communities & Local Government,DCLG,11/08/2014,IT - Service Contracts,Localism,LOCALITY,,Medium,,347998312,5106205819,Managed / Outsourced Services,Duplicate payment - to be recovered,N1 6DR,"14,458.00",
378,Communities & Local Government,DCLG,11/08/2014,IT - Service Contracts,Localism,VERIZON UK LTD,,Large,,346786171,5106205878,Managed / Outsourced Services,Fire dedicated hosting 2013-2014,RG2 6DA,"-2,620.38",
379,Communities & Local Government,DCLG,11/08/2014,Research,Finance & Corporate Services,DEPT FOR WORK & PENSIONS,,Public Bodies,,233591598,5106201622,Business and Commercial Services,Research - Impact on Housing Benefit,CF14 3UW,"12,000.00",
380,Communities & Local Government,DCLG,11/08/2014,Research,Finance & Corporate Services,REGENERIS CONSULTING LTD,,Small,,738194666,5106205863,Operational Services,Research - Ex-ante Evaluation of ERDF 2014-20 Operational programme,M1 4DY,"45,271.61",
381,Communities & Local Government,DCLG,11/08/2014,Research,Finance & Corporate Services,REGENERIS CONSULTING LTD,,Small,,738194666,5106205863,Operational Services,Research - Ex-ante Evaluation of ERDF 2014-20 Operational programme,M1 4DY,"22,263.97",
382,Communities & Local Government,DCLG,11/08/2014,Research,Finance & Corporate Services,REGENERIS CONSULTING LTD,,Small,,738194666,5106205863,Operational Services,Research - Ex-ante Evaluation of ERDF 2014-20 Operational programme,M1 4DY,"7,805.45",
383,Communities & Local Government,DCLG,11/08/2014,Steady State Service Provision,Localism,LOCALITY,,Medium,,347998312,5106205819,Business Process Outsourcing Services,Duplicate payment - to be recovered,N1 6DR,"10,708.00",
384,Communities & Local Government,DCLG,11/08/2014,Steady State Service Provision,Localism,MOTT MACDONALD LTD,,Large,,225250398,5106205861,Business Process Outsourcing Services,Core Service Period 1 (Jun 13-May 15),BN1 4FY,"5,650.00",
385,Communities & Local Government,DCLG,11/08/2014,Telecoms equipment (non-capitalised),"Strategy, Communications and Private Office",COLT TELECOMMUNICATIONS,,Large,,543775258,5106205870,Telecoms,Dark fibre - HoC to Eland house monthly,EC3A 7QN,500.00,
386,Communities & Local Government,DCLG,11/08/2014,Utilisation of Unfunded Pension Scheme,Neighbourhoods,LONDON PENSIONS FUND AUTHORITY,,Public Bodies,,236915880,2100245404,,UNFUNDED PENSION-LTGDC By Analogy-Invoice 7912,EC3N 4LP,368.37,
387,Communities & Local Government,DCLG,11/08/2014,Vehicle hire,Finance & Corporate Services,CYCLESCHEME LTD,,Large,,345537935,5106205857,Vehicle Hire and Lease,Salaried Cycle to work scheme,BA1 2LN,"1,465.00",
388,Communities & Local Government,DCLG,11/08/2014,Work In Progress Pre-Cert 40373 Spend,Neighbourhoods,ADVANTAGE EARLY GROWTH LTD,,Small,,,7600009364,,Revenue Grant To Be Paid,B79 0PF,"8,593.95",Yes
389,Communities & Local Government,DCLG,11/08/2014,Work In Progress Pre-Cert 40373 Spend,Neighbourhoods,ASTON UNIVERSITY,,Large,,,7600009358,,Revenue Grant To Be Paid,B4 7ET,"31,807.20",Yes
390,Communities & Local Government,DCLG,11/08/2014,Work In Progress Pre-Cert 40373 Spend,Neighbourhoods,BIRMINGHAM SCIENCE PARK ASTON,,Small,,,7600009351,,Revenue Grant Clawback Offset,B7 4BB,-4.41,Yes
391,Communities & Local Government,DCLG,11/08/2014,Work In Progress Pre-Cert 40373 Spend,Neighbourhoods,BIRMINGHAM SCIENCE PARK ASTON,,Small,,,7600009351,,Revenue Grant To Be Paid,B7 4BB,"34,829.09",Yes
392,Communities & Local Government,DCLG,11/08/2014,Work In Progress Pre-Cert 40373 Spend,Neighbourhoods,BIRMINGHAM SCIENCE PARK ASTON,,Small,,,7600009355,,Revenue Grant Clawback Offset,B7 4BB,-620.75,Yes
393,Communities & Local Government,DCLG,11/08/2014,Work In Progress Pre-Cert 40373 Spend,Neighbourhoods,BIRMINGHAM SCIENCE PARK ASTON,,Small,,,7600009355,,Revenue Grant To Be Paid,B7 4BB,"21,883.00",Yes
394,Communities & Local Government,DCLG,11/08/2014,Work In Progress Pre-Cert 40373 Spend,Neighbourhoods,COVENTRY CITY COUNCIL,,Large,,,7600009363,,Revenue Grant To Be Paid,CV1 5RR,"8,664.87",Yes
395,Communities & Local Government,DCLG,11/08/2014,Work In Progress Pre-Cert 40373 Spend,Neighbourhoods,GWE BUSINESS WEST LTD,,,,,7600009362,,Revenue Grant To Be Paid,BS8 3RA,"655,490.40",Yes
396,Communities & Local Government,DCLG,11/08/2014,Work In Progress Pre-Cert 40373 Spend,Neighbourhoods,NORTHERN FILM & MEDIA,,Micro,,,7600009357,,Revenue Grant To Be Paid,NE8 3BA,"27,202.90",Yes
397,Communities & Local Government,DCLG,11/08/2014,Work In Progress Pre-Cert 40373 Spend,Neighbourhoods,NORTHUMBERLAND COUNTY COUNCIL,,,,,7600009354,,Revenue Grant To Be Paid,NE61 2EF,"141,602.68",Yes
398,Communities & Local Government,DCLG,11/08/2014,Work In Progress Pre-Cert 40373 Spend,Neighbourhoods,PERA CONSULTING UK LTD,,Medium,,,7600009361,,Revenue Grant To Be Paid,LE13 0PB,"35,606.04",Yes
399,Communities & Local Government,DCLG,11/08/2014,Work In Progress Pre-Cert 40373 Spend,Neighbourhoods,SHROPSHIRE COUNCIL,,Public Bodies,,,7600009356,,Revenue Grant To Be Paid,SY2 6ND,"7,582.50",Yes
400,Communities & Local Government,DCLG,11/08/2014,Work In Progress Pre-Cert 40373 Spend,Neighbourhoods,STOKE-ON-TRENT CITY COUNCIL,,Large,,,7600009352,,Revenue Grant To Be Paid,ST4 1HP,"19,966.01",Yes
401,Communities & Local Government,DCLG,11/08/2014,Work In Progress Pre-Cert 40373 Spend,Neighbourhoods,TELFORD & WREKIN COUNCIL,,,,,7600009353,,Revenue Grant To Be Paid,TF3 4NT,"15,966.15",Yes
402,Communities & Local Government,DCLG,11/08/2014,Work In Progress Pre-Cert 40373 Spend,Neighbourhoods,UNIVERSITY OF WOLVERHAMPTON,,Large,,,7600009350,,Revenue Grant To Be Paid,WV1 1SB,"52,014.12",Yes
403,Communities & Local Government,DCLG,11/08/2014,Work In Progress Pre-Cert 40373 Spend,Neighbourhoods,WALSALL METROPOLITAN BC,,Large,,,7600009360,,Revenue Grant To Be Paid,WS1 1TW,"14,700.90",Yes
404,Communities & Local Government,DCLG,11/08/2014,Work In Progress Pre-Cert 40373 Spend,Neighbourhoods,WORCESTERSHIRE COUNTY COUNCIL,,Public Bodies,,,7600009359,,Revenue Grant To Be Paid,WR5 2NP,"74,824.93",Yes
405,Communities & Local Government,DCLG,11/08/2014,Work In Progress Pre-Cert 40467 Spend,Neighbourhoods,WORCESTERSHIRE COUNTY COUNCIL,,Public Bodies,,,7600009359,,Capital Grant To Be Paid,WR5 2NP,"28,922.93",Yes
406,Communities & Local Government,DCLG,12/08/2014,BRR Estimated Collection Fund Surplus PY,Localism,OFFICE OF THE PAYMASTER GENERAL (NN,,,,239956253,2100245486,,BRR: Estimated Collection Fund Surplus Receipts,RH10 1UH,"4,072,726.00",
407,Communities & Local Government,DCLG,12/08/2014,Central Share,Localism,OFFICE OF THE PAYMASTER GENERAL (NN,,,,239956253,2100245486,,BRR: Central Share Receipts,RH10 1UH,"1,267,294,084.00",
408,Communities & Local Government,DCLG,12/08/2014,IT - Service Contracts,Localism,AIRWAVE SOLUTIONS LTD,,Large,,211461729,5106205903,Managed / Outsourced Services,RPI ENGLAND,SL1 2EJ,"46,996.92",
409,Communities & Local Government,DCLG,12/08/2014,IT - Service Contracts,Localism,AIRWAVE SOLUTIONS LTD,,Large,,211461729,5106205904,Managed / Outsourced Services,Phase A England 2014/15,SL1 2EJ,"-12,943.50",
410,Communities & Local Government,DCLG,12/08/2014,IT - Service Contracts,Localism,AIRWAVE SOLUTIONS LTD,,Large,,211461729,5106205904,Managed / Outsourced Services,Phase A Wales 2014/15,SL1 2EJ,"-9,439.44",
411,Communities & Local Government,DCLG,12/08/2014,IT - Service Contracts,Localism,AIRWAVE SOLUTIONS LTD,,Large,,211461729,5106205904,Managed / Outsourced Services,Phase A Scotland 2014/15,SL1 2EJ,"-24,613.98",
412,Communities & Local Government,DCLG,12/08/2014,IT - Service Contracts,Finance & Corporate Services,LOCKHEED MARTIN BUSINESS TECH SOLUT,,Large,,399909910,5106205880,Managed / Outsourced Services,EDRF Enhancements 2013=2014,PA4 9LH,"28,509.00",
413,Communities & Local Government,DCLG,12/08/2014,NNDR Central List Receipts,Localism,OFFICE OF THE PAYMASTER GENERAL (NN,,,,239956253,2100245486,,Central List Receipts,RH10 1UH,"125,232,393.00",Yes
414,Communities & Local Government,DCLG,12/08/2014,Research,Neighbourhoods,ASSET SKILLS,,Medium,,734504405,5106205872,Operational Services,Nat Standards for Air Tightness Testing,EX4 4EP,"4,600.00",
415,Communities & Local Government,DCLG,12/08/2014,Training,Finance & Corporate Services,CAPITA BUS. SERV. LTD (CSL),,Large,,215580993,5106205875,Development and Training,Fast Stream: Presentation Skills,DL1 9HB,293.00,
416,Communities & Local Government,DCLG,12/08/2014,Training,Finance & Corporate Services,EAST OF ENGLAND AMBULANCE SERVICE,,Public Bodies,,210706597,5106205848,Development and Training,GFP Conference Full delegates,NR6 5NA,"1,686.00",
417,Communities & Local Government,DCLG,12/08/2014,Transitional Receipts,Localism,OFFICE OF THE PAYMASTER GENERAL (NN,,,,239956253,2100245486,,BRR: Transitional Protection Receipts,RH10 1UH,"949,785.00",
418,Communities & Local Government,DCLG,12/08/2014,Work In Progress Pre-Cert 40373 Spend,Neighbourhoods,BROADWAY,,,,,7600009395,,Revenue Grant To Be Paid,N61 3AL,"23,113.64",Yes
419,Communities & Local Government,DCLG,12/08/2014,Work In Progress Pre-Cert 40373 Spend,Neighbourhoods,CHESTER UNIVERSITY,,,,,7600009389,,Revenue Grant To Be Paid,WA2 0DB,"34,514.16",Yes
420,Communities & Local Government,DCLG,12/08/2014,Work In Progress Pre-Cert 40373 Spend,Neighbourhoods,CUMBRIA CHAMBER OF COMMERCE,,Small,,,7600009383,,Revenue Grant To Be Paid,CA3 8DA,"193,582.48",Yes
421,Communities & Local Government,DCLG,12/08/2014,Work In Progress Pre-Cert 40373 Spend,Neighbourhoods,DNCC LIMITED,,Medium,,,7600009380,,Revenue Grant To Be Paid,S41 7NA,"65,322.61",Yes
422,Communities & Local Government,DCLG,12/08/2014,Work In Progress Pre-Cert 40373 Spend,Neighbourhoods,DNCC LIMITED,,Medium,,,7600009385,,Revenue Grant To Be Paid,S41 7NA,"56,072.67",Yes
423,Communities & Local Government,DCLG,12/08/2014,Work In Progress Pre-Cert 40373 Spend,Neighbourhoods,DONCASTER METROPOLITAN BC,,,,,7600009377,,Revenue Grant To Be Paid,DN1 1DE,"40,579.56",Yes
424,Communities & Local Government,DCLG,12/08/2014,Work In Progress Pre-Cert 40373 Spend,Neighbourhoods,EAST MIDLANDS INCUBATION NETWORK (E,,Small,,,7600009382,,Revenue Grant To Be Paid,DE65 5GJ,"104,247.92",Yes
425,Communities & Local Government,DCLG,12/08/2014,Work In Progress Pre-Cert 40373 Spend,Neighbourhoods,GRIMSBY INSTITUTE OF F&H EDUCATION,,Large,,,7600009368,,Revenue Grant To Be Paid,DN34 5BQ,"130,219.24",Yes
426,Communities & Local Government,DCLG,12/08/2014,Work In Progress Pre-Cert 40373 Spend,Neighbourhoods,ISLE OF WIGHT COUNCIL,,Public Bodies,,,7600009369,,Revenue Grant To Be Paid,PO30 1UD,"15,132.20",Yes
427,Communities & Local Government,DCLG,12/08/2014,Work In Progress Pre-Cert 40373 Spend,Neighbourhoods,KENT COUNTY COUNCIL,,Large,,,7600009397,,Revenue Grant To Be Paid,ME14 1XQ,"17,032.09",Yes
428,Communities & Local Government,DCLG,12/08/2014,Work In Progress Pre-Cert 40373 Spend,Neighbourhoods,KEY FUND INVESTMENTS LTD,,Small,,,7600009386,,Revenue Grant To Be Paid,S9 3TY,"1,717.56",Yes
429,Communities & Local Government,DCLG,12/08/2014,Work In Progress Pre-Cert 40373 Spend,Neighbourhoods,LEICESTER CITY COUNCIL,,Large,,,7600009398,,Revenue Grant To Be Paid,LE1 6ZG,"8,251.19",Yes
430,Communities & Local Government,DCLG,12/08/2014,Work In Progress Pre-Cert 40373 Spend,Neighbourhoods,LIVERPOOL HOPE UNIVERSITY COLLEGE,,,,,7600009375,,Revenue Grant To Be Paid,LA16 9JD,"1,472.37",Yes
431,Communities & Local Government,DCLG,12/08/2014,Work In Progress Pre-Cert 40373 Spend,Neighbourhoods,MIGHTY CREATIVES,,Small,,,7600009391,,Revenue Grant To Be Paid,LE1 1RE,"20,768.04",Yes
432,Communities & Local Government,DCLG,12/08/2014,Work In Progress Pre-Cert 40373 Spend,Neighbourhoods,NGAGE SOLUTIONS LTD,,Medium,,,7600009370,,Revenue Grant To Be Paid,HP14 4BF,"3,768.16",Yes
433,Communities & Local Government,DCLG,12/08/2014,Work In Progress Pre-Cert 40373 Spend,Neighbourhoods,NGAGE SOLUTIONS LTD,,Medium,,,7600009379,,Revenue Grant To Be Paid,HP14 4BF,"3,602.09",Yes
434,Communities & Local Government,DCLG,12/08/2014,Work In Progress Pre-Cert 40373 Spend,Neighbourhoods,NGAGE SOLUTIONS LTD,,Medium,,,7600009393,,Revenue Grant To Be Paid,HP14 4BF,"3,542.88",Yes
435,Communities & Local Government,DCLG,12/08/2014,Work In Progress Pre-Cert 40373 Spend,Neighbourhoods,PASTURES DEVELOPMENT COMPANY LTD,,,,,7600009394,,Revenue Grant To Be Paid,DN31 1LW,"53,764.01",Yes
436,Communities & Local Government,DCLG,12/08/2014,Work In Progress Pre-Cert 40373 Spend,Neighbourhoods,PRINCES TRUST,,Large,,,7600009371,,Revenue Grant To Be Paid,LS2 8NG,"17,066.49",Yes
437,Communities & Local Government,DCLG,12/08/2014,Work In Progress Pre-Cert 40373 Spend,Neighbourhoods,PRINCES TRUST,,Large,,,7600009372,,Revenue Grant To Be Paid,LS2 8NG,"34,024.24",Yes
438,Communities & Local Government,DCLG,12/08/2014,Work In Progress Pre-Cert 40373 Spend,Neighbourhoods,SCARBOROUGH BOROUGH COUNCIL,,,,,7600009374,,Revenue Grant Clawback Offset,YO11 2HG,"-4,017.45",Yes
439,Communities & Local Government,DCLG,12/08/2014,Work In Progress Pre-Cert 40373 Spend,Neighbourhoods,SCARBOROUGH BOROUGH COUNCIL,,,,,7600009374,,Revenue Grant To Be Paid,YO11 2HG,"7,426.65",Yes
440,Communities & Local Government,DCLG,12/08/2014,Work In Progress Pre-Cert 40373 Spend,Neighbourhoods,SHEFFIELD CITY COUNCIL,,,,,7600009373,,Revenue Grant To Be Paid,S1 2SH,"18,632.49",Yes
441,Communities & Local Government,DCLG,12/08/2014,Work In Progress Pre-Cert 40373 Spend,Neighbourhoods,SOUTHAMPTON CITY COUNCIL,,Public Bodies,,,7600009388,,Revenue Grant To Be Paid,SO14 7LR,"20,425.43",Yes
442,Communities & Local Government,DCLG,12/08/2014,Work In Progress Pre-Cert 40373 Spend,Neighbourhoods,STH EAST CENTRE FOR BUILT ENVIRON,,Micro,,,7600009390,,Revenue Grant To Be Paid,RG2 6GP,"62,732.23",Yes
443,Communities & Local Government,DCLG,12/08/2014,Work In Progress Pre-Cert 40373 Spend,Neighbourhoods,SUSTRANS LIMITED,,Large,,,7600009376,,Revenue Grant To Be Paid,BS1 5DD,"15,592.14",Yes
444,Communities & Local Government,DCLG,12/08/2014,Work In Progress Pre-Cert 40373 Spend,Neighbourhoods,SUSTRANS LIMITED,,Large,,,7600009378,,Revenue Grant To Be Paid,BS1 5DD,"17,232.62",Yes
445,Communities & Local Government,DCLG,12/08/2014,Work In Progress Pre-Cert 40373 Spend,Neighbourhoods,WAKEFIELD COUNCIL,,Large,,,7600009367,,Revenue Grant To Be Paid,WF1 2EB,"74,382.98",Yes
446,Communities & Local Government,DCLG,12/08/2014,Work In Progress Pre-Cert 40373 Spend,Neighbourhoods,WSX ENTERPRISE,,Small,,,7600009384,,Revenue Grant To Be Paid,PO16 7BJ,"11,061.39",Yes
447,Communities & Local Government,DCLG,12/08/2014,Work In Progress Pre-Cert 40467 Spend,Neighbourhoods,BARNSLEY COLLEGE,,,,,7600009396,,Capital Grant Clawback Offset,S70 2YW,"-4,680.04",Yes
448,Communities & Local Government,DCLG,12/08/2014,Work In Progress Pre-Cert 40467 Spend,Neighbourhoods,BARNSLEY COLLEGE,,,,,7600009396,,Capital Grant To Be Paid,S70 2YW,"193,419.14",Yes
449,Communities & Local Government,DCLG,12/08/2014,Work In Progress Pre-Cert 40467 Spend,Neighbourhoods,CHESTER UNIVERSITY,,,,,7600009389,,Capital Grant To Be Paid,WA2 0DB,"1,144.20",Yes
450,Communities & Local Government,DCLG,12/08/2014,Work In Progress Pre-Cert 40467 Spend,Neighbourhoods,GRIMSBY INSTITUTE OF F&H EDUCATION,,Large,,,7600009368,,Capital Grant To Be Paid,DN34 5BQ,"21,610.42",Yes
451,Communities & Local Government,DCLG,12/08/2014,Work In Progress Pre-Cert 40467 Spend,Neighbourhoods,KENT COUNTY COUNCIL,,Large,,,7600009397,,Capital Grant To Be Paid,ME14 1XQ,"36,531.90",Yes
452,Communities & Local Government,DCLG,12/08/2014,Work In Progress Pre-Cert 40467 Spend,Neighbourhoods,KEY FUND INVESTMENTS LTD,,Small,,,7600009386,,Capital Grant To Be Paid,S9 3TY,"72,875.00",Yes
453,Communities & Local Government,DCLG,12/08/2014,Work In Progress Pre-Cert 40467 Spend,Neighbourhoods,KEY FUND INVESTMENTS LTD,,Small,,,7600009387,,Capital Grant To Be Paid,S9 3TY,"109,025.00",Yes
454,Communities & Local Government,DCLG,12/08/2014,Work In Progress Pre-Cert 40467 Spend,Neighbourhoods,LANCASHIRE COUNTY COUNCIL,,Large,,,7600009381,,Capital Grant To Be Paid,PR1 0LD,"213,649.68",Yes
455,Communities & Local Government,DCLG,12/08/2014,Work In Progress Pre-Cert 40467 Spend,Neighbourhoods,MANCHESTER CITY COUNCIL,,,,,7600009366,,Capital Grant To Be Paid,M60 2JR,"123,602.87",Yes
456,Communities & Local Government,DCLG,12/08/2014,Work In Progress Pre-Cert 40467 Spend,Neighbourhoods,MUSEUM OF SCIENCE & IND IN MANCHEST,,Public Bodies,,,7600009365,,Capital Grant To Be Paid,M3 4FP,"59,999.96",Yes
457,Communities & Local Government,DCLG,12/08/2014,Work In Progress Pre-Cert 40467 Spend,Neighbourhoods,PASTURES DEVELOPMENT COMPANY LTD,,,,,7600009394,,Capital Grant To Be Paid,DN31 1LW,"309,296.37",Yes
458,Communities & Local Government,DCLG,12/08/2014,Work In Progress Pre-Cert 40467 Spend,Neighbourhoods,SHAWBROOK DEVELOPMENTS LTD,,Small,,,7600009392,,Capital Grant To Be Paid,LS20 9AA,"119,677.85",Yes
459,Communities & Local Government,DCLG,13/08/2014,Accommodation Service Charges,Neighbourhoods,GVA GRIMLEY LTD,,Large,,210158990,5106205854,Accommodation Services,ERDF YH LDU Valuation Services to Dec 13,B1 2JB,"3,540.00",
460,Communities & Local Government,DCLG,13/08/2014,Publicity,"Strategy, Communications and Private Office",YATTERBOX LTD,,Micro,,,5106205874,Advertising,Social media monitoring,W1F 9EG,"2,580.00",
461,Communities & Local Government,DCLG,13/08/2014,Agency Staff,Neighbourhoods,REED EMPLOYMENT SERVICES,,Large,,292193364,5106205884,Contingent Labour,Extension 6 months,SW20 0BA,485.46,
462,Communities & Local Government,DCLG,13/08/2014,Agency Staff,Neighbourhoods,REED EMPLOYMENT SERVICES,,Large,,292193364,5106205885,Contingent Labour,Extension 6 months,SW20 0BA,485.46,
463,Communities & Local Government,DCLG,13/08/2014,Cap Grants to Local Authorities (DEL),Neighbourhoods,GREAT YARMOUTH BC,,,,292697372,2100245300,,Enterprise Zones - Great Yarmouth,NR30 2QG,"609,500.00",Yes
464,Communities & Local Government,DCLG,13/08/2014,Current (non AEF) Grants to Local Authorities,Localism,METROPOLITAN POLICE SERVICE,,Public Bodies,,217969315,2100245523,,Integration and Extremism - Tolerance,SW6 1TR,"96,300.00",Yes
465,Communities & Local Government,DCLG,13/08/2014,Electricity,Finance & Corporate Services,EDF ENERGY 1 LIMITED,,Large,,230840469,5106205886,Energy,Eland House Electricity 2014 - 2015,PL3 5XQ,"47,955.25",
466,Communities & Local Government,DCLG,13/08/2014,Electricity,Finance & Corporate Services,EDF ENERGY 1 LIMITED,,Large,,230840469,5106205890,Energy,Paradise Circus Electricity 2014 - 2015,PL3 5XQ,"1,951.46",
467,Communities & Local Government,DCLG,13/08/2014,Electricity,Finance & Corporate Services,EDF ENERGY 1 LIMITED,,Large,,230840469,5106205891,Energy,Rivergate Electricity 2014 2015,PL3 5XQ,"12,959.18",
468,Communities & Local Government,DCLG,13/08/2014,Fixed Maintenance,"Strategy, Communications and Private Office",BEAVER SOLUTIONS,,Small,,736168191,5106205894,Engineering Components,Reconfigure HOinternal news screen syst,SG12 9PZ,"1,200.00",
469,Communities & Local Government,DCLG,13/08/2014,IT - Service Contracts,Finance & Corporate Services,LOCKHEED MARTIN BUSINESS TECH SOLUT,,Large,,399909910,5106205882,Managed / Outsourced Services,Monthly service cost 2013/2014,PA4 9LH,"42,400.00",
470,Communities & Local Government,DCLG,13/08/2014,IT - Service Contracts,Finance & Corporate Services,VERIZON UK LTD,,Large,,346786171,5106205908,Managed / Outsourced Services,Internet lease line for Interform (Data collection system),RG2 6DA,"1,241.18",
471,Communities & Local Government,DCLG,13/08/2014,IT - Service Contracts,Neighbourhoods,I B M UK LTD,,Large,,210151718,5106205898,Managed / Outsourced Services,Contract Extension 2012-2014,PO6 3AE,"125,504.40",
472,Communities & Local Government,DCLG,13/08/2014,IT - Service Contracts,Neighbourhoods,I B M UK LTD,,Large,,210151718,5106205899,Managed / Outsourced Services,Contract Extension 2012-2014,PO6 3AE,"-125,504.40",
473,Communities & Local Government,DCLG,13/08/2014,IT - Software Maintenance,Finance & Corporate Services,METHODS CONSULTING LTD,,Medium,,505275578,5106205906,Managed / Outsourced Services,PIMS Application Support 17mths,WC2H 8AD,"24,000.00",
474,Communities & Local Government,DCLG,13/08/2014,Printing,"Strategy, Communications and Private Office",STATIONERY OFFICE LTD,,Large,,779375633,5106205558,Printing Services,Non-Vatable,NR3 1PD,165.00,
475,Communities & Local Government,DCLG,13/08/2014,Printing,"Strategy, Communications and Private Office",STATIONERY OFFICE LTD,,Large,,779375633,5106205558,Printing Services,Vatable,NR3 1PD,130.00,
476,Communities & Local Government,DCLG,13/08/2014,Printing,"Strategy, Communications and Private Office",STATIONERY OFFICE LTD,,Large,,779375633,5106205559,Printing Services,Non-Vatable,NR3 1PD,165.00,
477,Communities & Local Government,DCLG,13/08/2014,Printing,"Strategy, Communications and Private Office",STATIONERY OFFICE LTD,,Large,,779375633,5106205559,Printing Services,Vatable,NR3 1PD,130.00,
478,Communities & Local Government,DCLG,13/08/2014,Printing,"Strategy, Communications and Private Office",STATIONERY OFFICE LTD,,Large,,779375633,5106205889,Printing Services,Non-Vatable,NR3 1PD,165.00,
479,Communities & Local Government,DCLG,13/08/2014,Printing,"Strategy, Communications and Private Office",STATIONERY OFFICE LTD,,Large,,779375633,5106205889,Printing Services,Vatable,NR3 1PD,130.00,
480,Communities & Local Government,DCLG,13/08/2014,Printing,"Strategy, Communications and Private Office",WILLIAMS LEA LIMITED,,Large,,393456413,5106205850,Printing Services,Year 3 Print services (0% VAT),NR3 1PD,696.32,
481,Communities & Local Government,DCLG,13/08/2014,Printing,"Strategy, Communications and Private Office",WILLIAMS LEA LIMITED,,Large,,393456413,5106205853,Printing Services,Year 3 Print services (0% VAT),NR3 1PD,"1,069.50",
484,Communities & Local Government,DCLG,13/08/2014,Removals and Porterage,Finance & Corporate Services,J G REGAN LTD,,Small,,,5106205873,Transport,Eland Hse Document Storage Audit Phase 2,UB10 8LJ,"15,400.00",
485,Communities & Local Government,DCLG,13/08/2014,Services provided by other Govt Orgs,Localism,CABINET OFFICE,,Public Bodies,,,2100245524,Business and Commercial Services,DCLG Contribution to Holocaust Commission,CF14 3UW,"9,862.33",Yes
486,Communities & Local Government,DCLG,13/08/2014,Telecoms equipment (non-capitalised),Localism,B T PAYMENT SERVICES LTD,,Large,,219226417,5106205900,Telecoms,Eland house ISDN Line,DH98 1BT,317.82,
487,Communities & Local Government,DCLG,13/08/2014,Water,Finance & Corporate Services,MIW OFFICE SOLUTIONS,,,,237830385,5106205913,Operation of Water Supplies and Distribution,Citygate - Water Cooler 2014-15,DH9 9XW,"1,150.27",
488,Communities & Local Government,DCLG,13/08/2014,Work In Progress Pre-Cert 40373 Spend,Neighbourhoods,BROADWAY,,,,,7600009407,,Revenue Grant To Be Paid,N61 3AL,"14,378.55",Yes
489,Communities & Local Government,DCLG,13/08/2014,Work In Progress Pre-Cert 40373 Spend,Neighbourhoods,EAST RIDING OF YORKSHIRE COUNCIL,,,,,7600009403,,Revenue Grant To Be Paid,HU17 9BA,"56,759.88",Yes
490,Communities & Local Government,DCLG,13/08/2014,Work In Progress Pre-Cert 40373 Spend,Neighbourhoods,ENVIRONMENTAL ACADEMY LTD,,Micro,,,7600009405,,Revenue Grant To Be Paid,NE16 3AS,"10,232.75",Yes
491,Communities & Local Government,DCLG,13/08/2014,Work In Progress Pre-Cert 40373 Spend,Neighbourhoods,GENERATOR,,Micro,,,7600009409,,Revenue Grant To Be Paid,NE1 2PQ,"13,496.40",Yes
492,Communities & Local Government,DCLG,13/08/2014,Work In Progress Pre-Cert 40373 Spend,Neighbourhoods,NBV (NOTTINGHAM BUSINESS VENTURE),,Small,,,7600009410,,Revenue Grant To Be Paid,NG7 7FN,"12,160.09",Yes
493,Communities & Local Government,DCLG,13/08/2014,Work In Progress Pre-Cert 40373 Spend,Neighbourhoods,NORTH EAST BUSINESS & INNOV CENTRE,,Small,,,7600009399,,Revenue Grant To Be Paid,SR5 2TA,"9,891.92",Yes
494,Communities & Local Government,DCLG,13/08/2014,Work In Progress Pre-Cert 40373 Spend,Neighbourhoods,ONE EAST MIDLANDS,,,,,7600009402,,Revenue Grant To Be Paid,NG1 3FB,"11,969.06",Yes
495,Communities & Local Government,DCLG,13/08/2014,Work In Progress Pre-Cert 40373 Spend,Neighbourhoods,SERCO REGIONAL SERVICES LTD,,,,,7600009401,,Revenue Grant To Be Paid,PL6 8LU,"17,441.48",Yes
496,Communities & Local Government,DCLG,13/08/2014,Work In Progress Pre-Cert 40373 Spend,Neighbourhoods,SERCO REGIONAL SERVICES LTD,,,,,7600009404,,Revenue Grant To Be Paid,PL6 8LU,"214,132.95",Yes
497,Communities & Local Government,DCLG,13/08/2014,Work In Progress Pre-Cert 40373 Spend,Neighbourhoods,SERCO REGIONAL SERVICES LTD,,,,,7600009406,,Revenue Grant To Be Paid,PL6 8LU,"46,391.28",Yes
498,Communities & Local Government,DCLG,13/08/2014,Work In Progress Pre-Cert 40373 Spend,Neighbourhoods,UNIVERSITY OF TEESIDE,,,,,7600009400,,Revenue Grant To Be Paid,TS1 3BA,"61,372.37",Yes
499,Communities & Local Government,DCLG,13/08/2014,Work In Progress Pre-Cert 40467 Spend,Neighbourhoods,BROADWAY,,,,,7600009407,,Capital Grant To Be Paid,N61 3AL,"11,849.24",Yes
500,Communities & Local Government,DCLG,13/08/2014,Work In Progress Pre-Cert 40467 Spend,Neighbourhoods,MI-GENERATION LTD,,Micro,,,7600009408,,Capital Grant To Be Paid,PL26 8HD,"15,478.27",Yes
501,Communities & Local Government,DCLG,13/08/2014,Work In Progress Pre-Cert 40467 Spend,Neighbourhoods,NBV (NOTTINGHAM BUSINESS VENTURE),,Small,,,7600009410,,Capital Grant To Be Paid,NG7 7FN,"59,323.68",Yes
502,Communities & Local Government,DCLG,13/08/2014,Work In Progress Pre-Cert 40467 Spend,Neighbourhoods,NORTH EAST BUSINESS & INNOV CENTRE,,Small,,,7600009399,,Capital Grant To Be Paid,SR5 2TA,"77,698.28",Yes
507,Communities & Local Government,DCLG,14/08/2014,Agency Staff,Finance & Corporate Services,CAPITA RESOURCING LTD,,Large,,215581006,5106205895,Contingent Labour,CPD 0492030 Capita MSP,SL6 1DP,"23,712.00",
508,Communities & Local Government,DCLG,14/08/2014,Agency Staff,Finance & Corporate Services,CAPITA RESOURCING LTD,,Large,,215581006,5106205896,Contingent Labour,Mincom IT expertise,SL6 1DP,"35,316.00",
509,Communities & Local Government,DCLG,14/08/2014,Agency Staff,Finance & Corporate Services,MANPOWER UK LTD,,Large,,238500362,5106205926,Contingent Labour,Support worker for staff interim measure,UB8 1AB,513.58,
510,Communities & Local Government,DCLG,14/08/2014,Agency Staff,Finance & Corporate Services,MANPOWER UK LTD,,Large,,238500362,5106205927,Contingent Labour,Support worker for staff interim measure,UB8 1AB,513.58,
511,Communities & Local Government,DCLG,14/08/2014,Agency Staff,Finance & Corporate Services,MANPOWER UK LTD,,Large,,238500362,5106205928,Contingent Labour,Support worker for staff interim measure,UB8 1AB,513.58,
528,Communities & Local Government,DCLG,14/08/2014,Agency Staff,Neighbourhoods,CAPITA RESOURCING LTD,,Large,,215581006,5106205892,Contingent Labour,Interim Manager,SL6 1DP,"7,155.00",
529,Communities & Local Government,DCLG,14/08/2014,Agency Staff,Neighbourhoods,CAPITA RESOURCING LTD,,Large,,215581006,5106205897,Contingent Labour,Private Rented Sector Guarantees Commercial Community Advice,SL6 1DP,"12,671.81",
530,Communities & Local Government,DCLG,14/08/2014,Agency Staff,Neighbourhoods,CAPITA RESOURCING LTD,,Large,,215581006,5106205897,Contingent Labour,Private Rented Sector Guarantees Commercial Community Advice,SL6 1DP,"12,671.81",
531,Communities & Local Government,DCLG,14/08/2014,Courier Services,Finance & Corporate Services,INTERSERVE (FACILITIES MANAGEMENT),,Large,,364834825,5106205942,Post & Courier,Eland House Mail 14-15,BS32 4NH,"8,000.42",
532,Communities & Local Government,DCLG,14/08/2014,Courier Services,Finance & Corporate Services,INTERSERVE (FACILITIES MANAGEMENT),,Large,,364834825,5106205942,Post & Courier,Rivergate Mail 14-15,BS32 4NH,"1,519.43",
533,Communities & Local Government,DCLG,14/08/2014,Domestic Services,Finance & Corporate Services,INTERSERVE (FACILITIES MANAGEMENT),,Large,,364834825,5106205942,Cleaning,Eland House Cleaning 14-15,BS32 4NH,"27,868.08",
534,Communities & Local Government,DCLG,14/08/2014,Domestic Services,Finance & Corporate Services,INTERSERVE (FACILITIES MANAGEMENT),,Large,,364834825,5106205942,Cleaning,TQH Cleaning 14-15,BS32 4NH,"9,032.52",
535,Communities & Local Government,DCLG,14/08/2014,Domestic Services,Finance & Corporate Services,INTERSERVE (FACILITIES MANAGEMENT),,Large,,364834825,5106205942,Cleaning,Hemel Hemp Cleaning 14-15,BS32 4NH,"2,216.98",
536,Communities & Local Government,DCLG,14/08/2014,Domestic Services,Finance & Corporate Services,INTERSERVE (FACILITIES MANAGEMENT),,Large,,364834825,5106205942,Cleaning,Rivergate Cleaning 14-15,BS32 4NH,"5,167.99",
537,Communities & Local Government,DCLG,14/08/2014,Domestic Services,Finance & Corporate Services,INTERSERVE (FACILITIES MANAGEMENT),,Large,,364834825,5106205942,Cleaning,Bridge House Cleaning 14-15,BS32 4NH,"3,073.37",
538,Communities & Local Government,DCLG,14/08/2014,Domestic Services,Finance & Corporate Services,INTERSERVE (FACILITIES MANAGEMENT),,Large,,364834825,5106205942,Cleaning,Citygate Cleaning 14-15,BS32 4NH,"3,090.56",
539,Communities & Local Government,DCLG,14/08/2014,Domestic Services,Finance & Corporate Services,INTERSERVE (FACILITIES MANAGEMENT),,Large,,364834825,5106205942,Cleaning,Queen Street Cleaning 14-15,BS32 4NH,"2,603.25",
540,Communities & Local Government,DCLG,14/08/2014,Domestic Services,Finance & Corporate Services,INTERSERVE (FACILITIES MANAGEMENT),,Large,,364834825,5106205942,Cleaning,5SPP Cleaning 14-15,BS32 4NH,"6,906.82",
541,Communities & Local Government,DCLG,14/08/2014,Domestic Services,Finance & Corporate Services,INTERSERVE (FACILITIES MANAGEMENT),,Large,,364834825,5106205942,Cleaning,Paradise Cleaning 14-15,BS32 4NH,"3,159.22",
542,Communities & Local Government,DCLG,14/08/2014,Electricity,Finance & Corporate Services,EDF ENERGY 1 LIMITED,,,,230840469,5106205910,Energy,TQH - Electricity Charges 2014 - 2015,PL3 5XQ,"28,806.77",
543,Communities & Local Government,DCLG,14/08/2014,Electricity,Finance & Corporate Services,EDF ENERGY 1 LIMITED,,Large,,230840469,5106205909,Energy,Queen St Electricty 2014 - 2015,PL3 5XQ,"1,733.52",
544,Communities & Local Government,DCLG,14/08/2014,Electricity,Finance & Corporate Services,EDF ENERGY 1 LIMITED,,Large,,230840469,5106205911,Energy,St Philips Place Electricity 2014 - 2015,PL3 5XQ,"12,381.95",
545,Communities & Local Government,DCLG,14/08/2014,Facilities Management (ISD use only),Finance & Corporate Services,INTERSERVE (FACILITIES MANAGEMENT),,Large,,364834825,5106205942,Building Management,Eland House Off Site Management 14-15,BS32 4NH,"11,404.08",
546,Communities & Local Government,DCLG,14/08/2014,Facilities Management (ISD use only),Finance & Corporate Services,INTERSERVE (FACILITIES MANAGEMENT),,Large,,364834825,5106205942,Building Management,Eland House Reception 14-15,BS32 4NH,"4,973.66",
547,Communities & Local Government,DCLG,14/08/2014,Facilities Management (ISD use only),Finance & Corporate Services,INTERSERVE (FACILITIES MANAGEMENT),,Large,,364834825,5106205942,Building Management,TQH Off Site Management 14-15,BS32 4NH,"8,076.85",
548,Communities & Local Government,DCLG,14/08/2014,Facilities Management (ISD use only),Finance & Corporate Services,INTERSERVE (FACILITIES MANAGEMENT),,Large,,364834825,5106205942,Building Management,TQH On Site Management 14-15,BS32 4NH,"3,181.32",
549,Communities & Local Government,DCLG,14/08/2014,Facilities Management (ISD use only),Finance & Corporate Services,INTERSERVE (FACILITIES MANAGEMENT),,Large,,364834825,5106205942,Building Management,TQH Reception 14-15,BS32 4NH,"1,663.29",
550,Communities & Local Government,DCLG,14/08/2014,Facilities Management (ISD use only),Finance & Corporate Services,INTERSERVE (FACILITIES MANAGEMENT),,Large,,364834825,5106205942,Building Management,Hemel Hemp Off Site Management 14-15,BS32 4NH,900.15,
551,Communities & Local Government,DCLG,14/08/2014,Facilities Management (ISD use only),Finance & Corporate Services,INTERSERVE (FACILITIES MANAGEMENT),,Large,,364834825,5106205942,Building Management,Rivergate Off Site Management 14-15,BS32 4NH,"3,682.20",
552,Communities & Local Government,DCLG,14/08/2014,Facilities Management (ISD use only),Finance & Corporate Services,INTERSERVE (FACILITIES MANAGEMENT),,Large,,364834825,5106205942,Building Management,Rivergate Reception 14-15,BS32 4NH,"1,653.74",
553,Communities & Local Government,DCLG,14/08/2014,Facilities Management (ISD use only),Finance & Corporate Services,INTERSERVE (FACILITIES MANAGEMENT),,Large,,364834825,5106205942,Building Management,Bridge House Off Site Management 14-15,BS32 4NH,"1,778.39",
554,Communities & Local Government,DCLG,14/08/2014,Facilities Management (ISD use only),Finance & Corporate Services,INTERSERVE (FACILITIES MANAGEMENT),,Large,,364834825,5106205942,Building Management,Bridge House On Site Management 14-15,BS32 4NH,"3,663.77",
555,Communities & Local Government,DCLG,14/08/2014,Facilities Management (ISD use only),Finance & Corporate Services,INTERSERVE (FACILITIES MANAGEMENT),,Large,,364834825,5106205942,Building Management,Citygate Off Site Management 14-15,BS32 4NH,"3,021.81",
556,Communities & Local Government,DCLG,14/08/2014,Facilities Management (ISD use only),Finance & Corporate Services,INTERSERVE (FACILITIES MANAGEMENT),,Large,,364834825,5106205942,Building Management,Citygate On Site Management 14-15,BS32 4NH,"2,529.54",
557,Communities & Local Government,DCLG,14/08/2014,Facilities Management (ISD use only),Finance & Corporate Services,INTERSERVE (FACILITIES MANAGEMENT),,Large,,364834825,5106205942,Building Management,Citygate Reception 14-15,BS32 4NH,"1,612.32",
558,Communities & Local Government,DCLG,14/08/2014,Facilities Management (ISD use only),Finance & Corporate Services,INTERSERVE (FACILITIES MANAGEMENT),,Large,,364834825,5106205942,Building Management,Queen Street Off Site Management 14-15,BS32 4NH,"1,637.09",
559,Communities & Local Government,DCLG,14/08/2014,Facilities Management (ISD use only),Finance & Corporate Services,INTERSERVE (FACILITIES MANAGEMENT),,Large,,364834825,5106205942,Building Management,5SPP Off Site Management 14-15,BS32 4NH,"2,986.62",
560,Communities & Local Government,DCLG,14/08/2014,Facilities Management (ISD use only),Finance & Corporate Services,INTERSERVE (FACILITIES MANAGEMENT),,Large,,364834825,5106205942,Building Management,5SPP On Site Management 14-15,BS32 4NH,"3,032.33",
561,Communities & Local Government,DCLG,14/08/2014,Facilities Management (ISD use only),Finance & Corporate Services,INTERSERVE (FACILITIES MANAGEMENT),,Large,,364834825,5106205942,Building Management,5SPP Reception 14-15,BS32 4NH,"2,854.01",
562,Communities & Local Government,DCLG,14/08/2014,Facilities Management (ISD use only),Finance & Corporate Services,INTERSERVE (FACILITIES MANAGEMENT),,Large,,364834825,5106205942,Building Management,Paradise Off Site Management 14-15,BS32 4NH,"1,716.91",
563,Communities & Local Government,DCLG,14/08/2014,Fixed Maintenance,Finance & Corporate Services,INTERSERVE (FACILITIES MANAGEMENT),,Large,,364834825,5106205942,Environmental Services,Bridge House Grounds Maintenance 14-15,BS32 4NH,262.97,
564,Communities & Local Government,DCLG,14/08/2014,Fixed Maintenance,Finance & Corporate Services,INTERSERVE (FACILITIES MANAGEMENT),,Large,,364834825,5106205942,Environmental Services,Queen Street Grounds Maintenance 14-15,BS32 4NH,13.35,
565,Communities & Local Government,DCLG,14/08/2014,Fixed Maintenance,Finance & Corporate Services,INTERSERVE (FACILITIES MANAGEMENT),,Large,,364834825,5106205942,Construction Service Providers,Eland House Maintenance 14-15,BS32 4NH,"39,930.53",
566,Communities & Local Government,DCLG,14/08/2014,Fixed Maintenance,Finance & Corporate Services,INTERSERVE (FACILITIES MANAGEMENT),,Large,,364834825,5106205942,Construction Service Providers,TQH Maintenance 14-15,BS32 4NH,"6,027.81",
567,Communities & Local Government,DCLG,14/08/2014,Fixed Maintenance,Finance & Corporate Services,INTERSERVE (FACILITIES MANAGEMENT),,Large,,364834825,5106205942,Construction Service Providers,Hemel Hemp Maintenance 14-15,BS32 4NH,"5,437.63",
568,Communities & Local Government,DCLG,14/08/2014,Fixed Maintenance,Finance & Corporate Services,INTERSERVE (FACILITIES MANAGEMENT),,Large,,364834825,5106205942,Construction Service Providers,Rivergate Maintenance 14-15,BS32 4NH,"3,840.85",
569,Communities & Local Government,DCLG,14/08/2014,Fixed Maintenance,Finance & Corporate Services,INTERSERVE (FACILITIES MANAGEMENT),,Large,,364834825,5106205942,Construction Service Providers,Bridge House Maintenance 14-15,BS32 4NH,"5,059.73",
570,Communities & Local Government,DCLG,14/08/2014,Fixed Maintenance,Finance & Corporate Services,INTERSERVE (FACILITIES MANAGEMENT),,Large,,364834825,5106205942,Construction Service Providers,Citygate Maintenance 14-15,BS32 4NH,"3,637.07",
571,Communities & Local Government,DCLG,14/08/2014,Fixed Maintenance,Finance & Corporate Services,INTERSERVE (FACILITIES MANAGEMENT),,Large,,364834825,5106205942,Construction Service Providers,Queen Street Maintenance 14-15,BS32 4NH,"6,633.13",
572,Communities & Local Government,DCLG,14/08/2014,Fixed Maintenance,Finance & Corporate Services,INTERSERVE (FACILITIES MANAGEMENT),,Large,,364834825,5106205942,Construction Service Providers,5SPP Maintenance 14-15,BS32 4NH,"10,952.47",
573,Communities & Local Government,DCLG,14/08/2014,Fixed Maintenance,Finance & Corporate Services,INTERSERVE (FACILITIES MANAGEMENT),,Large,,364834825,5106205942,Construction Service Providers,Paradise Maintenance 14-15,BS32 4NH,"7,911.01",
574,Communities & Local Government,DCLG,14/08/2014,IT - Service Contracts,Neighbourhoods,JEREMY BENN ASSOCIATES LTD,,Medium,,525608741,5106205934,Managed / Outsourced Services,IT Enhancements,BD23 3AE,"5,768.48",
575,Communities & Local Government,DCLG,14/08/2014,Photocopying,Finance & Corporate Services,INTERSERVE (FACILITIES MANAGEMENT),,Large,,364834825,5106205942,Operational Services,Eland House Reproduction 14-15,BS32 4NH,353.08,
576,Communities & Local Government,DCLG,14/08/2014,Photocopying,Finance & Corporate Services,INTERSERVE (FACILITIES MANAGEMENT),,Large,,364834825,5106205942,Operational Services,TQH Reproduction 14-15,BS32 4NH,"6,529.09",
577,Communities & Local Government,DCLG,14/08/2014,Photocopying,Finance & Corporate Services,INTERSERVE (FACILITIES MANAGEMENT),,Large,,364834825,5106205942,Operational Services,Hemel Hemp Reproduction 14-15,BS32 4NH,126.33,
578,Communities & Local Government,DCLG,14/08/2014,Photocopying,Finance & Corporate Services,INTERSERVE (FACILITIES MANAGEMENT),,Large,,364834825,5106205942,Operational Services,5SPP Reproduction 14-15,BS32 4NH,353.08,
579,Communities & Local Government,DCLG,14/08/2014,Physical Storage,Finance & Corporate Services,IRON MOUNTAIN (UK) LIMITED,,Large,,290040211,5106205936,Warehousing and Storage,Offsite storage - tapes,EH54 7DF,445.26,
580,Communities & Local Government,DCLG,14/08/2014,Professional services,Neighbourhoods,E C HARRIS LLP,,Large,,,5106205933,Construction Service Providers,ERDF East of England QS Services,N1 9AB,"8,196.00",
581,Communities & Local Government,DCLG,14/08/2014,Publicity,"Strategy, Communications and Private Office",PRESS ASSOCIATION,,Large,,217191704,5106205938,Advertising,PRESS ASSOCIATION (PA) 2014-17,DN14 7YH,"1,273.82",
582,Communities & Local Government,DCLG,14/08/2014,Security,Finance & Corporate Services,INTERSERVE (FACILITIES MANAGEMENT),,Large,,364834825,5106205942,Security,Eland House Security 14-15,BS32 4NH,"20,047.44",
583,Communities & Local Government,DCLG,14/08/2014,Security,Finance & Corporate Services,INTERSERVE (FACILITIES MANAGEMENT),,Large,,364834825,5106205942,Security,TQH Security 14-15,BS32 4NH,"9,286.58",
584,Communities & Local Government,DCLG,14/08/2014,Security,Finance & Corporate Services,INTERSERVE (FACILITIES MANAGEMENT),,Large,,364834825,5106205942,Security,Hemel Hemp Security 14-15,BS32 4NH,"4,270.93",
585,Communities & Local Government,DCLG,14/08/2014,Security,Finance & Corporate Services,INTERSERVE (FACILITIES MANAGEMENT),,Large,,364834825,5106205942,Security,Rivergate Security 14-15,BS32 4NH,"6,764.25",
586,Communities & Local Government,DCLG,14/08/2014,Security,Finance & Corporate Services,INTERSERVE (FACILITIES MANAGEMENT),,Large,,364834825,5106205942,Security,Bridge House Security 14-15,BS32 4NH,"3,210.57",
587,Communities & Local Government,DCLG,14/08/2014,Security,Finance & Corporate Services,INTERSERVE (FACILITIES MANAGEMENT),,Large,,364834825,5106205942,Security,Citygate Security 14-15,BS32 4NH,"2,546.82",
588,Communities & Local Government,DCLG,14/08/2014,Security,Finance & Corporate Services,INTERSERVE (FACILITIES MANAGEMENT),,Large,,364834825,5106205942,Security,Queen Street Security 14-15,BS32 4NH,"2,355.01",
589,Communities & Local Government,DCLG,14/08/2014,Security,Finance & Corporate Services,INTERSERVE (FACILITIES MANAGEMENT),,Large,,364834825,5106205942,Security,5SPP Security 14-15,BS32 4NH,"4,816.46",
590,Communities & Local Government,DCLG,14/08/2014,Security,Finance & Corporate Services,INTERSERVE (FACILITIES MANAGEMENT),,Large,,364834825,5106205942,Security,Paradise Security 14-15,BS32 4NH,"2,145.00",
591,Communities & Local Government,DCLG,14/08/2014,Security,Finance & Corporate Services,RANDEX LTD,,Small,,718767069,5106205918,Security,Call out charge,N12 8NP,72.00,
592,Communities & Local Government,DCLG,14/08/2014,Security,Finance & Corporate Services,RANDEX LTD,,Small,,718767069,5106205918,Security,Repair 15 faulty filing cabinet locks,N12 8NP,450.00,
595,Communities & Local Government,DCLG,14/08/2014,Training,Finance & Corporate Services,ROYAL INST OF CHARTERED SURVEYORS,,Large,,423826098,5106205925,Development and Training,FVP Principes and Methodologies,CV4 8JE,250.75,
596,Communities & Local Government,DCLG,14/08/2014,Training,Finance & Corporate Services,ROYAL INST OF CHARTERED SURVEYORS,,Large,,423826098,5106205925,Development and Training,FVP Principes and Methodologies,CV4 8JE,250.75,
597,Communities & Local Government,DCLG,14/08/2014,Vehicle Maintenance,Localism,BABCOCK CRITICAL SERVICES LTD,,Large,,641006945,5106205921,Fleet Management,Planned Vehicle Maintenance 14/15,NG15 0DR,"551,329.19",
598,Communities & Local Government,DCLG,14/08/2014,Waste Disposal and pest control,Finance & Corporate Services,INTERSERVE (FACILITIES MANAGEMENT),,Large,,364834825,5106205942,Waste Management Services,Eland House Waste 14-15,BS32 4NH,"3,291.36",
599,Communities & Local Government,DCLG,14/08/2014,Waste Disposal and pest control,Finance & Corporate Services,INTERSERVE (FACILITIES MANAGEMENT),,Large,,364834825,5106205942,Waste Management Services,TQH Waste 14-15,BS32 4NH,"1,301.76",
600,Communities & Local Government,DCLG,14/08/2014,Waste Disposal and pest control,Finance & Corporate Services,INTERSERVE (FACILITIES MANAGEMENT),,Large,,364834825,5106205942,Waste Management Services,Hemel Hemp Waste 14-15,BS32 4NH,271.36,
601,Communities & Local Government,DCLG,14/08/2014,Waste Disposal and pest control,Finance & Corporate Services,INTERSERVE (FACILITIES MANAGEMENT),,Large,,364834825,5106205942,Waste Management Services,Rivergate Waste 14-15,BS32 4NH,917.18,
602,Communities & Local Government,DCLG,14/08/2014,Waste Disposal and pest control,Finance & Corporate Services,INTERSERVE (FACILITIES MANAGEMENT),,Large,,364834825,5106205942,Waste Management Services,Bridge House Waste 14-15,BS32 4NH,523.78,
603,Communities & Local Government,DCLG,14/08/2014,Waste Disposal and pest control,Finance & Corporate Services,INTERSERVE (FACILITIES MANAGEMENT),,Large,,364834825,5106205942,Waste Management Services,Citygate Waste 14-15,BS32 4NH,881.29,
604,Communities & Local Government,DCLG,14/08/2014,Waste Disposal and pest control,Finance & Corporate Services,INTERSERVE (FACILITIES MANAGEMENT),,Large,,364834825,5106205942,Waste Management Services,Queen Street Waste 14-15,BS32 4NH,483.15,
605,Communities & Local Government,DCLG,14/08/2014,Waste Disposal and pest control,Finance & Corporate Services,INTERSERVE (FACILITIES MANAGEMENT),,Large,,364834825,5106205942,Waste Management Services,5SPP Waste 14-15,BS32 4NH,871.18,
606,Communities & Local Government,DCLG,14/08/2014,Waste Disposal and pest control,Finance & Corporate Services,INTERSERVE (FACILITIES MANAGEMENT),,Large,,364834825,5106205942,Waste Management Services,Paradise Waste 14-15,BS32 4NH,506.16,
607,Communities & Local Government,DCLG,14/08/2014,Work In Progress Pre-Cert 40373 Spend,Neighbourhoods,ASSOCIATION OF TOWN CENTRE MGT,,,,,7600009412,,Revenue Grant To Be Paid,SE1 0QH,"8,633.07",Yes
608,Communities & Local Government,DCLG,14/08/2014,Work In Progress Pre-Cert 40373 Spend,Neighbourhoods,BIRMINGHAM CITY COUNCIL (NOT RATES),,Large,,,7600009413,,Revenue Grant To Be Paid,B1 1BB,"123,676.46",Yes
609,Communities & Local Government,DCLG,14/08/2014,Work In Progress Pre-Cert 40373 Spend,Neighbourhoods,CORBY BOROUGH COUNCIL,,Large,,,7600009411,,Revenue Grant To Be Paid,NN17 1QB,362.09,Yes
610,Communities & Local Government,DCLG,14/08/2014,Work In Progress Pre-Cert 40373 Spend,Neighbourhoods,CREATIVE ENGLAND LIMITED,,Medium,,,7600009417,,Revenue Grant To Be Paid,BS1 5SP,"14,335.44",Yes
611,Communities & Local Government,DCLG,14/08/2014,Work In Progress Pre-Cert 40373 Spend,Neighbourhoods,SERCO REGIONAL SERVICES LTD,,,,,7600009419,,Revenue Grant To Be Paid,PL6 8LU,"127,069.92",Yes
612,Communities & Local Government,DCLG,14/08/2014,Work In Progress Pre-Cert 40373 Spend,Neighbourhoods,STH WEST MANUFACTURING ADV SERVICE,,,,,7600009418,,Revenue Grant To Be Paid,TA6 6DF,"51,018.77",Yes
613,Communities & Local Government,DCLG,14/08/2014,Work In Progress Pre-Cert 40467 Spend,Neighbourhoods,BIRMINGHAM CITY COUNCIL (NOT RATES),,Large,,,7600009413,,Capital Grant To Be Paid,B1 1BB,"89,017.95",Yes
614,Communities & Local Government,DCLG,14/08/2014,Work In Progress Pre-Cert 40467 Spend,Neighbourhoods,CORNWALL SUSTAINABLE BUILDING TRUST,,Micro,,,7600009414,,Capital Grant To Be Paid,PL25 9DY,"77,172.85",Yes
615,Communities & Local Government,DCLG,14/08/2014,Work In Progress Pre-Cert 40467 Spend,Neighbourhoods,CREATIVE ENGLAND LIMITED,,Medium,,,7600009417,,Capital Grant To Be Paid,BS1 5SP,"400,000.00",Yes
616,Communities & Local Government,DCLG,14/08/2014,Work In Progress Pre-Cert 40467 Spend,Neighbourhoods,FORTDOWN DEVELOPMENTS LTD,,Micro,,,7600009415,,Capital Grant To Be Paid,TR8 5RU,"199,370.37",Yes
617,Communities & Local Government,DCLG,14/08/2014,Work In Progress Pre-Cert 40467 Spend,Neighbourhoods,HG SITES LTD,,Micro,,,7600009416,,Capital Grant To Be Paid,DN16 1DQ,"49,677.97",Yes
618,Communities & Local Government,DCLG,14/08/2014,Work In Progress Pre-Cert 40467 Spend,Neighbourhoods,MARSHALL CONSTRUCTION (WEST YORKS),,Large,,,7600009420,,Capital Grant To Be Paid,HX5 9BW,"1,115,584.73",Yes
619,Communities & Local Government,DCLG,15/08/2014,Advertising,"Strategy, Communications and Private Office",M4C-DIVISION OF GROUPM UK LTD,,Large,,734728194,5106205943,Advertising,Additional Digital Ad,WC1X 8RX,"2,494.24",
620,Communities & Local Government,DCLG,15/08/2014,Advertising,"Strategy, Communications and Private Office",M4C-DIVISION OF GROUPM UK LTD,,Large,,734728194,5106205943,Advertising,Advertising Standards Board of Finance Fee,WC1X 8RX,2.02,
621,Communities & Local Government,DCLG,15/08/2014,Agency Staff,Finance & Corporate Services,CAPITA BUS. SERV. LTD (CON LAB),,Large,,,5106205969,Contingent Labour,Interim and Specialist Contractor,DL1 9HB,"3,002.64",
622,Communities & Local Government,DCLG,15/08/2014,Agency Staff,Finance & Corporate Services,CAPITA BUS. SERV. LTD (CON LAB),,Large,,,5106205979,Contingent Labour,Interim and Specialist Contractor,DL1 9HB,"7,917.84",
623,Communities & Local Government,DCLG,15/08/2014,Agency Staff,Neighbourhoods,CAPITA BUS. SERV. LTD (CON LAB),,Large,,,5106205951,Contingent Labour,Interim assessor,DL1 9HB,"4,056.84",
624,Communities & Local Government,DCLG,15/08/2014,Agency Staff,Neighbourhoods,CAPITA BUS. SERV. LTD (CON LAB),,Large,,,5106205956,Contingent Labour,Interim and Specialist Contractor,DL1 9HB,"3,327.42",
625,Communities & Local Government,DCLG,15/08/2014,Agency Staff,Neighbourhoods,CAPITA BUS. SERV. LTD (CON LAB),,Large,,,5106205970,Contingent Labour,Interim regional assessor,DL1 9HB,"1,756.73",
626,Communities & Local Government,DCLG,15/08/2014,Agency Staff,Neighbourhoods,CAPITA BUS. SERV. LTD (CON LAB),,Large,,,5106205971,Contingent Labour,Interim and Specialist Contractor,DL1 9HB,"1,833.60",
627,Communities & Local Government,DCLG,15/08/2014,Agency Staff,Neighbourhoods,CAPITA BUS. SERV. LTD (CON LAB),,Large,,,5106205977,Contingent Labour,Interim and Specialist Contractor,DL1 9HB,"1,963.44",
628,Communities & Local Government,DCLG,15/08/2014,Agency Staff,Neighbourhoods,CAPITA BUS. SERV. LTD (CON LAB),,Large,,,5106205978,Contingent Labour,Interim and Specialist Contractor,DL1 9HB,"1,963.44",
629,Communities & Local Government,DCLG,15/08/2014,Agency Staff,Neighbourhoods,CAPITA BUS. SERV. LTD (CON LAB),,Large,,,5106205980,Contingent Labour,Interim and Specialist Contractor,DL1 9HB,"2,028.42",
630,Communities & Local Government,DCLG,15/08/2014,Agency Staff,Neighbourhoods,CAPITA BUS. SERV. LTD (CON LAB),,Large,,,5106205981,Contingent Labour,Interim Manager,DL1 9HB,"2,028.42",
631,Communities & Local Government,DCLG,15/08/2014,Cap Grants to Private Sector Companies,Neighbourhoods,ANGLE RING HOLDINGS LTD,,,,,2100245474,,Advanced Manufacturing - Angle Ring Manufacturing,DY4 9EH,"82,149.36",Yes
632,Communities & Local Government,DCLG,15/08/2014,Cap Grants to Private Sector Companies,Neighbourhoods,ATLANTIC INERTIAL SYSTEMS LTD,,Large,,,2100245485,,Taxi Strike Alert System,PL6 6DE,"270,814.00",Yes
633,Communities & Local Government,DCLG,15/08/2014,Cap Grants to Private Sector Companies,Neighbourhoods,AVANTI HYLAS 2 LIMITED,,,,,2100245488,,Goonhilly Development Programme,EC2A 3AY,"71,112.00",Yes
634,Communities & Local Government,DCLG,15/08/2014,Cap Grants to Private Sector Companies,Neighbourhoods,CLOSE BROTHERS LTD,,,,,2100245476,,Close Brothers Asset Purchase Programme,EC2A 4FT,"5,000,000.00",Yes
635,Communities & Local Government,DCLG,15/08/2014,Cap Grants to Private Sector Companies,Neighbourhoods,DEUTSCHE LEASING (UK) LTD,,Large,,,2100245478,,Deutsche Leasing RGF Programme,RH2 9PY,"3,000,000.00",Yes
636,Communities & Local Government,DCLG,15/08/2014,Cap Grants to Private Sector Companies,Neighbourhoods,DUNHILLS (PONTYFRACT) PLC,,Large,,,2100245448,,Dunhills Pontefract PLC Harlbo,WF8 1NJ,"400,000.00",Yes
637,Communities & Local Government,DCLG,15/08/2014,Cap Grants to Private Sector Companies,Neighbourhoods,E2V TECHNOLOGIES (UK) LTD,,Large,,217053131,2100245493,,Cancer Radiotherapy The Next Wave e2v Technologies,CM1 2QU,"84,122.00",Yes
638,Communities & Local Government,DCLG,15/08/2014,Cap Grants to Private Sector Companies,Neighbourhoods,ENERGY COAST WEST CUMBRIA LTD,,Medium,,,2100245452,,Britains Energy Coast - West Cumbria Ltd,CA24 3JZ,"513,748.00",Yes
639,Communities & Local Government,DCLG,15/08/2014,Cap Grants to Private Sector Companies,Neighbourhoods,FAINIUM LTD,,Large,,,2100245492,,Flanium Ltd,SO31 4RA,"50,492.00",Yes
640,Communities & Local Government,DCLG,15/08/2014,Cap Grants to Private Sector Companies,Neighbourhoods,FIVE ARROWS LEASING GROUP LTD,,,,,2100245479,,Five Arrows Leasing Group Ltd (FALG),TW9 1EL,"2,000,000.00",Yes
641,Communities & Local Government,DCLG,15/08/2014,Cap Grants to Private Sector Companies,Neighbourhoods,MALVERN INSTRUMENTS LIMITED,,,,,2100245472,,R&D Centre for Bioscience and Nanomaterials,WR14 1XZ,"190,936.73",Yes
642,Communities & Local Government,DCLG,15/08/2014,Cap Grants to Private Sector Companies,Neighbourhoods,MALVERN INSTRUMENTS LIMITED,,,,,2100245475,,R&D Centre for Bioscience and Nanomaterials,WR14 1XZ,"483,608.75",Yes
643,Communities & Local Government,DCLG,15/08/2014,Cap Grants to Private Sector Companies,Neighbourhoods,MERSEY DOCK & HARBOUR COMPANY LTD,,,,,2100245455,,Sefton Dredging - Mersey Dock and Harbour Company,L21 1LA,"575,971.00",Yes
644,Communities & Local Government,DCLG,15/08/2014,Cap Grants to Private Sector Companies,Neighbourhoods,MOLPLEX LTD,,,,,2100245450,,Regional Growth Fund Quarter 2,SK10 4TG,"7,057.44",Yes
645,Communities & Local Government,DCLG,15/08/2014,Cap Grants to Private Sector Companies,Neighbourhoods,NDC POLYTHENES LTD,,Small,,,2100245473,,Advanced Manufacturing - Project Integration,DY2 0XQ,"84,158.68",Yes
646,Communities & Local Government,DCLG,15/08/2014,Cap Grants to Private Sector Companies,Neighbourhoods,TATA STEEL UK LTD,,Large,,,2100245454,,Tata Steel UK Limited,S60 3AR,"945,619.99",Yes
647,Communities & Local Government,DCLG,15/08/2014,Cap Grants to Private Sector Companies,Neighbourhoods,TATA STEEL UK LTD,,Large,,,2100245495,,Innovation Steel Products Research and Innovation,S60 3AR,"1,805,556.00",Yes
648,Communities & Local Government,DCLG,15/08/2014,Cap Grants to Private Sector Companies,Neighbourhoods,WEST OF ENGLAND UNIVERSITY,,Large,,217032499,2100245487,,Innovation 4 Growth  University of West of England,BS16 1QY,"42,766.00",Yes
649,Communities & Local Government,DCLG,15/08/2014,Capital Grant to LA Replace Loan Nonbud,Neighbourhoods,BIRMINGHAM CITY COUNCIL,,,,213270263,2100245481,,Debt Fund - Birmingham City Council,B3 3PL,"2,049,151.00",
650,Communities & Local Government,DCLG,15/08/2014,Capital Grant to LA Replace Loan Nonbud,Neighbourhoods,BIRMINGHAM CITY COUNCIL,,,,213270263,2100245482,,Mezzanine Fund Birmingham City Council,B3 3PL,"1,593,785.00",
651,Communities & Local Government,DCLG,15/08/2014,Capital Grant to LA Replace Loan Nonbud,Neighbourhoods,BLACKBURN WITH DARWEN BC,,Large,,212925606,2100245466,,Regenerate Pennine Lancashire,BB1 7DY,"723,296.00",
652,Communities & Local Government,DCLG,15/08/2014,Capital Grant to LA Replace Loan Nonbud,Neighbourhoods,BLACKBURN WITH DARWEN BC,,Large,,212925606,2100245470,,Regenerate Pennine Lancashire -,BB1 7DY,"1,043,030.00",
653,Communities & Local Government,DCLG,15/08/2014,Capital Grant to LA Replace Loan Nonbud,Neighbourhoods,BRADFORD MBC,,,,,2100245468,,Bradford Metropolitan District Council,BD1 1HX,"772,595.91",
654,Communities & Local Government,DCLG,15/08/2014,Capital Grant to LA Replace Loan Nonbud,Neighbourhoods,BURNLEY BC,,,,,2100245469,,Todmorden Rail Curve (Phase1) Weavers Triangle,BB11 2DS,"332,842.00",
655,Communities & Local Government,DCLG,15/08/2014,Capital Grant to LA Replace Loan Nonbud,Neighbourhoods,COAST TO CAPITAL,,Small,,,2100245459,,C2C Business Growth Grants - Coast to Capital,RH12 2DN,"550,000.00",
656,Communities & Local Government,DCLG,15/08/2014,Capital Grant to LA Replace Loan Nonbud,Neighbourhoods,DERBY CITY COUNCIL,,Large,,229641378,2100245483,,Derby Employment Task Force - Derby City Council,DE1 2YL,"5,135,425.00",
657,Communities & Local Government,DCLG,15/08/2014,Capital Grant to LA Replace Loan Nonbud,Neighbourhoods,HASTINGS BOROUGH COUNCIL,,Public Bodies,,,2100245457,,SUCCESS - Hastings Borough Council,TN34 3WN,"633,658.90",
658,Communities & Local Government,DCLG,15/08/2014,Capital Grant to LA Replace Loan Nonbud,Neighbourhoods,HINCKLEY &  BOSWORTH BOROUGH COUNCI,,Large,,,2100245464,,Hinckley and Bosworth A5 and Mira Enterprise Zone,LE10 1BZ,"1,439,007.00",
659,Communities & Local Government,DCLG,15/08/2014,Capital Grant to LA Replace Loan Nonbud,Neighbourhoods,LEICESTER CITY COUNCIL,,Public Bodies,,228219960,2100245461,,LLEP Accelerating Prosperity Programme,LE1 6ZG,"1,892,645.00",
660,Communities & Local Government,DCLG,15/08/2014,Capital Grant to LA Replace Loan Nonbud,Neighbourhoods,LIVERPOOL CITY COUNCIL,,Public Bodies,,228646113,2100245467,,Liverpool Keepmoat Homes,L2 2DH,"40,798.83",
661,Communities & Local Government,DCLG,15/08/2014,Capital Grant to LA Replace Loan Nonbud,Neighbourhoods,LUTON BOROUGH COUNCIL,,Public Bodies,,,2100245494,,Luton Borough Council -M1 Junction 10A Improvement,LU1 2RD,"6,048,290.00",
662,Communities & Local Government,DCLG,15/08/2014,Capital Grant to LA Replace Loan Nonbud,Neighbourhoods,NEWCASTLE CITY COUNCIL,,,,210061649,2100245490,,Newscastle Central Gateway -Newcastle City Council,NE1 8QN,"125,356.00",
663,Communities & Local Government,DCLG,15/08/2014,Capital Grant to LA Replace Loan Nonbud,Neighbourhoods,NORTH EAST LINCOLN DC,,Public Bodies,,,2100245456,,Developing UK s leading food manufacturing,DN35 8LN,"60,000.00",
664,Communities & Local Government,DCLG,15/08/2014,Capital Grant to LA Replace Loan Nonbud,Neighbourhoods,NORTH EAST LINCOLN DC,,Public Bodies,,,2100245484,,Growing the Humber,DN35 8LN,"7,981,487.00",
665,Communities & Local Government,DCLG,15/08/2014,Capital Grant to LA Replace Loan Nonbud,Neighbourhoods,NORTH YORKSHIRE COUNTY COUNCIL,,Large,,,2100245465,,York North Yorkshire and East Riding Enterprise,DL7 8AH,"522,646.70",
666,Communities & Local Government,DCLG,15/08/2014,Capital Grant to LA Replace Loan Nonbud,Neighbourhoods,PLYMOUTH CITY COUNCIL,,,,236416095,2100245496,,Plymouth City Council,PL1 2AA,"1,354,578.98",
667,Communities & Local Government,DCLG,15/08/2014,Capital Grant to LA Replace Loan Nonbud,Neighbourhoods,SOUTHAMPTON CITY COUNCIL,,Public Bodies,,216927475,2100245458,,Platform for prosperity - Southampton City Council,SO14 7LY,"1,978,713.87",
668,Communities & Local Government,DCLG,15/08/2014,Capital Grant to LA Replace Loan Nonbud,Neighbourhoods,SUNDERLAND CITY COUNCIL,,,,215599312,2100245489,,Sunderland City Deal Infrastructure Development,SR2 7DN,"329,519.00",
669,Communities & Local Government,DCLG,15/08/2014,Capital Grant to LA Replace Loan Nonbud,Neighbourhoods,SUNDERLAND CITY COUNCIL,,,,215599312,2100245491,,Business Growth Hub - Sunderland City Council,SR2 7DN,"179,093.00",
670,Communities & Local Government,DCLG,15/08/2014,Capital Grant to LA Replace Loan Nonbud,Neighbourhoods,WORCESTERSHIRE COUNTY COUNCIL,,Public Bodies,,230359643,2100245463,,Worcester Expansion Fund - Worcester City Council,WR5 2NP,"886,356.00",
671,Communities & Local Government,DCLG,15/08/2014,Current (non AEF) Grants to Local Authorities,Localism,ADUR DC,,,,227472891,5000259845,,Council Tax Freeze,BN11 1HB,"6,287.00",Yes
672,Communities & Local Government,DCLG,15/08/2014,Current (non AEF) Grants to Local Authorities,Localism,AMBER VALLEY BC,,,,,5000259846,,Council Tax Freeze,DE5 3WZ,"6,377.00",Yes
673,Communities & Local Government,DCLG,15/08/2014,Current (non AEF) Grants to Local Authorities,Localism,ARUN DC,,,,211217668,5000259742,,Council Tax Freeze,BN17 5LF,"10,274.00",Yes
674,Communities & Local Government,DCLG,15/08/2014,Current (non AEF) Grants to Local Authorities,Localism,ASHFORD BC,,,,229467071,5000259743,,Council Tax Freeze,TN23 1PL,"6,866.00",Yes
675,Communities & Local Government,DCLG,15/08/2014,Current (non AEF) Grants to Local Authorities,Localism,BABERGH DC,,,,232618405,5000259744,,Council Tax Freeze,IP7 6SJ,"4,931.00",Yes
676,Communities & Local Government,DCLG,15/08/2014,Current (non AEF) Grants to Local Authorities,Localism,BARKING & DAGENHAM LB (HSG),,,,217142293,5000259745,,Council Tax Freeze,RM10 7BY,"54,149.00",Yes
677,Communities & Local Government,DCLG,15/08/2014,Current (non AEF) Grants to Local Authorities,Localism,BARNET LBC,,,,211049507,5000259847,,Council Tax Freeze,NW4 4BG,"165,931.00",Yes
678,Communities & Local Government,DCLG,15/08/2014,Current (non AEF) Grants to Local Authorities,Localism,BASILDON BOROUGH COUNCIL,,,,,5000259848,,Council Tax Freeze,SS14 0DF,"16,237.00",Yes
679,Communities & Local Government,DCLG,15/08/2014,Current (non AEF) Grants to Local Authorities,Localism,BASINGSTOKE & DEANE BC,,,,228328506,5000259849,,Council Tax Freeze,RG21 2AJ,"6,937.00",Yes
680,Communities & Local Government,DCLG,15/08/2014,Current (non AEF) Grants to Local Authorities,Localism,BATH & NE SOMERSET DC (HSG),,,,214502499,5000259746,,Council Tax Freeze,BA1 5AW,"79,867.00",Yes
681,Communities & Local Government,DCLG,15/08/2014,Current (non AEF) Grants to Local Authorities,Localism,BEDFORD UNITARY AUTHORITY,,,,225682160,5000259987,,Council Tax Freeze,MK40 1SJ,"77,230.00",Yes
682,Communities & Local Government,DCLG,15/08/2014,Current (non AEF) Grants to Local Authorities,Localism,BEXLEY LB (HSG),,,,,5000259747,,Council Tax Freeze,DA8 1TL,"96,817.00",Yes
683,Communities & Local Government,DCLG,15/08/2014,Current (non AEF) Grants to Local Authorities,Localism,BLACKBURN WITH DARWEN BC,,,,,5000259850,,Council Tax Freeze,BB1 7DY,"49,798.00",Yes
684,Communities & Local Government,DCLG,15/08/2014,Current (non AEF) Grants to Local Authorities,Localism,BLACKPOOL BC,,,,,5000259851,,Council Tax Freeze,FY1 1NA,"61,277.00",Yes
685,Communities & Local Government,DCLG,15/08/2014,Current (non AEF) Grants to Local Authorities,Localism,BOLSOVER DC,,,,235516523,5000259852,,Council Tax Freeze,S44 6NF,"3,678.00",Yes
686,Communities & Local Government,DCLG,15/08/2014,Current (non AEF) Grants to Local Authorities,Localism,BOSTON BC,,,,236417713,5000259748,,Council Tax Freeze,PE21 8QR,"3,395.00",Yes
687,Communities & Local Government,DCLG,15/08/2014,Current (non AEF) Grants to Local Authorities,Localism,BOURNEMOUTH DC,,,,,5000259853,,Council Tax Freeze,BH2 6EB,"84,313.00",Yes
688,Communities & Local Government,DCLG,15/08/2014,Current (non AEF) Grants to Local Authorities,Localism,BRACKNELL FOREST DC,,,,236184867,5000259854,,Council Tax Freeze,RG12 1AQ,"50,143.00",Yes
689,Communities & Local Government,DCLG,15/08/2014,Current (non AEF) Grants to Local Authorities,Localism,BRAINTREE DC,,,,226941730,5000259749,,Council Tax Freeze,CM7 6HB,"8,751.00",Yes
690,Communities & Local Government,DCLG,15/08/2014,Current (non AEF) Grants to Local Authorities,Localism,BRECKLAND DC,,,,232611384,5000259750,,Council Tax Freeze,NR19 1EE,"3,072.00",Yes
691,Communities & Local Government,DCLG,15/08/2014,Current (non AEF) Grants to Local Authorities,Localism,BRENT LB (HSG),,,,,5000259751,,Council Tax Freeze,HA9 9HD,"105,603.00",Yes
692,Communities & Local Government,DCLG,15/08/2014,Current (non AEF) Grants to Local Authorities,Localism,BRENTWOOD BC,,,,227473188,5000259855,,Council Tax Freeze,CM15 8AY,"5,682.00",Yes
693,Communities & Local Government,DCLG,15/08/2014,Current (non AEF) Grants to Local Authorities,Localism,BROADLAND DC,,Large,,219737785,5000259752,,Council Tax Freeze,NR7 0DU,"5,252.00",Yes
694,Communities & Local Government,DCLG,15/08/2014,Current (non AEF) Grants to Local Authorities,Localism,BROMLEY LB,,,,211331954,5000259856,,Council Tax Freeze,BR1 3UH,"138,174.00",Yes
695,Communities & Local Government,DCLG,15/08/2014,Current (non AEF) Grants to Local Authorities,Localism,BROXBOURNE BC,,Public Bodies,,239931918,5000259857,,Council Tax Freeze,EN8 9XG,"4,224.00",Yes
696,Communities & Local Government,DCLG,15/08/2014,Current (non AEF) Grants to Local Authorities,Localism,BROXTOWE BC,,,,239877640,5000259858,,Council Tax Freeze,NG9 1AB,"5,946.00",Yes
697,Communities & Local Government,DCLG,15/08/2014,Current (non AEF) Grants to Local Authorities,Localism,BUCKS & MILTON KEYNES FIRE AUTH,,Public Bodies,,423679463,5000259975,,Council Tax Freeze,HP20 1BD,"18,081.00",Yes
698,Communities & Local Government,DCLG,15/08/2014,Current (non AEF) Grants to Local Authorities,Localism,BURY MBC,,,,,5000259859,,Council Tax Freeze,BL9 0SW,"77,374.00",Yes
699,Communities & Local Government,DCLG,15/08/2014,Current (non AEF) Grants to Local Authorities,Localism,CALDERDALE MBC,,,,,5000259860,,Council Tax Freeze,HX1 1YP,"84,120.00",Yes
700,Communities & Local Government,DCLG,15/08/2014,Current (non AEF) Grants to Local Authorities,Localism,CAMBS & PETERBOROUGH FIRE AUTHORITY,,,,235999737,5000259979,,Council Tax Freeze,PE29 2NA,"18,456.00",Yes
701,Communities & Local Government,DCLG,15/08/2014,Current (non AEF) Grants to Local Authorities,Localism,CAMDEN LB,,,,211651836,5000259861,,Council Tax Freeze,WC1H 8NG,"103,128.00",Yes
702,Communities & Local Government,DCLG,15/08/2014,Current (non AEF) Grants to Local Authorities,Localism,CANNOCK CHASE DC,,,,215064770,5000259862,,Council Tax Freeze,WS11 1BG,"6,116.00",Yes
703,Communities & Local Government,DCLG,15/08/2014,Current (non AEF) Grants to Local Authorities,Localism,CARLISLE CITY CNCL,,,,227471059,5000259753,,Council Tax Freeze,CA3 8QG,"6,888.00",Yes
704,Communities & Local Government,DCLG,15/08/2014,Current (non AEF) Grants to Local Authorities,Localism,CASTLE POINT BC,,Public Bodies,,228217931,5000259863,,Council Tax Freeze,SS7 1TF,"7,583.00",Yes
705,Communities & Local Government,DCLG,15/08/2014,Current (non AEF) Grants to Local Authorities,Localism,CENTRAL BEDFORDSHIRE COUNCIL,,,,232624882,5000259984,,Council Tax Freeze,SG17 5TQ,"129,776.00",Yes
706,Communities & Local Government,DCLG,15/08/2014,Current (non AEF) Grants to Local Authorities,Localism,CHARNWOOD BC,,,,,5000259864,,Council Tax Freeze,LE11 2TU,"7,025.00",Yes
707,Communities & Local Government,DCLG,15/08/2014,Current (non AEF) Grants to Local Authorities,Localism,CHELTENHAM BC,,,,,5000259865,,Council Tax Freeze,GL50 1PW,"8,122.00",Yes
708,Communities & Local Government,DCLG,15/08/2014,Current (non AEF) Grants to Local Authorities,Localism,CHERWELL DC,,,,,5000259754,,Council Tax Freeze,OX15 4AA,"6,390.00",Yes
709,Communities & Local Government,DCLG,15/08/2014,Current (non AEF) Grants to Local Authorities,Localism,CHESHIRE EAST COUNCIL,,Large,,,5000259985,,Council Tax Freeze,CW11 1HZ,"180,689.00",Yes
710,Communities & Local Government,DCLG,15/08/2014,Current (non AEF) Grants to Local Authorities,Localism,CHESHIRE WEST & CHESTER UA,,Large,,215584383,5000259986,,Council Tax Freeze,CH1 2NP,"158,058.00",Yes
711,Communities & Local Government,DCLG,15/08/2014,Current (non AEF) Grants to Local Authorities,Localism,CHESTERFIELD BC,,,,232102301,5000259866,,Council Tax Freeze,S40 1LP,"4,791.00",Yes
712,Communities & Local Government,DCLG,15/08/2014,Current (non AEF) Grants to Local Authorities,Localism,CHILTERN DC (HSG),,,,,5000259755,,Council Tax Freeze,HP6 5AW,"7,424.00",Yes
713,Communities & Local Government,DCLG,15/08/2014,Current (non AEF) Grants to Local Authorities,Localism,CHORLEY BOROUGH COUNCIL,,,,236415576,5000259867,,Council Tax Freeze,PR7 1DP,"6,614.00",Yes
714,Communities & Local Government,DCLG,15/08/2014,Current (non AEF) Grants to Local Authorities,Localism,CITY OF LONDON (HSG),,,,217471460,5000259756,,Council Tax Freeze,EC2P 2EJ,"5,156.00",Yes
715,Communities & Local Government,DCLG,15/08/2014,Current (non AEF) Grants to Local Authorities,Localism,CITY OF SUNDERLAND (HSG),,,,215599312,5000259757,,Council Tax Freeze,SR2 7DN,"96,444.00",Yes
716,Communities & Local Government,DCLG,15/08/2014,Current (non AEF) Grants to Local Authorities,Localism,COLCHESTER BC,,,,,5000259868,,Council Tax Freeze,CO3 3WG,"11,246.00",Yes
717,Communities & Local Government,DCLG,15/08/2014,Current (non AEF) Grants to Local Authorities,Localism,CORBY BC,,,,,5000259758,,Council Tax Freeze,NN17 1GD,"3,485.00",Yes
718,Communities & Local Government,DCLG,15/08/2014,Current (non AEF) Grants to Local Authorities,Localism,COTSWOLD DC,,,,232462085,5000259759,,Council Tax Freeze,GL7 1PX,"5,217.00",Yes
719,Communities & Local Government,DCLG,15/08/2014,Current (non AEF) Grants to Local Authorities,Localism,CRAVEN DC (HSG),,,,,5000259760,,Council Tax Freeze,BD23 1FJ,"3,502.00",Yes
720,Communities & Local Government,DCLG,15/08/2014,Current (non AEF) Grants to Local Authorities,Localism,CRAWLEY BC,,,,211222500,5000259761,,Council Tax Freeze,RH10 1UZ,"7,046.00",Yes
721,Communities & Local Government,DCLG,15/08/2014,Current (non AEF) Grants to Local Authorities,Localism,CROYDON LB,,,,212419973,5000259869,,Council Tax Freeze,CR9 3JS,"155,742.00",Yes
722,Communities & Local Government,DCLG,15/08/2014,Current (non AEF) Grants to Local Authorities,Localism,CUMBRIA COUNTY CNCL,,,,211316542,5000259870,,Council Tax Freeze,CA3 8NA,"210,346.00",Yes
723,Communities & Local Government,DCLG,15/08/2014,Current (non AEF) Grants to Local Authorities,Localism,DARTFORD BC,,,,225694942,5000259762,,Council Tax Freeze,DA1 1DR,"5,864.00",Yes
724,Communities & Local Government,DCLG,15/08/2014,Current (non AEF) Grants to Local Authorities,Localism,DERBYSHIRE DALES DC,,,,,5000259763,,Council Tax Freeze,DE4 3NN,"5,735.00",Yes
725,Communities & Local Government,DCLG,15/08/2014,Current (non AEF) Grants to Local Authorities,Localism,DOVER DC,,,,,5000259764,,Council Tax Freeze,CT16 3PD,"6,876.00",Yes
726,Communities & Local Government,DCLG,15/08/2014,Current (non AEF) Grants to Local Authorities,Localism,DUDLEY MBC,,,,,5000259871,,Council Tax Freeze,DY1 1HF,"114,503.00",Yes
727,Communities & Local Government,DCLG,15/08/2014,Current (non AEF) Grants to Local Authorities,Localism,EALING LB,,,,,5000259872,,Council Tax Freeze,W5 2HL,"127,938.00",Yes
728,Communities & Local Government,DCLG,15/08/2014,Current (non AEF) Grants to Local Authorities,Localism,EAST CAMBRIDGESHIRE DC,,,,236472023,5000259765,,Council Tax Freeze,CB7 4PL,"4,292.00",Yes
729,Communities & Local Government,DCLG,15/08/2014,Current (non AEF) Grants to Local Authorities,Localism,EAST DEVON DC,,,,,5000259766,,Council Tax Freeze,EX10 8HL,"7,111.00",Yes
730,Communities & Local Government,DCLG,15/08/2014,Current (non AEF) Grants to Local Authorities,Localism,EAST HAMPSHIRE DC,,,,,5000259767,,Council Tax Freeze,GU31 4EX,"6,920.00",Yes
731,Communities & Local Government,DCLG,15/08/2014,Current (non AEF) Grants to Local Authorities,Localism,EAST HERTFORDSHIRE DC,,,,236176954,5000259768,,Council Tax Freeze,SG13 8EQ,"9,429.00",Yes
732,Communities & Local Government,DCLG,15/08/2014,Current (non AEF) Grants to Local Authorities,Localism,EAST NORTHAMPTONSHIRE COUNCIL,,,,227475290,5000259769,,Council Tax Freeze,NN14 4LZ,"3,872.00",Yes
733,Communities & Local Government,DCLG,15/08/2014,Current (non AEF) Grants to Local Authorities,Localism,EAST RIDING OF YORKS (HSG),,,,423159987,5000259770,,Council Tax Freeze,HU17 9BA,"142,791.00",Yes
734,Communities & Local Government,DCLG,15/08/2014,Current (non AEF) Grants to Local Authorities,Localism,EAST STAFFORDSHIRE BC,,,,226778033,5000259771,,Council Tax Freeze,DE14 2EB,"6,863.00",Yes
735,Communities & Local Government,DCLG,15/08/2014,Current (non AEF) Grants to Local Authorities,Localism,EASTBOURNE BC,,,,229896428,5000259873,,Council Tax Freeze,BN21 4TW,"8,502.00",Yes
736,Communities & Local Government,DCLG,15/08/2014,Current (non AEF) Grants to Local Authorities,Localism,EASTLEIGH BOROUGH COUNCIL,,,,232669911,5000259874,,Council Tax Freeze,SO5 9YN,"6,110.00",Yes
737,Communities & Local Government,DCLG,15/08/2014,Current (non AEF) Grants to Local Authorities,Localism,ELMBRIDGE BC (HSG),,,,,5000259772,,Council Tax Freeze,KT10 9SD,"13,213.00",Yes
738,Communities & Local Government,DCLG,15/08/2014,Current (non AEF) Grants to Local Authorities,Localism,ENFIELD LB,,,,,5000259875,,Council Tax Freeze,EN1 3XF,"121,183.00",Yes
739,Communities & Local Government,DCLG,15/08/2014,Current (non AEF) Grants to Local Authorities,Localism,EPPING FOREST DC,,,,775876360,5000259876,,Council Tax Freeze,CM16 4BZ,"8,273.00",Yes
740,Communities & Local Government,DCLG,15/08/2014,Current (non AEF) Grants to Local Authorities,Localism,EREWASH BC,,,,211209762,5000259877,,Council Tax Freeze,DE7 5RP,"6,050.00",Yes
741,Communities & Local Government,DCLG,15/08/2014,Current (non AEF) Grants to Local Authorities,Localism,ESSEX COUNTY CNCL,,,,233572986,5000259878,,Council Tax Freeze,CM1 1JZ,"591,110.00",Yes
742,Communities & Local Government,DCLG,15/08/2014,Current (non AEF) Grants to Local Authorities,Localism,ESSEX FIRE AUTHORITY,,Large,,424873099,5000259976,,Council Tax Freeze,CM8 3HB,"43,852.00",Yes
743,Communities & Local Government,DCLG,15/08/2014,Current (non AEF) Grants to Local Authorities,Localism,FAREHAM BC,,,,228474144,5000259773,,Council Tax Freeze,PO16 7PU,"6,131.00",Yes
744,Communities & Local Government,DCLG,15/08/2014,Current (non AEF) Grants to Local Authorities,Localism,FENLAND DC,,,,227476348,5000259774,,Council Tax Freeze,PE15 8NQ,"7,675.00",Yes
745,Communities & Local Government,DCLG,15/08/2014,Current (non AEF) Grants to Local Authorities,Localism,FOREST HEATH DISTRICT COUNCIL,,,,236678116,5000259775,,Council Tax Freeze,IP28 7EY,"2,484.00",Yes
746,Communities & Local Government,DCLG,15/08/2014,Current (non AEF) Grants to Local Authorities,Localism,FOREST OF DEAN DC,,,,211278890,5000259776,,Council Tax Freeze,GL16 8HG,"4,945.00",Yes
747,Communities & Local Government,DCLG,15/08/2014,Current (non AEF) Grants to Local Authorities,Localism,FYLDE BC,,,,227479912,5000259879,,Council Tax Freeze,FY8 1LW,"5,902.00",Yes
748,Communities & Local Government,DCLG,15/08/2014,Current (non AEF) Grants to Local Authorities,Localism,GATESHEAD MBC,,,,216116041,5000259880,,Council Tax Freeze,NE8 1HH,"88,525.00",Yes
749,Communities & Local Government,DCLG,15/08/2014,Current (non AEF) Grants to Local Authorities,Localism,GEDLING BC,,,,236180337,5000259881,,Council Tax Freeze,NG5 6LU,"6,062.00",Yes
750,Communities & Local Government,DCLG,15/08/2014,Current (non AEF) Grants to Local Authorities,Localism,GLOUCESTER CITY CNCL,,,,230841392,5000259882,,Council Tax Freeze,GL1 2EQ,"7,293.00",Yes
751,Communities & Local Government,DCLG,15/08/2014,Current (non AEF) Grants to Local Authorities,Localism,GLOUCESTERSHIRE COUNTY CNCL,,,,211272067,5000259883,,Council Tax Freeze,GL1 2TG,"250,498.00",Yes
752,Communities & Local Government,DCLG,15/08/2014,Current (non AEF) Grants to Local Authorities,Localism,GOSPORT BOROUGH COUNCIL,,,,239825078,5000259884,,Council Tax Freeze,PO12 1ED,"5,676.00",Yes
753,Communities & Local Government,DCLG,15/08/2014,Current (non AEF) Grants to Local Authorities,Localism,GREAT YARMOUTH BC,,,,292697372,5000259885,,Council Tax Freeze,NR30 2QG,"4,718.00",Yes
754,Communities & Local Government,DCLG,15/08/2014,Current (non AEF) Grants to Local Authorities,Localism,GREATER LONDON AUTHORITY,,,,,5000259992,,Council Tax Freeze,SE10 1AJ,"945,939.00",Yes
755,Communities & Local Government,DCLG,15/08/2014,Current (non AEF) Grants to Local Authorities,Localism,GREATER MANCHESTER FIRE (RSG),,,,,5000259971,,Council Tax Freeze,M27 2US,"47,004.00",Yes
756,Communities & Local Government,DCLG,15/08/2014,Current (non AEF) Grants to Local Authorities,Localism,GREENWICH LB,,,,,5000259886,,Council Tax Freeze,SE18 6BU,"81,943.00",Yes
757,Communities & Local Government,DCLG,15/08/2014,Current (non AEF) Grants to Local Authorities,Localism,HAMBLETON DC (HSG),,,,503481319,5000259777,,Council Tax Freeze,DL6 2UU,"3,292.00",Yes
758,Communities & Local Government,DCLG,15/08/2014,Current (non AEF) Grants to Local Authorities,Localism,HAMMERSMITH & FULHAM LB,,,,216929489,5000259888,,Council Tax Freeze,W6 9JU,"63,072.00",Yes
759,Communities & Local Government,DCLG,15/08/2014,Current (non AEF) Grants to Local Authorities,Localism,HAMPSHIRE COUNTY COUNCIL,,,,211325832,5000259889,,Council Tax Freeze,SO23 8UB,"542,767.00",Yes
760,Communities & Local Government,DCLG,15/08/2014,Current (non AEF) Grants to Local Authorities,Localism,HAMPSHIRE FIRE & RESCUE AUTHORITY,,Large,,,5000259982,,Council Tax Freeze,SO23 8UB,"39,991.00",Yes
761,Communities & Local Government,DCLG,15/08/2014,Current (non AEF) Grants to Local Authorities,Localism,HARBOROUGH DC (HSG),,,,212935774,5000259778,,Council Tax Freeze,LE16 7AG,"5,643.00",Yes
762,Communities & Local Government,DCLG,15/08/2014,Current (non AEF) Grants to Local Authorities,Localism,HARINGEY LB,,,,217471767,5000259890,,Council Tax Freeze,N22 4TR,"103,232.00",Yes
763,Communities & Local Government,DCLG,15/08/2014,Current (non AEF) Grants to Local Authorities,Localism,HARROGATE BC,,,,236660031,5000259779,,Council Tax Freeze,HG1 2SG,"13,910.00",Yes
764,Communities & Local Government,DCLG,15/08/2014,Current (non AEF) Grants to Local Authorities,Localism,HARROW LB,,,,,5000259891,,Council Tax Freeze,HA1 2UZ,"104,989.00",Yes
765,Communities & Local Government,DCLG,15/08/2014,Current (non AEF) Grants to Local Authorities,Localism,HART DC,,,,229723895,5000259892,,Council Tax Freeze,GU13 8AE,"5,912.00",Yes
766,Communities & Local Government,DCLG,15/08/2014,Current (non AEF) Grants to Local Authorities,Localism,HARTLEPOOL BOROUGH COUNCIL,,,,424291797,5000259893,,Council Tax Freeze,TS24 8AY,"40,783.00",Yes
767,Communities & Local Government,DCLG,15/08/2014,Current (non AEF) Grants to Local Authorities,Localism,HASTINGS BC,,,,,5000259894,,Council Tax Freeze,TN34 3WN,"6,956.00",Yes
768,Communities & Local Government,DCLG,15/08/2014,Current (non AEF) Grants to Local Authorities,Localism,HAVANT BC,,,,211047543,5000259895,,Council Tax Freeze,PO9 2AX,"8,474.00",Yes
769,Communities & Local Government,DCLG,15/08/2014,Current (non AEF) Grants to Local Authorities,Localism,HAVERING LB,,,,211209770,5000259896,,Council Tax Freeze,RM1 3BB,"108,308.00",Yes
770,Communities & Local Government,DCLG,15/08/2014,Current (non AEF) Grants to Local Authorities,Localism,HERTFORDSHIRE COUNTY CNCL,,,,210659897,5000259897,,Council Tax Freeze,SG13 8DQ,"512,641.00",Yes
771,Communities & Local Government,DCLG,15/08/2014,Current (non AEF) Grants to Local Authorities,Localism,HERTFORDSHIRE POLICE AUTHORITY,,,,,5000259989,,Council Tax Freeze,AL8 6XF,"67,730.00",Yes
772,Communities & Local Government,DCLG,15/08/2014,Current (non AEF) Grants to Local Authorities,Localism,HERTSMERE BC,,,,237549253,5000259898,,Council Tax Freeze,WD6 1WA,"6,659.00",Yes
773,Communities & Local Government,DCLG,15/08/2014,Current (non AEF) Grants to Local Authorities,Localism,HIGH PEAK BC,,,,239967771,5000259780,,Council Tax Freeze,SK17 6EL,"5,913.00",Yes
774,Communities & Local Government,DCLG,15/08/2014,Current (non AEF) Grants to Local Authorities,Localism,HILLINGDON LB,,,,211198585,5000259899,,Council Tax Freeze,UB8 1UW,"113,775.00",Yes
775,Communities & Local Government,DCLG,15/08/2014,Current (non AEF) Grants to Local Authorities,Localism,HINCKLEY & BOSWORTH BC,,,,211176144,5000259781,,Council Tax Freeze,LE10 1BZ,"4,212.00",Yes
776,Communities & Local Government,DCLG,15/08/2014,Current (non AEF) Grants to Local Authorities,Localism,HORSHAM DC,,,,229776588,5000259782,,Council Tax Freeze,RH12 1RL,"8,302.00",Yes
777,Communities & Local Government,DCLG,15/08/2014,Current (non AEF) Grants to Local Authorities,Localism,HOUNSLOW LB,,Public Bodies,,210388999,5000259900,,Council Tax Freeze,TW3 4DN,"98,203.00",Yes
778,Communities & Local Government,DCLG,15/08/2014,Current (non AEF) Grants to Local Authorities,Localism,HUMBERSIDE FIRE & RESCUE SERVICE,,,,229832563,5000259978,,Council Tax Freeze,HU4 7BB,"22,167.00",Yes
779,Communities & Local Government,DCLG,15/08/2014,Current (non AEF) Grants to Local Authorities,Localism,HUNTINGDONSHIRE DC,,,,235999216,5000259783,,Council Tax Freeze,PE18 6TN,"8,230.00",Yes
780,Communities & Local Government,DCLG,15/08/2014,Current (non AEF) Grants to Local Authorities,Localism,HYNDBURN BC,,,,,5000259901,,Council Tax Freeze,BB5 1EZ,"5,340.00",Yes
781,Communities & Local Government,DCLG,15/08/2014,Current (non AEF) Grants to Local Authorities,Localism,ISLINGTON LB,,,,225716729,5000259902,,Council Tax Freeze,N1 1XR,"86,222.00",Yes
782,Communities & Local Government,DCLG,15/08/2014,Current (non AEF) Grants to Local Authorities,Localism,KETTERING BC,,,,211271796,5000259904,,Council Tax Freeze,NN15 7QX,"6,700.00",Yes
783,Communities & Local Government,DCLG,15/08/2014,Current (non AEF) Grants to Local Authorities,Localism,KINGS LYNN & WEST NORFOLK BC,,,,236417671,5000259784,,Council Tax Freeze,PE30 1EX,"6,513.00",Yes
784,Communities & Local Government,DCLG,15/08/2014,Current (non AEF) Grants to Local Authorities,Localism,KINGSTON UPON THAMES  (HSG),,,,211379941,5000259785,,Council Tax Freeze,KT1 1EU,"89,202.00",Yes
785,Communities & Local Government,DCLG,15/08/2014,Current (non AEF) Grants to Local Authorities,Localism,KIRKLEES COUNCIL (HSG),,,,,5000259786,,Council Tax Freeze,HD1 2YU,"159,886.00",Yes
786,Communities & Local Government,DCLG,15/08/2014,Current (non AEF) Grants to Local Authorities,Localism,KNOWSLEY MBC,,,,,5000259905,,Council Tax Freeze,L36 9YZ,"52,382.00",Yes
787,Communities & Local Government,DCLG,15/08/2014,Current (non AEF) Grants to Local Authorities,Localism,LANCASHIRE COMBINED FIRE AUTHORITY,,Large,,230398732,5000259981,,Council Tax Freeze,PR2 3LH,"30,474.00",Yes
788,Communities & Local Government,DCLG,15/08/2014,Current (non AEF) Grants to Local Authorities,Localism,LEICESTERSHIRE COUNTY CNCL,,,,423679836,5000259907,,Council Tax Freeze,LE3 8RB,"245,286.00",Yes
789,Communities & Local Government,DCLG,15/08/2014,Current (non AEF) Grants to Local Authorities,Localism,LEWES DC,,,,213090082,5000259787,,Council Tax Freeze,BN7 2DQ,"7,492.00",Yes
790,Communities & Local Government,DCLG,15/08/2014,Current (non AEF) Grants to Local Authorities,Localism,LEWISHAM LB (HSG),,Large,,235653300,5000259788,,Council Tax Freeze,SE6 4RU,"96,843.00",Yes
791,Communities & Local Government,DCLG,15/08/2014,Current (non AEF) Grants to Local Authorities,Localism,LINCOLNSHIRE COUNTY COUNCIL,,,,,5000259908,,Council Tax Freeze,LN1 1YT,"258,462.00",Yes
792,Communities & Local Government,DCLG,15/08/2014,Current (non AEF) Grants to Local Authorities,Localism,LONDON BOROUGH OF HACKNEY,,,,225221597,5000259887,,Council Tax Freeze,E8 4RU,"85,205.00",Yes
793,Communities & Local Government,DCLG,15/08/2014,Current (non AEF) Grants to Local Authorities,Localism,LONDON BOROUGH OF LAMBETH,,,,228216479,5000259906,,Council Tax Freeze,SW2 1RL,"103,422.00",Yes
794,Communities & Local Government,DCLG,15/08/2014,Current (non AEF) Grants to Local Authorities,Localism,LONDON BOROUGH OF NEWHAM,,,,211381004,5000259914,,Council Tax Freeze,E16 2QU,"73,992.00",Yes
795,Communities & Local Government,DCLG,15/08/2014,Current (non AEF) Grants to Local Authorities,Localism,LONDON BOROUGH OF REDBRIDGE,,,,211341417,5000259924,,Council Tax Freeze,IG1 1NN,"102,952.00",Yes
796,Communities & Local Government,DCLG,15/08/2014,Current (non AEF) Grants to Local Authorities,Localism,MANCHESTER CITY CNCL (HSG),,,,211241393,5000259789,,Council Tax Freeze,M60 2JR,"152,448.00",Yes
797,Communities & Local Government,DCLG,15/08/2014,Current (non AEF) Grants to Local Authorities,Localism,MANSFIELD DC,,,,237922968,5000259909,,Council Tax Freeze,NG19 7BH,"5,870.00",Yes
798,Communities & Local Government,DCLG,15/08/2014,Current (non AEF) Grants to Local Authorities,Localism,MELTON BC,,,,346268340,5000259790,,Council Tax Freeze,LE13 0UL,"3,405.00",Yes
799,Communities & Local Government,DCLG,15/08/2014,Current (non AEF) Grants to Local Authorities,Localism,MENDIP DISTRICT COUNCIL,,,,,5000259791,,Council Tax Freeze,BA4 5BA,"6,068.00",Yes
800,Communities & Local Government,DCLG,15/08/2014,Current (non AEF) Grants to Local Authorities,Localism,MERTON LB,,,,,5000259910,,Council Tax Freeze,SM4 5DX,"85,223.00",Yes
801,Communities & Local Government,DCLG,15/08/2014,Current (non AEF) Grants to Local Authorities,Localism,MID DEVON DC,,,,213241137,5000259792,,Council Tax Freeze,EX16 6PP,"5,417.00",Yes
802,Communities & Local Government,DCLG,15/08/2014,Current (non AEF) Grants to Local Authorities,Localism,MID SUSSEX DC,,,,236675989,5000259793,,Council Tax Freeze,RH16 1SS,"8,895.00",Yes
803,Communities & Local Government,DCLG,15/08/2014,Current (non AEF) Grants to Local Authorities,Localism,MILTON KEYNES BC,,,,,5000259911,,Council Tax Freeze,MK9 3WJ,"97,381.00",Yes
804,Communities & Local Government,DCLG,15/08/2014,Current (non AEF) Grants to Local Authorities,Localism,NEW FOREST DC,,Public Bodies,,,5000259794,,Council Tax Freeze,SO43 9ZG,"11,621.00",Yes
805,Communities & Local Government,DCLG,15/08/2014,Current (non AEF) Grants to Local Authorities,Localism,NEWARK & SHERWOOD DC (HSG),,,,236186755,5000259795,,Council Tax Freeze,NG23 5QX,"6,478.00",Yes
806,Communities & Local Government,DCLG,15/08/2014,Current (non AEF) Grants to Local Authorities,Localism,NEWCASTLE UNDER LYME BC,,,,229894373,5000259912,,Council Tax Freeze,ST5 2AG,"6,988.00",Yes
807,Communities & Local Government,DCLG,15/08/2014,Current (non AEF) Grants to Local Authorities,Localism,NEWCASTLE UPON TYNE DC,,,,239154040,5000259913,,Council Tax Freeze,NE99 1RD,"104,865.00",Yes
808,Communities & Local Government,DCLG,15/08/2014,Current (non AEF) Grants to Local Authorities,Localism,NORFOLK COUNTY COUNCIL,,,,232602789,5000259915,,Council Tax Freeze,NR1 2DW,"351,183.00",Yes
809,Communities & Local Government,DCLG,15/08/2014,Current (non AEF) Grants to Local Authorities,Localism,NORTH DEVON DC,,,,,5000259796,,Council Tax Freeze,EX31 1EA,"5,825.00",Yes
810,Communities & Local Government,DCLG,15/08/2014,Current (non AEF) Grants to Local Authorities,Localism,NORTH EAST DERBYSHIRE DC,,,,238879308,5000259916,,Council Tax Freeze,S40 1LF,"5,804.00",Yes
811,Communities & Local Government,DCLG,15/08/2014,Current (non AEF) Grants to Local Authorities,Localism,NORTH LINCOLNSHIRE DC (HSG),,Public Bodies,,424005502,5000259797,,Council Tax Freeze,DN16 1AB,"67,198.00",Yes
812,Communities & Local Government,DCLG,15/08/2014,Current (non AEF) Grants to Local Authorities,Localism,NORTH NORFOLK DC,,,,239975964,5000259798,,Council Tax Freeze,NR27 9EJ,"5,775.00",Yes
813,Communities & Local Government,DCLG,15/08/2014,Current (non AEF) Grants to Local Authorities,Localism,NORTH SOMERSET COUNCIL,,Large,,,5000259917,,Council Tax Freeze,BS23 1UJ,"94,187.00",Yes
814,Communities & Local Government,DCLG,15/08/2014,Current (non AEF) Grants to Local Authorities,Localism,NORTH TYNESIDE MBC,,,,,5000259918,,Council Tax Freeze,NE27 0BY,"86,504.00",Yes
815,Communities & Local Government,DCLG,15/08/2014,Current (non AEF) Grants to Local Authorities,Localism,NORTH WARWICKSHIRE BC,,Large,,,5000259799,,Council Tax Freeze,CV9 1DE,"4,541.00",Yes
816,Communities & Local Government,DCLG,15/08/2014,Current (non AEF) Grants to Local Authorities,Localism,NORTH WEST LEICESTER DC,,,,232605782,5000259800,,Council Tax Freeze,LE67 3FJ,"5,768.00",Yes
817,Communities & Local Government,DCLG,15/08/2014,Current (non AEF) Grants to Local Authorities,Localism,NORTHAMPTON BOROUGH COUNCIL,,,,228310017,5000259919,,Council Tax Freeze,NN4 4FF,"15,187.00",Yes
818,Communities & Local Government,DCLG,15/08/2014,Current (non AEF) Grants to Local Authorities,Localism,OADBY & WIGSTON BC (HSG),,,,239831878,5000259801,,Council Tax Freeze,LE8 2DR,"3,794.00",Yes
819,Communities & Local Government,DCLG,15/08/2014,Current (non AEF) Grants to Local Authorities,Localism,OLDHAM MBC,,,,213015574,5000259920,,Council Tax Freeze,OL1 1UH,"86,626.00",Yes
820,Communities & Local Government,DCLG,15/08/2014,Current (non AEF) Grants to Local Authorities,Localism,PENDLE BC,,,,548605328,5000259921,,Council Tax Freeze,BB9 OLX,"6,441.00",Yes
821,Communities & Local Government,DCLG,15/08/2014,Current (non AEF) Grants to Local Authorities,Localism,PETERBOROUGH CITY CNCL,,,,,5000259922,,Council Tax Freeze,PE1 1HG,"66,261.00",Yes
822,Communities & Local Government,DCLG,15/08/2014,Current (non AEF) Grants to Local Authorities,Localism,POLICE & CRIME COMM'R FOR CHESHIRE,,,,211207737,5000259970,,Council Tax Freeze,CW7 9FX,"58,553.00",Yes
823,Communities & Local Government,DCLG,15/08/2014,Current (non AEF) Grants to Local Authorities,Localism,POLICE & CRIME COMM'R NORTHUMBRIA (,,,,,5000259972,,Council Tax Freeze,NE1 8DL,"38,911.00",Yes
824,Communities & Local Government,DCLG,15/08/2014,Current (non AEF) Grants to Local Authorities,Localism,POOLE BC (HSG),,,,,5000259802,,Council Tax Freeze,BH15 2RU,"73,183.00",Yes
825,Communities & Local Government,DCLG,15/08/2014,Current (non AEF) Grants to Local Authorities,Localism,PORTSMOUTH CITY COUNCIL,,Large,,211183082,5000259923,,Council Tax Freeze,PO1 2AR,"71,468.00",Yes
826,Communities & Local Government,DCLG,15/08/2014,Current (non AEF) Grants to Local Authorities,Localism,RIBBLE VALLEY BC,,,,232617894,5000259803,,Council Tax Freeze,BB7 2RA,"3,205.00",Yes
827,Communities & Local Government,DCLG,15/08/2014,Current (non AEF) Grants to Local Authorities,Localism,RICHMOND UPON THAMES LB,,,,228868535,5000259925,,Council Tax Freeze,TW1 3BZ,"118,934.00",Yes
828,Communities & Local Government,DCLG,15/08/2014,Current (non AEF) Grants to Local Authorities,Localism,ROCHDALE MBC,,,,,5000259926,,Council Tax Freeze,OL16 1LQ,"81,355.00",Yes
829,Communities & Local Government,DCLG,15/08/2014,Current (non AEF) Grants to Local Authorities,Localism,ROSSENDALE BC,,,,237654020,5000259927,,Council Tax Freeze,OL13 0BB,"5,452.00",Yes
830,Communities & Local Government,DCLG,15/08/2014,Current (non AEF) Grants to Local Authorities,Localism,ROTHER DC (HSG),,,,,5000259804,,Council Tax Freeze,TN39 3JX,"7,290.00",Yes
831,Communities & Local Government,DCLG,15/08/2014,Current (non AEF) Grants to Local Authorities,Localism,ROYAL BERKSHIRE FIRE AUTHORITY,,,,424872653,5000259977,,Council Tax Freeze,RG30 4FS,"20,649.00",Yes
832,Communities & Local Government,DCLG,15/08/2014,Current (non AEF) Grants to Local Authorities,Localism,ROYAL BOROUGH OF KENSINGTON & CHELS,,,,211124466,5000259903,,Council Tax Freeze,W8 7NX,"80,487.00",Yes
833,Communities & Local Government,DCLG,15/08/2014,Current (non AEF) Grants to Local Authorities,Localism,RUGBY BC,,,,,5000259928,,Council Tax Freeze,CV21 2LA,"6,225.00",Yes
834,Communities & Local Government,DCLG,15/08/2014,Current (non AEF) Grants to Local Authorities,Localism,RUNNYMEDE BOROUGH COUNCIL,,,,232225722,5000259929,,Council Tax Freeze,KT15 2AH,"4,651.00",Yes
835,Communities & Local Government,DCLG,15/08/2014,Current (non AEF) Grants to Local Authorities,Localism,RUSHCLIFFE BOROUGH COUNCIL,,,,,5000259805,,Council Tax Freeze,NG2 5FE,"5,810.00",Yes
836,Communities & Local Government,DCLG,15/08/2014,Current (non AEF) Grants to Local Authorities,Localism,RUSHMOOR BC,,,,232607606,5000259930,,Council Tax Freeze,GU14 7JU,"6,250.00",Yes
837,Communities & Local Government,DCLG,15/08/2014,Current (non AEF) Grants to Local Authorities,Localism,RUTLAND CC,,,,,5000259931,,Council Tax Freeze,LE15 6HP,"21,693.00",Yes
838,Communities & Local Government,DCLG,15/08/2014,Current (non AEF) Grants to Local Authorities,Localism,RYEDALE DC,,,,,5000259806,,Council Tax Freeze,YO17 0HH,"3,926.00",Yes
839,Communities & Local Government,DCLG,15/08/2014,Current (non AEF) Grants to Local Authorities,Localism,SALFORD CITY CNCL,,,,213180073,5000259932,,Council Tax Freeze,M27 5AW,"94,718.00",Yes
840,Communities & Local Government,DCLG,15/08/2014,Current (non AEF) Grants to Local Authorities,Localism,SANDWELL MBC,,,,,5000259933,,Council Tax Freeze,B69 3BS,"104,373.00",Yes
841,Communities & Local Government,DCLG,15/08/2014,Current (non AEF) Grants to Local Authorities,Localism,SCARBOROUGH BC,,Large,,,5000259807,,Council Tax Freeze,YO11 2HG,"8,953.00",Yes
842,Communities & Local Government,DCLG,15/08/2014,Current (non AEF) Grants to Local Authorities,Localism,SHEFFIELD CITY CNCL,,,,,5000259934,,Council Tax Freeze,S1 1UR,"196,847.00",Yes
843,Communities & Local Government,DCLG,15/08/2014,Current (non AEF) Grants to Local Authorities,Localism,SHEPWAY DISTRICT COUNCIL,,,,235550878,5000259808,,Council Tax Freeze,CT20 2QY,"9,828.00",Yes
844,Communities & Local Government,DCLG,15/08/2014,Current (non AEF) Grants to Local Authorities,Localism,SHROPSHIRE UNITARY AUTHORITY,,,,217036490,5000259988,,Council Tax Freeze,SY2 6ND,"130,737.00",Yes
845,Communities & Local Government,DCLG,15/08/2014,Current (non AEF) Grants to Local Authorities,Localism,SLOUGH BOROUGH COUNCIL,,,,211027123,5000259935,,Council Tax Freeze,SL1 3UQ,"50,027.00",Yes
846,Communities & Local Government,DCLG,15/08/2014,Current (non AEF) Grants to Local Authorities,Localism,SOLIHULL MBC,,,,,5000259936,,Council Tax Freeze,B91 3QR,"95,175.00",Yes
847,Communities & Local Government,DCLG,15/08/2014,Current (non AEF) Grants to Local Authorities,Localism,SOMERSET COUNTY CNCL,,,,211229406,5000259937,,Council Tax Freeze,TA1 4DY,"209,014.00",Yes
848,Communities & Local Government,DCLG,15/08/2014,Current (non AEF) Grants to Local Authorities,Localism,SOUTH BUCKS DC (HSG),,,,,5000259809,,Council Tax Freeze,UB9 4LH,"4,793.00",Yes
849,Communities & Local Government,DCLG,15/08/2014,Current (non AEF) Grants to Local Authorities,Localism,SOUTH DERBYSHIRE DC,,Public Bodies,,232612416,5000259810,,Council Tax Freeze,DE11 0AH,"4,996.00",Yes
850,Communities & Local Government,DCLG,15/08/2014,Current (non AEF) Grants to Local Authorities,Localism,SOUTH GLOUCESTERSHIRE DC (HSG),,,,,5000259811,,Council Tax Freeze,BS15 2TR,"117,356.00",Yes
851,Communities & Local Government,DCLG,15/08/2014,Current (non AEF) Grants to Local Authorities,Localism,SOUTH HOLLAND,,,,236445383,5000259812,,Council Tax Freeze,PE11 2XE,"4,726.00",Yes
852,Communities & Local Government,DCLG,15/08/2014,Current (non AEF) Grants to Local Authorities,Localism,SOUTH KESTEVEN DC (HSG),,,,227470747,5000259813,,Council Tax Freeze,NG31 6PZ,"6,724.00",Yes
853,Communities & Local Government,DCLG,15/08/2014,Current (non AEF) Grants to Local Authorities,Localism,SOUTH LAKELAND DC,,,,236445466,5000259814,,Council Tax Freeze,LA49 4DQ,"8,279.00",Yes
854,Communities & Local Government,DCLG,15/08/2014,Current (non AEF) Grants to Local Authorities,Localism,SOUTH NORFOLK DC,,,,232605717,5000259815,,Council Tax Freeze,NR15 2XE,"6,318.00",Yes
855,Communities & Local Government,DCLG,15/08/2014,Current (non AEF) Grants to Local Authorities,Localism,SOUTH NORTHAMPTONSHIRE DC,,,,,5000259816,,Council Tax Freeze,NN12 7AE,"5,877.00",Yes
856,Communities & Local Government,DCLG,15/08/2014,Current (non AEF) Grants to Local Authorities,Localism,SOUTH OXFORDSHIRE DC,,,,212296766,5000259817,,Council Tax Freeze,OX10 8HQ,"6,694.00",Yes
857,Communities & Local Government,DCLG,15/08/2014,Current (non AEF) Grants to Local Authorities,Localism,SOUTH RIBBLE BC,,Public Bodies,,,5000259938,,Council Tax Freeze,PR5 1DH,"7,709.00",Yes
858,Communities & Local Government,DCLG,15/08/2014,Current (non AEF) Grants to Local Authorities,Localism,SOUTH SOMERSET DC,,,,239850811,5000259818,,Council Tax Freeze,BA20 2DS,"9,304.00",Yes
859,Communities & Local Government,DCLG,15/08/2014,Current (non AEF) Grants to Local Authorities,Localism,SOUTH STAFFORDSHIRE DC,,,,210305155,5000259819,,Council Tax Freeze,WV8 1PX,"3,859.00",Yes
860,Communities & Local Government,DCLG,15/08/2014,Current (non AEF) Grants to Local Authorities,Localism,SOUTH TYNESIDE COUNCIL,,,,345736438,5000259939,,Council Tax Freeze,NE33 2RL,"58,866.00",Yes
861,Communities & Local Government,DCLG,15/08/2014,Current (non AEF) Grants to Local Authorities,Localism,SOUTHEND ON SEA BC,,,,217067263,5000259940,,Council Tax Freeze,SS2 6EP,"70,866.00",Yes
862,Communities & Local Government,DCLG,15/08/2014,Current (non AEF) Grants to Local Authorities,Localism,SOUTHWARK LB,,,,,5000259941,,Council Tax Freeze,SE1 2QH,"94,089.00",Yes
863,Communities & Local Government,DCLG,15/08/2014,Current (non AEF) Grants to Local Authorities,Localism,ST ALBANS CITY COUNCIL,,,,218692510,5000259942,,Council Tax Freeze,AL1 3JE,"10,693.00",Yes
864,Communities & Local Government,DCLG,15/08/2014,Current (non AEF) Grants to Local Authorities,Localism,ST EDMUNDSBURY BOROUGH COUNCIL,,,,212503653,5000259820,,Council Tax Freeze,IP33 3YU,"6,601.00",Yes
865,Communities & Local Government,DCLG,15/08/2014,Current (non AEF) Grants to Local Authorities,Localism,STAFFORD BC,,,,227476934,5000259943,,Council Tax Freeze,ST16 3AQ,"7,007.00",Yes
866,Communities & Local Government,DCLG,15/08/2014,Current (non AEF) Grants to Local Authorities,Localism,STAFFORDSHIRE  FIRE & RESCUE SERV,,,,232600577,5000259980,,Council Tax Freeze,ST15 0BS,"24,639.00",Yes
867,Communities & Local Government,DCLG,15/08/2014,Current (non AEF) Grants to Local Authorities,Localism,STAFFORDSHIRE COUNTY CNCL,,Public Bodies,,,5000259944,,Council Tax Freeze,ST16 2DH,"300,698.00",Yes
868,Communities & Local Government,DCLG,15/08/2014,Current (non AEF) Grants to Local Authorities,Localism,STAFFORDSHIRE MOORLANDS DC,,,,232749775,5000259821,,Council Tax Freeze,ST13 6HQ,"5,426.00",Yes
869,Communities & Local Government,DCLG,15/08/2014,Current (non AEF) Grants to Local Authorities,Localism,STAFFORDSHIRE POLICE AUTHORITY,,,,213450609,5000259990,,Council Tax Freeze,ST16 2NF,"64,696.00",Yes
870,Communities & Local Government,DCLG,15/08/2014,Current (non AEF) Grants to Local Authorities,Localism,STEVENAGE BC,,,,236440186,5000259945,,Council Tax Freeze,SG1 1HN,"5,554.00",Yes
871,Communities & Local Government,DCLG,15/08/2014,Current (non AEF) Grants to Local Authorities,Localism,STOCKPORT MBC,,,,228706248,5000259946,,Council Tax Freeze,SK1 3XE,"139,284.00",Yes
872,Communities & Local Government,DCLG,15/08/2014,Current (non AEF) Grants to Local Authorities,Localism,STOKE ON TRENT CITY COUNCIL,,,,216037890,5000259947,,Council Tax Freeze,ST4 1RJ,"84,664.00",Yes
873,Communities & Local Government,DCLG,15/08/2014,Current (non AEF) Grants to Local Authorities,Localism,STRATFORD ON AVON DC,,,,227473881,5000259948,,Council Tax Freeze,CV37 6HX,"6,923.00",Yes
874,Communities & Local Government,DCLG,15/08/2014,Current (non AEF) Grants to Local Authorities,Localism,STROUD DC (HSG),,,,,5000259822,,Council Tax Freeze,GL5 4UB,"8,280.00",Yes
875,Communities & Local Government,DCLG,15/08/2014,Current (non AEF) Grants to Local Authorities,Localism,SUFFOLK CC (SOCIAL CARE SERV) (H,,,,385614821,5000259823,,Council Tax Freeze,IP4 1LH,"293,050.00",Yes
876,Communities & Local Government,DCLG,15/08/2014,Current (non AEF) Grants to Local Authorities,Localism,SUFFOLK COASTAL DC (HSG),,,,239933203,5000259824,,Council Tax Freeze,IP12 1AU,"7,534.00",Yes
877,Communities & Local Government,DCLG,15/08/2014,Current (non AEF) Grants to Local Authorities,Localism,SUFFOLK POLICE AUTHORITY,,,,,5000259991,,Council Tax Freeze,IP5 3QS,"43,383.00",Yes
878,Communities & Local Government,DCLG,15/08/2014,Current (non AEF) Grants to Local Authorities,Localism,SUTTON LB,,,,,5000259949,,Council Tax Freeze,SM1 1EA,"85,937.00",Yes
879,Communities & Local Government,DCLG,15/08/2014,Current (non AEF) Grants to Local Authorities,Localism,SWALE BC,,,,239842768,5000259950,,Council Tax Freeze,ME10 3HT,"7,875.00",Yes
880,Communities & Local Government,DCLG,15/08/2014,Current (non AEF) Grants to Local Authorities,Localism,SWINDON BC,,,,458639697,5000259951,,Council Tax Freeze,SN1 2JH,"85,088.00",Yes
881,Communities & Local Government,DCLG,15/08/2014,Current (non AEF) Grants to Local Authorities,Localism,TAMESIDE MBC,,,,212635875,5000259952,,Council Tax Freeze,OL6 6DL,"80,283.00",Yes
882,Communities & Local Government,DCLG,15/08/2014,Current (non AEF) Grants to Local Authorities,Localism,TANDRIDGE DC,,,,225481076,5000259825,,Council Tax Freeze,RH8 0BT,"7,564.00",Yes
883,Communities & Local Government,DCLG,15/08/2014,Current (non AEF) Grants to Local Authorities,Localism,TEIGNBRIDGE DC,,,,236440475,5000259826,,Council Tax Freeze,TQ12 4XX,"7,614.00",Yes
884,Communities & Local Government,DCLG,15/08/2014,Current (non AEF) Grants to Local Authorities,Localism,TELFORD & WREKIN DC,,,,230235801,5000259953,,Council Tax Freeze,TF3 4LF,"60,586.00",Yes
885,Communities & Local Government,DCLG,15/08/2014,Current (non AEF) Grants to Local Authorities,Localism,TENDRING DC,,,,,5000259827,,Council Tax Freeze,CO15 1SE,"7,675.00",Yes
886,Communities & Local Government,DCLG,15/08/2014,Current (non AEF) Grants to Local Authorities,Localism,TEST VALLEY BC,,,,225442698,5000259828,,Council Tax Freeze,SP10 3AJ,"6,372.00",Yes
887,Communities & Local Government,DCLG,15/08/2014,Current (non AEF) Grants to Local Authorities,Localism,TEWKESBURY BC,,,,232740399,5000259829,,Council Tax Freeze,GL20 5TT,"3,288.00",Yes
888,Communities & Local Government,DCLG,15/08/2014,Current (non AEF) Grants to Local Authorities,Localism,THANET DC,,,,232309369,5000259830,,Council Tax Freeze,CT8 1XZ,"10,297.00",Yes
889,Communities & Local Government,DCLG,15/08/2014,Current (non AEF) Grants to Local Authorities,Localism,THREE RIVERS DC,,,,,5000259954,,Council Tax Freeze,WD3 1RL,"6,118.00",Yes
890,Communities & Local Government,DCLG,15/08/2014,Current (non AEF) Grants to Local Authorities,Localism,THURROCK  BOROUGH COUNCIL,,,,,5000259955,,Council Tax Freeze,RM17 6LT,"60,731.00",Yes
891,Communities & Local Government,DCLG,15/08/2014,Current (non AEF) Grants to Local Authorities,Localism,TORBAY BC,,,,,5000259956,,Council Tax Freeze,TQ1 3DR,"63,362.00",Yes
892,Communities & Local Government,DCLG,15/08/2014,Current (non AEF) Grants to Local Authorities,Localism,TOWER HAMLETS LB (HSG),,,,231315144,5000259831,,Council Tax Freeze,E14 2BG,"87,127.00",Yes
893,Communities & Local Government,DCLG,15/08/2014,Current (non AEF) Grants to Local Authorities,Localism,TRAFFORD MBC,,,,,5000259957,,Council Tax Freeze,M32 0YY,"89,866.00",Yes
894,Communities & Local Government,DCLG,15/08/2014,Current (non AEF) Grants to Local Authorities,Localism,TYNE & WEAR FIRE AUTHORITY (RSG),,,,215599312,5000259973,,Council Tax Freeze,SR2 7DN,"24,201.00",Yes
895,Communities & Local Government,DCLG,15/08/2014,Current (non AEF) Grants to Local Authorities,Localism,UTTLESFORD DC,,,,424423242,5000259832,,Council Tax Freeze,CB11 4ER,"5,118.00",Yes
896,Communities & Local Government,DCLG,15/08/2014,Current (non AEF) Grants to Local Authorities,Localism,VALE OF WHITE HORSE DC,,,,,5000259833,,Council Tax Freeze,OX14 3JE,"5,842.00",Yes
897,Communities & Local Government,DCLG,15/08/2014,Current (non AEF) Grants to Local Authorities,Localism,W YORKSHIRE FIRE & RESCUE AUTH (RSG,,,,236428595,5000259974,,Council Tax Freeze,BD11 2DY,"39,904.00",Yes
898,Communities & Local Government,DCLG,15/08/2014,Current (non AEF) Grants to Local Authorities,Localism,WALSALL MBC,,,,212515585,5000259958,,Council Tax Freeze,WS1 1TW,"113,134.00",Yes
899,Communities & Local Government,DCLG,15/08/2014,Current (non AEF) Grants to Local Authorities,Localism,WALTHAM FOREST LB,,,,,5000259959,,Council Tax Freeze,E17 4JA,"92,068.00",Yes
900,Communities & Local Government,DCLG,15/08/2014,Current (non AEF) Grants to Local Authorities,Localism,WANDSWORTH LB,,,,,5000259960,,Council Tax Freeze,SW18 2PU,"51,173.00",Yes
901,Communities & Local Government,DCLG,15/08/2014,Current (non AEF) Grants to Local Authorities,Localism,WARWICK,,,,,5000259961,,Council Tax Freeze,CV32 4NW,"7,841.00",Yes
902,Communities & Local Government,DCLG,15/08/2014,Current (non AEF) Grants to Local Authorities,Localism,WATFORD COUNCIL,,,,215498572,5000259962,,Council Tax Freeze,WD17 3EX,"8,296.00",Yes
903,Communities & Local Government,DCLG,15/08/2014,Current (non AEF) Grants to Local Authorities,Localism,WAVENEY DISTRICT COUNCIL,,Large,,229740980,5000259834,,Council Tax Freeze,NR32 1HS,"5,979.00",Yes
904,Communities & Local Government,DCLG,15/08/2014,Current (non AEF) Grants to Local Authorities,Localism,WAVERLEY BC V177,,,,,5000259835,,Council Tax Freeze,GU7 1HR,"9,112.00",Yes
905,Communities & Local Government,DCLG,15/08/2014,Current (non AEF) Grants to Local Authorities,Localism,WEALDEN DC,,,,232688697,5000259836,,Council Tax Freeze,BN22 9LN,"11,431.00",Yes
906,Communities & Local Government,DCLG,15/08/2014,Current (non AEF) Grants to Local Authorities,Localism,WELWYN HATFIELD COUNCIL,,,,210360804,5000259837,,Council Tax Freeze,AL8 6AE,"8,327.00",Yes
907,Communities & Local Government,DCLG,15/08/2014,Current (non AEF) Grants to Local Authorities,Localism,WEST BERKSHIRE COUNCIL,,,,364809181,5000259963,,Council Tax Freeze,RG14 2AF,"83,646.00",Yes
908,Communities & Local Government,DCLG,15/08/2014,Current (non AEF) Grants to Local Authorities,Localism,WEST LANCASHIRE BC,,,,232240978,5000259964,,Council Tax Freeze,L39 2DF,"7,028.00",Yes
909,Communities & Local Government,DCLG,15/08/2014,Current (non AEF) Grants to Local Authorities,Localism,WEST LINDSEY DC,,,,227471026,5000259838,,Council Tax Freeze,DN21 2NA,"5,946.00",Yes
910,Communities & Local Government,DCLG,15/08/2014,Current (non AEF) Grants to Local Authorities,Localism,WEST OXFORDSHIRE DC,,,,210401379,5000259839,,Council Tax Freeze,OX28 1NB,"3,568.00",Yes
911,Communities & Local Government,DCLG,15/08/2014,Current (non AEF) Grants to Local Authorities,Localism,WEST SOMERSET DC,,,,216015144,5000259840,,Council Tax Freeze,TA4 4QA,"2,053.00",Yes
912,Communities & Local Government,DCLG,15/08/2014,Current (non AEF) Grants to Local Authorities,Localism,WEST SUSSEX CC,,Public Bodies,,232198762,5000259965,,Council Tax Freeze,PO19 1RG,"391,543.00",Yes
913,Communities & Local Government,DCLG,15/08/2014,Current (non AEF) Grants to Local Authorities,Localism,WESTMINSTER CITY CNCL,,,,229845706,5000259966,,Council Tax Freeze,SW1E 6QP,"49,534.00",Yes
914,Communities & Local Government,DCLG,15/08/2014,Current (non AEF) Grants to Local Authorities,Localism,WIGAN MBC,,Public Bodies,,,5000259967,,Council Tax Freeze,WN1 1YD,"119,880.00",Yes
915,Communities & Local Government,DCLG,15/08/2014,Current (non AEF) Grants to Local Authorities,Localism,WILTSHIRE COUNCIL,,,,211341656,5000259983,,Council Tax Freeze,BA14 4DS,"223,400.00",Yes
916,Communities & Local Government,DCLG,15/08/2014,Current (non AEF) Grants to Local Authorities,Localism,WINCHESTER CITY CNCL,,,,228838280,5000259841,,Council Tax Freeze,SO23 9LJ,"7,074.00",Yes
917,Communities & Local Government,DCLG,15/08/2014,Current (non AEF) Grants to Local Authorities,Localism,WINDSOR & MAIDENHEAD (HSG),,,,227411998,5000259842,,Council Tax Freeze,SL6 1RF,"61,308.00",Yes
918,Communities & Local Government,DCLG,15/08/2014,Current (non AEF) Grants to Local Authorities,Localism,WIRRAL MBC,,,,211222602,5000259968,,Council Tax Freeze,CH41 6BU,"135,371.00",Yes
919,Communities & Local Government,DCLG,15/08/2014,Current (non AEF) Grants to Local Authorities,Localism,WORTHING BC,,,,236429734,5000259969,,Council Tax Freeze,BN11 1HB,"8,526.00",Yes
920,Communities & Local Government,DCLG,15/08/2014,Current (non AEF) Grants to Local Authorities,Localism,WYCOMBE DC,,Medium,,232683771,5000259843,,Council Tax Freeze,HP11 1BB,"9,320.00",Yes
921,Communities & Local Government,DCLG,15/08/2014,Current (non AEF) Grants to Local Authorities,Localism,WYRE BC,,,,236646493,5000259844,,Council Tax Freeze,FY6 7PU,"7,203.00",Yes
922,Communities & Local Government,DCLG,15/08/2014,Current (non AEF) Grants to Local Authorities,Neighbourhoods,ADUR DC,,,,227472891,5000258993,,New Homes Bonus Scheme,BN11 1HB,"47,115.00",Yes
923,Communities & Local Government,DCLG,15/08/2014,Current (non AEF) Grants to Local Authorities,Neighbourhoods,ALLERDALE BOROUGH COUNCIL,,,,218146780,5000258994,,New Homes Bonus Scheme,CA14 3YJ,"65,929.00",Yes
924,Communities & Local Government,DCLG,15/08/2014,Current (non AEF) Grants to Local Authorities,Neighbourhoods,AMBER VALLEY BC,,,,,5000258995,,New Homes Bonus Scheme,DE5 3WZ,"93,884.00",Yes
925,Communities & Local Government,DCLG,15/08/2014,Current (non AEF) Grants to Local Authorities,Neighbourhoods,ARUN DC,,,,211217668,5000258849,,New Homes Bonus Scheme,BN17 5LF,"212,363.00",Yes
926,Communities & Local Government,DCLG,15/08/2014,Current (non AEF) Grants to Local Authorities,Neighbourhoods,ASHFIELD DC,,,,235415296,5000258996,,New Homes Bonus Scheme,NG17 8DA,"155,180.00",Yes
927,Communities & Local Government,DCLG,15/08/2014,Current (non AEF) Grants to Local Authorities,Neighbourhoods,ASHFORD BC,,,,229467071,5000258850,,New Homes Bonus Scheme,TN23 1PL,"238,791.00",Yes
928,Communities & Local Government,DCLG,15/08/2014,Current (non AEF) Grants to Local Authorities,Neighbourhoods,AYLESBURY VALE DC(HSG),,,,396710709,5000258851,,New Homes Bonus Scheme,HP19 8FF,"385,028.00",Yes
929,Communities & Local Government,DCLG,15/08/2014,Current (non AEF) Grants to Local Authorities,Neighbourhoods,BABERGH DC,,,,232618405,5000258852,,New Homes Bonus Scheme,IP7 6SJ,"101,234.00",Yes
930,Communities & Local Government,DCLG,15/08/2014,Current (non AEF) Grants to Local Authorities,Neighbourhoods,BARKING & DAGENHAM LB (HSG),,,,217142293,5000258853,,New Homes Bonus Scheme,RM10 7BY,"255,021.00",Yes
931,Communities & Local Government,DCLG,15/08/2014,Current (non AEF) Grants to Local Authorities,Neighbourhoods,BARNET LBC,,,,211049507,5000258997,,New Homes Bonus Scheme,NW4 4BG,"686,085.00",Yes
932,Communities & Local Government,DCLG,15/08/2014,Current (non AEF) Grants to Local Authorities,Neighbourhoods,BARNSLEY MBC,,,,211178595,5000258998,,New Homes Bonus Scheme,S70 2AQ,"377,582.00",Yes
933,Communities & Local Government,DCLG,15/08/2014,Current (non AEF) Grants to Local Authorities,Neighbourhoods,BARROW BC,,,,295632913,5000258999,,New Homes Bonus Scheme,LA14 2LD,"31,060.00",Yes
934,Communities & Local Government,DCLG,15/08/2014,Current (non AEF) Grants to Local Authorities,Neighbourhoods,BASILDON BOROUGH COUNCIL,,,,,5000259000,,New Homes Bonus Scheme,SS14 0DF,"199,591.00",Yes
935,Communities & Local Government,DCLG,15/08/2014,Current (non AEF) Grants to Local Authorities,Neighbourhoods,BASINGSTOKE & DEANE BC,,,,228328506,5000259001,,New Homes Bonus Scheme,RG21 2AJ,"338,925.00",Yes
936,Communities & Local Government,DCLG,15/08/2014,Current (non AEF) Grants to Local Authorities,Neighbourhoods,BASSETLAW DC (HSG),,,,,5000258854,,New Homes Bonus Scheme,S80 2AH,"103,799.00",Yes
937,Communities & Local Government,DCLG,15/08/2014,Current (non AEF) Grants to Local Authorities,Neighbourhoods,BATH & NE SOMERSET DC (HSG),,,,214502499,5000258855,,New Homes Bonus Scheme,BA1 5AW,"222,026.00",Yes
938,Communities & Local Government,DCLG,15/08/2014,Current (non AEF) Grants to Local Authorities,Neighbourhoods,BEDFORD UNITARY AUTHORITY,,,,225682160,5000259198,,New Homes Bonus Scheme,MK40 1SJ,"437,458.00",Yes
939,Communities & Local Government,DCLG,15/08/2014,Current (non AEF) Grants to Local Authorities,Neighbourhoods,BEXLEY LB (HSG),,,,,5000258856,,New Homes Bonus Scheme,DA8 1TL,"172,461.00",Yes
940,Communities & Local Government,DCLG,15/08/2014,Current (non AEF) Grants to Local Authorities,Neighbourhoods,BIRMINGHAM CITY CNCL,,,,213780559,5000259002,,New Homes Bonus Scheme,B2 2AJ,"1,256,372.00",Yes
941,Communities & Local Government,DCLG,15/08/2014,Current (non AEF) Grants to Local Authorities,Neighbourhoods,BLABY DC (HSG),,,,,5000258857,,New Homes Bonus Scheme,LE9 5EP,"91,102.00",Yes
942,Communities & Local Government,DCLG,15/08/2014,Current (non AEF) Grants to Local Authorities,Neighbourhoods,BLACKBURN WITH DARWEN BC,,,,,5000259003,,New Homes Bonus Scheme,BB1 7DY,"74,725.00",Yes
943,Communities & Local Government,DCLG,15/08/2014,Current (non AEF) Grants to Local Authorities,Neighbourhoods,BLACKPOOL BC,,,,,5000259004,,New Homes Bonus Scheme,FY1 1NA,"118,346.00",Yes
944,Communities & Local Government,DCLG,15/08/2014,Current (non AEF) Grants to Local Authorities,Neighbourhoods,BOLSOVER DC,,,,235516523,5000259005,,New Homes Bonus Scheme,S44 6NF,"64,337.00",Yes
945,Communities & Local Government,DCLG,15/08/2014,Current (non AEF) Grants to Local Authorities,Neighbourhoods,BOLTON MBC,,,,,5000259006,,New Homes Bonus Scheme,BL1 1RU,"280,783.00",Yes
946,Communities & Local Government,DCLG,15/08/2014,Current (non AEF) Grants to Local Authorities,Neighbourhoods,BOSTON BC,,,,236417713,5000258858,,New Homes Bonus Scheme,PE21 8QR,"71,157.00",Yes
947,Communities & Local Government,DCLG,15/08/2014,Current (non AEF) Grants to Local Authorities,Neighbourhoods,BOURNEMOUTH DC,,,,,5000259007,,New Homes Bonus Scheme,BH2 6EB,"296,745.00",Yes
948,Communities & Local Government,DCLG,15/08/2014,Current (non AEF) Grants to Local Authorities,Neighbourhoods,BRACKNELL FOREST DC,,,,236184867,5000259008,,New Homes Bonus Scheme,RG12 1AQ,"217,216.00",Yes
949,Communities & Local Government,DCLG,15/08/2014,Current (non AEF) Grants to Local Authorities,Neighbourhoods,BRADFORD MBC,,,,,5000259009,,New Homes Bonus Scheme,BD1 1HX,"627,218.00",Yes
950,Communities & Local Government,DCLG,15/08/2014,Current (non AEF) Grants to Local Authorities,Neighbourhoods,BRAINTREE DC,,,,226941730,5000258859,,New Homes Bonus Scheme,CM7 6HB,"154,476.00",Yes
951,Communities & Local Government,DCLG,15/08/2014,Current (non AEF) Grants to Local Authorities,Neighbourhoods,BRECKLAND DC,,,,232611384,5000258860,,New Homes Bonus Scheme,NR19 1EE,"138,471.00",Yes
952,Communities & Local Government,DCLG,15/08/2014,Current (non AEF) Grants to Local Authorities,Neighbourhoods,BRENT LB (HSG),,,,,5000258861,,New Homes Bonus Scheme,HA9 9HD,"516,303.00",Yes
953,Communities & Local Government,DCLG,15/08/2014,Current (non AEF) Grants to Local Authorities,Neighbourhoods,BRENTWOOD BC,,,,227473188,5000259010,,New Homes Bonus Scheme,CM15 8AY,"101,147.00",Yes
954,Communities & Local Government,DCLG,15/08/2014,Current (non AEF) Grants to Local Authorities,Neighbourhoods,BRIGHTON & HOVE CITY COUNCIL,,,,228455218,5000259011,,New Homes Bonus Scheme,BN3 2SR,"222,466.00",Yes
955,Communities & Local Government,DCLG,15/08/2014,Current (non AEF) Grants to Local Authorities,Neighbourhoods,BRISTOL CITY CNCL (HSG),,,,211103882,5000258862,,New Homes Bonus Scheme,BS99 7BL,"789,611.00",Yes
956,Communities & Local Government,DCLG,15/08/2014,Current (non AEF) Grants to Local Authorities,Neighbourhoods,BROADLAND DC,,Large,,219737785,5000258863,,New Homes Bonus Scheme,NR7 0DU,"93,195.00",Yes
957,Communities & Local Government,DCLG,15/08/2014,Current (non AEF) Grants to Local Authorities,Neighbourhoods,BROMLEY LB,,,,211331954,5000259012,,New Homes Bonus Scheme,BR1 3UH,"410,115.00",Yes
958,Communities & Local Government,DCLG,15/08/2014,Current (non AEF) Grants to Local Authorities,Neighbourhoods,BROMSGROVE DC,,,,236654745,5000258864,,New Homes Bonus Scheme,B60 1AA,"79,175.00",Yes
959,Communities & Local Government,DCLG,15/08/2014,Current (non AEF) Grants to Local Authorities,Neighbourhoods,BROXBOURNE BC,,Public Bodies,,239931918,5000259013,,New Homes Bonus Scheme,EN8 9XG,"101,648.00",Yes
960,Communities & Local Government,DCLG,15/08/2014,Current (non AEF) Grants to Local Authorities,Neighbourhoods,BROXTOWE BC,,,,239877640,5000259014,,New Homes Bonus Scheme,NG9 1AB,"54,363.00",Yes
961,Communities & Local Government,DCLG,15/08/2014,Current (non AEF) Grants to Local Authorities,Neighbourhoods,BUCKINGHAMSHIRE CC,,,,293750923,5000259015,,New Homes Bonus Scheme,HP20 1UD,"192,296.00",Yes
962,Communities & Local Government,DCLG,15/08/2014,Current (non AEF) Grants to Local Authorities,Neighbourhoods,BURNLEY BC,,,,229413281,5000259016,,New Homes Bonus Scheme,BB11 1JA,"50,274.00",Yes
963,Communities & Local Government,DCLG,15/08/2014,Current (non AEF) Grants to Local Authorities,Neighbourhoods,BURY MBC,,,,,5000259017,,New Homes Bonus Scheme,BL9 0SW,"122,926.00",Yes
964,Communities & Local Government,DCLG,15/08/2014,Current (non AEF) Grants to Local Authorities,Neighbourhoods,CALDERDALE MBC,,,,,5000259018,,New Homes Bonus Scheme,HX1 1YP,"244,787.00",Yes
965,Communities & Local Government,DCLG,15/08/2014,Current (non AEF) Grants to Local Authorities,Neighbourhoods,CAMBRIDGE CITY COUNCIL,,,,210357534,5000259019,,New Homes Bonus Scheme,CB2 3NA,"281,218.00",Yes
966,Communities & Local Government,DCLG,15/08/2014,Current (non AEF) Grants to Local Authorities,Neighbourhoods,CAMBRIDGESHIRE COUNTY CNCL,,,,219047347,5000259020,,New Homes Bonus Scheme,CB3 0AP,"261,556.00",Yes
967,Communities & Local Government,DCLG,15/08/2014,Current (non AEF) Grants to Local Authorities,Neighbourhoods,CAMDEN LB,,,,211651836,5000259021,,New Homes Bonus Scheme,WC1H 8NG,"439,305.00",Yes
968,Communities & Local Government,DCLG,15/08/2014,Current (non AEF) Grants to Local Authorities,Neighbourhoods,CANNOCK CHASE DC,,,,215064770,5000259022,,New Homes Bonus Scheme,WS11 1BG,"83,822.00",Yes
969,Communities & Local Government,DCLG,15/08/2014,Current (non AEF) Grants to Local Authorities,Neighbourhoods,CANTERBURY CITY CNCL,,,,,5000258865,,New Homes Bonus Scheme,CT1 1YW,"210,486.00",Yes
970,Communities & Local Government,DCLG,15/08/2014,Current (non AEF) Grants to Local Authorities,Neighbourhoods,CARLISLE CITY CNCL,,,,227471059,5000258866,,New Homes Bonus Scheme,CA3 8QG,"109,096.00",Yes
971,Communities & Local Government,DCLG,15/08/2014,Current (non AEF) Grants to Local Authorities,Neighbourhoods,CASTLE POINT BC,,Public Bodies,,228217931,5000259023,,New Homes Bonus Scheme,SS7 1TF,"57,148.00",Yes
972,Communities & Local Government,DCLG,15/08/2014,Current (non AEF) Grants to Local Authorities,Neighbourhoods,CENTRAL BEDFORDSHIRE COUNCIL,,,,232624882,5000259195,,New Homes Bonus Scheme,SG17 5TQ,"578,719.00",Yes
973,Communities & Local Government,DCLG,15/08/2014,Current (non AEF) Grants to Local Authorities,Neighbourhoods,CHARNWOOD BC,,,,,5000259024,,New Homes Bonus Scheme,LE11 2TU,"241,314.00",Yes
974,Communities & Local Government,DCLG,15/08/2014,Current (non AEF) Grants to Local Authorities,Neighbourhoods,CHELMSFORD BC,,,,,5000259025,,New Homes Bonus Scheme,CM1 1JE,"117,043.00",Yes
975,Communities & Local Government,DCLG,15/08/2014,Current (non AEF) Grants to Local Authorities,Neighbourhoods,CHELTENHAM BC,,,,,5000259026,,New Homes Bonus Scheme,GL50 1PW,"90,745.00",Yes
976,Communities & Local Government,DCLG,15/08/2014,Current (non AEF) Grants to Local Authorities,Neighbourhoods,CHERWELL DC,,,,,5000258867,,New Homes Bonus Scheme,OX15 4AA,"168,791.00",Yes
977,Communities & Local Government,DCLG,15/08/2014,Current (non AEF) Grants to Local Authorities,Neighbourhoods,CHESHIRE EAST COUNCIL,,Large,,,5000259196,,New Homes Bonus Scheme,CW11 1HZ,"439,417.00",Yes
978,Communities & Local Government,DCLG,15/08/2014,Current (non AEF) Grants to Local Authorities,Neighbourhoods,CHESHIRE WEST & CHESTER UA,,Large,,215584383,5000259197,,New Homes Bonus Scheme,CH1 2NP,"317,297.00",Yes
979,Communities & Local Government,DCLG,15/08/2014,Current (non AEF) Grants to Local Authorities,Neighbourhoods,CHESTERFIELD BC,,,,232102301,5000259027,,New Homes Bonus Scheme,S40 1LP,"37,650.00",Yes
980,Communities & Local Government,DCLG,15/08/2014,Current (non AEF) Grants to Local Authorities,Neighbourhoods,CHICHESTER DC,,,,739800998,5000258868,,New Homes Bonus Scheme,PO19 1TY,"175,901.00",Yes
981,Communities & Local Government,DCLG,15/08/2014,Current (non AEF) Grants to Local Authorities,Neighbourhoods,CHILTERN DC (HSG),,,,,5000258869,,New Homes Bonus Scheme,HP6 5AW,"60,195.00",Yes
982,Communities & Local Government,DCLG,15/08/2014,Current (non AEF) Grants to Local Authorities,Neighbourhoods,CHORLEY BOROUGH COUNCIL,,,,236415576,5000259028,,New Homes Bonus Scheme,PR7 1DP,"219,064.00",Yes
983,Communities & Local Government,DCLG,15/08/2014,Current (non AEF) Grants to Local Authorities,Neighbourhoods,CHRISTCHURCH BC (HSG),,,,227415213,5000258870,,New Homes Bonus Scheme,BH23 1AZ,"40,959.00",Yes
984,Communities & Local Government,DCLG,15/08/2014,Current (non AEF) Grants to Local Authorities,Neighbourhoods,CITY OF LINCOLN COUNCIL,,,,,5000259091,,New Homes Bonus Scheme,LN1 1DB,"143,510.00",Yes
985,Communities & Local Government,DCLG,15/08/2014,Current (non AEF) Grants to Local Authorities,Neighbourhoods,CITY OF LONDON (HSG),,,,217471460,5000258871,,New Homes Bonus Scheme,EC2P 2EJ,"70,378.00",Yes
986,Communities & Local Government,DCLG,15/08/2014,Current (non AEF) Grants to Local Authorities,Neighbourhoods,CITY OF SUNDERLAND (HSG),,,,215599312,5000258872,,New Homes Bonus Scheme,SR2 7DN,"185,388.00",Yes
987,Communities & Local Government,DCLG,15/08/2014,Current (non AEF) Grants to Local Authorities,Neighbourhoods,CITY OF WAKEFIELD MDC,,,,,5000259169,,New Homes Bonus Scheme,WF1 2QW,"432,904.00",Yes
988,Communities & Local Government,DCLG,15/08/2014,Current (non AEF) Grants to Local Authorities,Neighbourhoods,COLCHESTER BC,,,,,5000259029,,New Homes Bonus Scheme,CO3 3WG,"284,045.00",Yes
989,Communities & Local Government,DCLG,15/08/2014,Current (non AEF) Grants to Local Authorities,Neighbourhoods,COPELAND BC,,,,236414827,5000258873,,New Homes Bonus Scheme,CA28 7NY,"39,308.00",Yes
990,Communities & Local Government,DCLG,15/08/2014,Current (non AEF) Grants to Local Authorities,Neighbourhoods,CORBY BC,,,,,5000258874,,New Homes Bonus Scheme,NN17 1GD,"178,504.00",Yes
991,Communities & Local Government,DCLG,15/08/2014,Current (non AEF) Grants to Local Authorities,Neighbourhoods,CORNWALL UNITARY AUTHORITY,,,,211334404,5000259200,,New Homes Bonus Scheme,TR1 3AY,"1,040,944.00",Yes
992,Communities & Local Government,DCLG,15/08/2014,Current (non AEF) Grants to Local Authorities,Neighbourhoods,COTSWOLD DC,,,,232462085,5000258875,,New Homes Bonus Scheme,GL7 1PX,"162,421.00",Yes
993,Communities & Local Government,DCLG,15/08/2014,Current (non AEF) Grants to Local Authorities,Neighbourhoods,COVENTRY CITY CNCL,,,,210384802,5000259030,,New Homes Bonus Scheme,CV1 2QL,"475,810.00",Yes
994,Communities & Local Government,DCLG,15/08/2014,Current (non AEF) Grants to Local Authorities,Neighbourhoods,CRAVEN DC (HSG),,,,,5000258876,,New Homes Bonus Scheme,BD23 1FJ,"65,926.00",Yes
995,Communities & Local Government,DCLG,15/08/2014,Current (non AEF) Grants to Local Authorities,Neighbourhoods,CRAWLEY BC,,,,211222500,5000258877,,New Homes Bonus Scheme,RH10 1UZ,"109,688.00",Yes
996,Communities & Local Government,DCLG,15/08/2014,Current (non AEF) Grants to Local Authorities,Neighbourhoods,CROYDON LB,,,,212419973,5000259031,,New Homes Bonus Scheme,CR9 3JS,"692,411.00",Yes
